Workbook

Sheet LDC Info
Z3: 1 | AA3: Alectra Utilities Corporation
Z4: 2 | AA4: Alectra Utilities Corporation - Brampton service territory
Z5: 3 | AA5: Alectra Utilities Corporation - Horizon Utilities service territory
Z6: 4 | AA6: Alectra Utilities Corporation - Mississauga service territory
Z7: 5 | AA7: Alectra Utilities Corporation - PowerStream service territory
Z8: 6 | AA8: Algoma Power Inc.
Z9: 7 | AA9: Atikokan Hydro Inc.
Z10: 8 | AA10: Attawapiskat Power Corporation
Z11: 9 | AA11: Bluewater Power Distribution Corporation
Z12: 10 | AA12: Brantford Power Inc.
Z13: 11 | AA13: Burlington Hydro Inc.
D14: Utility Name | E14: Essex Powerlines Corporation | Z14: 12 | AA14: Canadian Niagara Power Inc. (Eastern Ontario Power/Fort Erie/Port Colborne)
Z15: 13 | AA15: Centre Wellington Hydro Ltd.
D16: Assigned EB Number | E16: EB-2017-0039 | Z16: 14 | AA16: Chapleau Public Utilities Corporation
Z17: 15 | AA17: COLLUS PowerStream Corp.
D18: Name of Contact and Title | E18: Kristopher Taylor, Director of Corporate Strategy | Z18: 16 | AA18: Cooperative Hydro Embrun Inc.
Z19: 17 | AA19: E.L.K. Energy Inc.
D20: Phone Number | E20: 519-946-2000 | Z20: 18 | AA20: Energy + Inc.
Z21: 19 | AA21: Enersource Hydro Mississauga Inc.
D22: Email Address | E22: ktaylor@essexpower.ca | Z22: 20 | AA22: Entegrus Powerlines Inc.
Z23: 21 | AA23: ENWIN Utilities Ltd.
D24: Test Year | E24: 2018 | Z24: 22 | AA24: Erie Thames Powerlines Corporation
Z25: 23 | AA25: Espanola Regional Hydro Distribution Corporation
D26: Bridge Year | E26: =IF(ISBLANK(E24), "", E24-1) -> 2017 | Z26: 24 | AA26: Essex Powerlines Corporation
Z27: 25 | AA27: Festival Hydro Inc.
D28: Last Rebasing Year | E28: 2010 | Z28: 26 | AA28: Fort Albany Power Corporation
Z29: 27 | AA29: Fort Frances Power Corporation
A30: Identify the accounting standard used for the test year | Z30: 28 | AA30: Greater Sudbury Hydro Inc.
E31: MIFRS | Z31: 29 | AA31: Grimsby Power Inc.
Z32: 30 | AA32: Guelph Hydro Electric Systems Inc.
A33: Did you update your depreciation and capitalization policies and reflect the changes in policies in a prior rebasing application? | Z33: 31 | AA33: Halton Hills Hydro Inc.
E34: Yes | Z34: 32 | AA34: Hearst Power Distribution Company Limited
Z35: 33 | AA35: Hydro 2000 Inc.
A36: When did you update your actual depreciation and capitalization policies? | Z36: 34 | AA36: Hydro Hawkesbury Inc.
E37: 2001-01-01 | F37: 2013 | Z37: 35 | AA37: Hydro One Networks Inc.
Z38: 36 | AA38: Hydro One Networks Inc. - Norfolk, Haldimand, Woodstock
A39: Identify the year the applicant adopted IFRS for financial reporting purposes | Z39: 37 | AA39: Hydro One Remote Communities Inc.
E40: 2015 | Z40: 38 | AA40: Hydro Ottawa Limited
Z41: 39 | AA41: Innpower Corporation
Z42: 40 | AA42: Kashechewan Power Corporation
A43: Are you applying for cost recovery for the test and/or future year(s) for Green Energy initiatives? | Z43: 41 | AA43: Kenora Hydro Electric Corporation Ltd.
E44: Yes | Z44: 42 | AA44: Kingston Hydro Corporation
Z45: 43 | AA45: Kitchener-Wilmot Hydro Inc.
A46: ="Is " & E14 & " an embedded distributor?" -> Is Essex Powerlines Corporation an embedded distributor? | E46: Partial | Z46: 44 | AA46: Lakefront Utilities Inc.
Z47: 45 | AA47: Lakeland Power Distribution Ltd.
Z48: 46 | AA48: London Hydro Inc.
B49: Notes | Z49: 47 | AA49: Midland Power Utility Corporation
Z50: 48 | AA50: Milton Hydro Distribution Inc.
C51: Pale green cells represent input cells. | Z51: 49 | AA51: Newmarket-Tay Power Distribution Ltd.
Z52: 50 | AA52: Niagara Peninsula Energy Inc.
C53: Pale blue cells represent drop-down lists. The applicant should select the appropriate item from the drop-down list. | Z53: 51 | AA53: Niagara-on-the-Lake Hydro Inc.
Z54: 52 | AA54: North Bay Hydro Distribution Limited
C55: White cells contain fixed values, automatically generated values or formulae. | N55: =IF(LEN($G55)>1, (SUMPRODUCT(--($C$78:$C$1000=$C55),--($A$78:$A$1000=$D55), --($B$78:$B$1000=$B55&"_TOTAL"), $L$78:$L$1000)), "") ->  | O55: =IF(LEN($G55)>1, (SUMPRODUCT(--($C$78:$C$1000=$C55),--($A$78:$A$1000=$D55), --($B$78:$B$1000=$B55&"_TOTAL"), $M$78:$M$1000)), "") ->  | Z55: 53 | AA55: Northern Ontario Wires Inc.
N56: =IF(LEN($G56)>1, (SUMPRODUCT(--($C$78:$C$1000=$C56),--($A$78:$A$1000=$D56), --($B$78:$B$1000=$B56&"_TOTAL"), $L$78:$L$1000)), "") ->  | O56: =IF(LEN($G56)>1, (SUMPRODUCT(--($C$78:$C$1000=$C56),--($A$78:$A$1000=$D56), --($B$78:$B$1000=$B56&"_TOTAL"), $M$78:$M$1000)), "") ->  | Z56: 54 | AA56: Oakville Hydro Electricity Distribution Inc.
Z57: 55 | AA57: Orangeville Hydro Limited
Z58: 56 | AA58: Orillia Power Distribution Corporation
Z59: 57 | AA59: Oshawa PUC Networks Inc.
Z60: 58 | AA60: Ottawa River Power Corporation
Z61: 59 | AA61: Peterborough Distribution Inc.
Z62: 60 | AA62: PUC Distribution Inc.
Z63: 61 | AA63: Renfrew Hydro Inc.
Z64: 62 | AA64: Rideau St. Lawrence Distribution Inc.
Z65: 63 | AA65: Sioux Lookout Hydro Inc.
Z66: 64 | AA66: St. Thomas Energy Inc.
Z67: 65 | AA67: Thunder Bay Hydro Electricity Distribution Inc.
Z68: 66 | AA68: Tillsonburg Hydro Inc.
Z69: 67 | AA69: Toronto Hydro-Electric System Limited
Z70: 68 | AA70: Veridian Connections Inc.
Z71: 69 | AA71: Wasaga Distribution Inc.
Z72: 70 | AA72: Waterloo North Hydro Inc.
Z73: 71 | AA73: Welland Hydro-Electric System Corp.
Z74: 72 | AA74: Wellington North Power Inc.
Z75: 73 | AA75: West Coast Huron Energy Inc.
Z76: 74 | AA76: Westario Power Inc.
Z77: 75 | AA77: Whitby Hydro Electric Corporation

Sheet Index
A15: 1 | B15: LDC Information Sheet | E15: 20 | F15: App.2-G: Service Reliability Indicators
A16: 2 | B16: Index | E16: 21 | F16: App.2-H: Other Operating Revenue
A17: 3 | B17: Cost of Service Application Flowchart | E17: 22 | F17: App.2-I: Load Forecast CDM Adjustment Workform
A18: 4 | B18: List of Key References | E18: 23 | F18: App.2-IA: Load Forecast Data Instructions
A19: 5 | B19: App.2-A: List of Requested Approvals | E19: 24 | F19: App.2-IB: Actual and Forecast Load and Customer Data
A20: 6 | B20: App.2-AA: Capital Projects Table | E20: 25 | F20: App.2-JA: OM&A Summary Analysis
A21: 7 | B21: App.2-AB: Capital Expenditures | E21: 26 | F21: App.2-JB: Recoverable OM&A Cost Driver Table
A22: 8 | B22: App. 2-AC: Customer Engagement Worksheet | E22: 27 | F22: App.2-JC: OM&A Programs Table
A23: 9 | B23: App.2-B: General Accounting Instructions | E23: 28 | F23: App.2-K: Employee Costs
A24: 10 | B24: App.2-BA: Fixed Asset Continuity Schedule | E24: 29 | F24: App.2-L: Recoverable OM&A Cost per Customer and per FTE
A25: 11 | B25: Appendix 2-BB: Service Life Comparison | E25: 30 | F25: App.2-M: Regulatory Costs Schedule
A26: 12 | B26: App.2-C_DepExp: Depreciation and Amortization Expense | E26: 31 | F26: App.2-N: Shared Services and Corporate Cost Allocation
A27: 13 | B27: App.2-D: Overhead Expenses | E27: 32 | F27: App.2-OA: Capital Structure and Cost of Capital
A28: 14 | B28: App.2-EA: Account 1575 PP&E Deferral Account (2015 IFRS Adopters) | E28: 33 | F28: App.2-OB: Debt Instruments
A29: 15 | B29: App.2-EB: Account 1576 - Accounting Changes Under CGAAP (2012 Changes) | E29: 34 | F29: App.2-Q: Cost of Serving Embedded Distributor(s)
A30: 16 | B30: App.2-EC: Account 1576 - Accounting Changes Under CGAAP (2013 Changes) | E30: 35 | F30: App.2-R: Loss Factors
A31: 17 | B31: App.2-FA: Renewable Generation Connection Investment Summary | E31: 36 | F31: App.2-S: Stranded Meter Treatment
A32: 18 | B32: App.2-FB: Calculation of Renewable Generation Connection Direct Benefits/Provincial Amount: Renewable Enabling Improvement Investments | E32: 37 | F32: App.2-Y: Transition to MIFRS Summary Impact
A33: 19 | B33: App.2-FC: Calculation of Renewable Generation Connection Direct Benefits/Provincial Amount: Renewable Expansion Investments | E33: 38 | F33: App.2-YA: One-Time Incremental IFRS Transition Costs
A42: Note: | B42: Appendices for the Tariff of Rates and Charges at Current and Proposed Rates, and for the Bill Impacts are now in a separate spreadsheet model. These appendices were formerly 2-Z and 2-W.

Sheet COS Flowchart
B4: Cost of Service Rate Application Schematic
B6: The Cost of Service Rate Application Schematic is a flowchart that is included as a guide for the components of an application. The schematic demonstrates how demand and costs interrelate to derive the revenue requirement and how the revenue requirement is allocated between classes and through fixed/variable splits to derive rates that will be compensatory for the annual revenue requirement, based on the the forecasted demand. There is no form to be filled out; therefore, this Schedule is not required to be filed.

Sheet List of Key References
B3: List of Key References
A5: A list of key references for understanding the Filing Requirements has been embedded in the document below. To access the list of references and associated hyperlinks double-click the icon below.

Sheet App.2-A_Requested_Approvals
G1: File Number: | H1: =EBNUMBER -> EB-2017-0039
G2: Exhibit: | H2: 1
G3: Page: | H3: 1 of 1
G5: Date: | H5: August 28th, 2017
B7: Appendix 2-A
B8: List of Requested Approvals
B10: The distributor must fill out the following sheet with the complete list of specific approvals requested and relevant section(s) of the legislation must be provided. All approvals, including accounting orders (deferral and variance accounts) new rate classes, revised specific service charges or retail service charges which the applicant is seeking, must be separately identified, as well being clearly documented in the appropriate sections of the application.
B12: Additional requests may be added by copying and pasting blank input rows, as needed.
B14: If additional requests arise, or requested approvals are removed, during the processing of the application, the distributor should update this list.
B16: =CONCATENATE('LDC Info'!E14," is seeking the following approvals in this application:") -> Essex Powerlines Corporation is seeking the following approvals in this application:
B18: 1 | F18: Approval to charge distribution rates effective May 1st, 2018 to recover Service Revenue Requirement of $13,175, 916 which includes a Revenue Deficiency of $293,116 as detailed in Exhibit 6 of this Application. The schedule of proposed rates is set out in Exhibit 8 of this Application;
B20: 2 | F20: Approval of the DSP as presented in Exhibit 2 of this Application;
B22: 3 | F22: Approval of revised Low Voltage rates as presented in Exhibit 8 of this Application;
B24: 4 | F24: Approval of revised Retail Transmission Rates (Network & Connection) as presented in Exhibit 8 of this Application;
B26: 5 | F26: Approval of revised Wholesale Market and Rural Rate Protection charges as presented in Exhibit 8 of this Application;
B28: 6 | F28: Approval to continue the Specific Service Charges and Transformer Allowance approved in EPLC's 2017 Distribution Rates (EB-2016-0069);
B30: 7 | F30: Approval of revised Loss Factors as presented in Exhibit 8 of this Application;
B32: 8 | F32: Approval of the rate riders for a one year disposition of Group 1, Group 2 and other Deferral and Variance Accounts as presented in Exhibit 9 of this Application;
B34: 9 | F34: Approval of the rate rider for a one year disposition of the Lost Revenue Adjustment Mechanism Variance Account ("LRAMVA") for lost revenue as presented in Exhibits 4 and 9 of this Application;
B36: 10 | F36: Approval of the rate rider for a three year disposition of Stranded Meter assets ("SMRR") in relation to the smart metering initiative, as presented in Exhibit 9 of this Application;
B38: 11 | F38: Approval to charge HONI, an Embedded Distributor, as per rates proposed in Exhibit 7 of this Application;
B40: 12 | F40: Approval to eliminate the General Service 3,000 to 4,999 kW service classification;
B42: 13 | F42: Approval to increase the qualification threshold of the General Service 50 to 2,999 kW service classification to 50 to 4,999 kW;

Sheet App.2-AA_Capital Projects
I1: File Number: | J1: =EBNUMBER -> EB-2017-0039
I2: Exhibit: | J2: 1
I3: Attachment: | J3: 2-E
I4: Page: | J4: 1 of 1
I6: Date: | J6: August 28th, 2017
A8: Appendix 2-AA
A9: Capital Projects Table
A12: Projects | B12: 2011 | C12: 2012 | D12: =E12-1 -> 2013 | E12: =F12-1 -> 2014 | F12: =G12-1 -> 2015 | G12: =BridgeYear - 1 -> 2016 | H12: =BridgeYear & " Bridge Year" -> 2017 Bridge Year | I12: =TestYear & " Test Year" -> 2018 Test Year
A13: Reporting Basis | B13: CGAAP | C13: CGAAP | D13: CGAAP | E13: CGAAP | F13: MIFRS | G13: MIFRS | H13: MIFRS | I13: MIFRS
A14: System Access
A15: Subdivisions | B15: 540677.4 | C15: 728505.57 | D15: 240013.78 | E15: 150424.21 | F15: 1020248.93 | G15: 446195.98 | H15: 375000 | I15: 382500
A16: Residential Connection/Extension | B16: 188900.98 | C16: 471953.94 | D16: 429495.82 | E16: 677866.4 | F16: 872061.83 | G16: 1050695.88 | H16: 386636 | I16: 394368.72
A17: Municipal Requests | B17: 721963.25 | C17: 140953.13 | D17: 1048671.34 | E17: 1577008.78 | F17: 311343.92 | G17: 12336.11 | H17: 600000 | I17: 612000
A18: New Service Upgrades - C&I | B18: 120391.86 | C18: 226150.38 | D18: 100871.43 | E18: 21123.73 | F18: 3766.77 | G18: 99080.32 | H18: 349960 | I18: 356959.2
A19: Miscellaneous | B19: -69558.00863 | C19: 149705.4651 | D19: -53545.75498 | E19: 105509.4887 | F19: 133538.8342 | G19: 150960.8746 | H19: 0 | I19: 0
A20: Sub-Total | B20: =SUM(B15:B19) -> 1502375.481 | C20: 1717268.485 | D20: 1765506.615 | E20: 2531932.609 | F20: 2340960.284 | G20: 1759269.165 | H20: 1711596 | I20: 1745827.92
A21: System Renewal
A22: Pole Replacement Program | B22: 115417.24 | C22: 194333.09 | D22: 478275.39 | E22: 193281.34 | F22: 335897.91 | G22: 513973.3 | H22: 460478.0815 | I22: 114061.6653
A23: O/H Reactive Replacements | B23: 110554.22 | C23: 6907.59 | D23: 0 | E23: 6144.66 | F23: 0 | G23: 104563 | H23: 80784 | I23: 82399.68
A24: U/G Reactive Replacements | B24: 8784.83 | C24: 53158.76 | D24: 10764.99 | E24: 0 | F24: 6890.12 | G24: 0 | H24: 63689.82 | I24: 64963.6164
A25: Install/Replace Load Breaks | B25: 34236.23 | C25: 3612.47 | D25: 0 | E25: 0 | F25: 0 | G25: 64119.03 | H25: 58752 | I25: 59927.04
A26: Direct Buried Cable Replacement Program | B26: 346712.35 | C26: 1100768.42 | D26: 851289.67 | E26: 299669.87 | F26: 88732.54 | G26: 43581.51 | H26: 1229416 | I26: 2224409.82
A27: PMH Replacement Program | B27: 162023.82 | C27: 27179.84 | D27: 122012.34 | E27: 63629.82 | F27: 55208.5 | G27: 135236.26 | H27: 144432 | I27: 147320.64
A28: Single Voltage Utility - Conversion | B28: 423195.7 | C28: 929489.83 | D28: 935091.01 | E28: 852181.79 | F28: 547173.54 | G28: 85941.86 | H28: 617735.1 | I28: 0
A29: Replacement - Lithgow Livefront Transformers | B29: 0 | C29: 0 | D29: 389704.21 | E29: 0 | F29: 0 | G29: 0 | H29: 0 | I29: 0
A30: Conversion - Monopoly Subdivisions | B30: 0 | C30: 0 | D30: 0 | E30: 675209.74 | F30: 259837.28 | G30: 312264.4 | H30: 0 | I30: 0
A31: Insulator Replacement | B31: 0 | C31: 0 | D31: 0 | E31: 0 | F31: 132485.59 | G31: 145399.21 | H31: 0 | I31: 0
A32: Conversion - Howard/6th Concession | B32: 0 | C32: 0 | D32: 0 | E32: 0 | F32: 744587.06 | G32: 0 | H32: 0 | I32: 0
A33: Primary Cable Replacement | B33: 522882.07 | C33: 24495.44 | D33: 0 | E33: 713294.69 | F33: 113618.28 | G33: 93316.45 | H33: 0 | I33: 0
A34: Transformer Replacement Program | B34: 57307.58 | C34: 47978.01 | D34: 108721.04 | E34: 143404.86 | F34: 178077.77 | G34: 424719.84 | H34: 0 | I34: 0
A35: Miscellaneous | B35: 51431.09 | C35: 310091.75 | D35: 216870.25 | E35: 65156.89 | F35: 232674.9754 | G35: 202228.0792 | H35: 0 | I35: 0
A36: Sub-Total | B36: =SUM(B22:B35) -> 1832545.13 | C36: 2698015.2 | D36: 3112728.9 | E36: 3011973.66 | F36: 2695183.565 | G36: 2125342.939 | H36: 2655287.002 | I36: 2693082.462
A37: System Service
A38: FIT & Generation Connections | B38: 463598.95 | C38: 30227.04 | D38: 91689.4 | E38: 25824.33 | F38: 67576.56 | G38: 80084.67 | H38: 188892 | I38: 181369.76
A39: HONI Asset Purchases | B39: 468859.43 | C39: 232122.64 | D39: 13222.39 | E39: 89077.37 | F39: 21142.23 | G39: 0 | H39: 170360 | I39: 89474
A40: Metering Upgrade & Replacement Program | B40: 0 | C40: 56878.17 | D40: 100139.27 | E40: 7711.98 | F40: 8459.73 | G40: 156282 | H40: 163037 | I40: 166297
A41: Smart Metering Initiative | B41: 0 | C41: 515558.62 | D41: 0 | E41: 0 | F41: 2051074.74 | G41: 87921.42 | H41: 0 | I41: 0
A42: Self Healing Grid Reclosers | B42: 0 | C42: 0 | D42: 0 | E42: 61005.06 | F42: 0 | G42: 633056.54 | H42: 264843 | I42: 270139.86
A43: Miscellaneous | B43: 7313.77 | C43: 50648.79 | D43: -20282.22 | E43: -7116.59 | F43: 47571.47033 | G43: 48018.65618 | H43: 0 | I43: 0
A44: Sub-Total | B44: =SUM(B38:B43) -> 939772.15 | C44: 885435.26 | D44: 184768.84 | E44: 176502.15 | F44: 2195824.73 | G44: 1005363.286 | H44: 787132 | I44: 707280.62
A45: General Plant
A46: Bldgs & Fixtures | B46: 13214.32 | C46: 844622.03 | D46: 21981.29 | E46: 0 | F46: 48913.88 | G46: 42469.2 | H46: 286800 | I46: 370000
A47: Office Furniture/Equip | B47: 0 | C47: 29967.14 | D47: 6710.53 | E47: 876.02 | F47: 5979.96 | G47: 20672.28 | H47: 10000 | I47: 10000
A48: Computer Equipment HW | B48: 27112.12 | C48: 0 | D48: 13500.82 | E48: 25333.27 | F48: 5837.03 | G48: 117328.64 | H48: 356150 | I48: 161809
A49: Computer Software | B49: 17980.57 | C49: 34571.74 | D49: 52988.9 | E49: 166960.2 | F49: 17042.99 | G49: 4631.97 | H49: 254500 | I49: 115000
A50: Transportation Equip | B50: 156970.25 | C50: 198529.17 | D50: 307515.85 | E50: 248438.06 | F50: 401243.99 | G50: 136661.55 | H50: 487000 | I50: 270000
A51: Tools & Equipment | B51: 35577.43 | C51: 163983.25 | D51: 47414.85 | E51: 45486.09 | F51: 68450.57 | G51: 62364.97 | H51: 110000 | I51: 110000
A52: Miscellaneous | B52: 0 | C52: 0 | D52: 0 | E52: 0 | F52: 0 | G52: 0 | H52: 0 | I52: 0
A53: Sub-Total | B53: =SUM(B46:B52) -> 250854.69 | C53: 1271673.33 | D53: 450112.24 | E53: 487093.64 | F53: 547468.42 | G53: 384128.61 | H53: 1504450 | I53: 1036809
A54: Miscellaneous
A55: Total | B55: =SUMPRODUCT(--($A14:$A54="Sub-Total"), B$14:B$54)+B54 -> 4525547.451 | C55: 6572392.275 | D55: 5513116.595 | E55: 6207502.059 | F55: 7779437 | G55: 5274104 | H55: 6658465.002 | I55: 6183000.002
A56: Less Renewable Generation Facility Assets and Other Non-Rate-Regulated Utility Assets (input as negative)
A57: Total | B57: =B55+B56 -> 4525547.451 | C57: 6572392.275 | D57: 5513116.595 | E57: 6207502.059 | F57: 7779437 | G57: 5274104 | H57: 6658465.002 | I57: 6183000.002
A59: Notes:
A61: 1 Please provide a breakdown of the major components of each capital project undertaken in each year. Please ensure that all projects below the materiality threshold are included in the miscellaneous line. Add more projects as required.
A62: 2 The applicant should group projects appropriately and avoid presentations that result in classification of significant components of the capital budget in the miscellaneous category.

Sheet App.2-AB_Capital Expenditures
S1: File Number: | U1: =EBNUMBER -> EB-2017-0039
S2: Exhibit: | U2: 2
S3: Attachment | U3: 2-D
S4: Page: | U4: 1 of 1
S6: Date: | U6: August 28th, 2017
A8: Appendix 2-AB
A9: Table 2 - Capital Expenditure Summary from Chapter 5 Consolidated Distribution System Plan Filing Requirements
A11: First year of Forecast Period: | B11: =TestYear -> 2018
A12: CATEGORY | B12: Historical Period (previous plan1 & actual) | Z12: Forecast Period (planned)
B13: =E13-1 -> 2010 | E13: =H13-1 -> 2011 | H13: =K13-1 -> 2012 | K13: =N13-1 -> 2013 | N13: =Q13-1 -> 2014 | Q13: =T13-1 -> 2015 | T13: =W13-1 -> 2016 | W13: =Z13-1 -> 2017 | Z13: =B11 -> 2018 | AA13: =Z13+1 -> 2019 | AB13: =AA13+1 -> 2020 | AC13: 2021 | AD13: 2022
B14: Plan | C14: Actual | D14: Var | E14: Plan | F14: Actual | G14: Var | H14: Plan | I14: Actual | J14: Var | K14: Plan | L14: Actual | M14: Var | N14: Plan | O14: Actual | P14: Var | Q14: Plan | R14: Actual | S14: Var | T14: Plan | U14: Actual | V14: Var | W14: Plan | X14: Actual2 | Y14: Var
B15: $ '000 | D15: % | E15: $ '000 | G15: % | H15: $ '000 | J15: % | K15: $ '000 | M15: % | N15: $ '000 | P15: % | Q15: $ '000 | S15: % | T15: $ '000 | V15: % | W15: $ '000 | Y15: % | Z15: $ '000
A16: System Access | B16: Note 1 | C16: 1927.755359 | D16: =IF(ISERROR((C16-B16)/B16),"--",(C16-B16)/B16) -> -- | E16: Note 1 | F16: 1502.375481 | G16: =IF(ISERROR((F16-E16)/E16),"--",(F16-E16)/E16) -> -- | H16: Note 1 | I16: 1717.268485 | J16: =IF(ISERROR((I16-H16)/H16),"--",(I16-H16)/H16) -> -- | K16: Note 1 | L16: 1765.506615 | M16: =IF(ISERROR((L16-K16)/K16),"--",(L16-K16)/K16) -> -- | N16: Note 1 | O16: 2531.932609 | P16: =IF(ISERROR((O16-N16)/N16),"--",(O16-N16)/N16) -> -- | Q16: Note 1 | R16: 2340.960284 | S16: =IF(ISERROR((R16-Q16)/Q16),"--",(R16-Q16)/Q16) -> -- | T16: Note 1 | U16: 1759.269165 | V16: =IF(ISERROR((U16-T16)/T16),"--",(U16-T16)/T16) -> -- | W16: Note 1 | X16: 1711.596 | Y16: =IF(ISERROR((X16-W16)/W16),"--",(X16-W16)/W16) -> -- | Z16: 1745.82792 | AA16: 1780.744 | AB16: 1816.359 | AC16: 1852.687 | AD16: 1834.88257
A17: System Renewal | B17: Note 1 | C17: 1674.855509 | D17: =IF(ISERROR((C17-B17)/B17),"--",(C17-B17)/B17) -> -- | E17: Note 1 | F17: 1832.54513 | G17: =IF(ISERROR((F17-E17)/E17),"--",(F17-E17)/E17) -> -- | H17: Note 1 | I17: 2698.0152 | J17: =IF(ISERROR((I17-H17)/H17),"--",(I17-H17)/H17) -> -- | K17: Note 1 | L17: 3112.7289 | M17: =IF(ISERROR((L17-K17)/K17),"--",(L17-K17)/K17) -> -- | N17: Note 1 | O17: 3011.97366 | P17: =IF(ISERROR((O17-N17)/N17),"--",(O17-N17)/N17) -> -- | Q17: Note 1 | R17: 2695.183565 | S17: =IF(ISERROR((R17-Q17)/Q17),"--",(R17-Q17)/Q17) -> -- | T17: Note 1 | U17: 2125.342939 | V17: =IF(ISERROR((U17-T17)/T17),"--",(U17-T17)/T17) -> -- | W17: Note 1 | X17: 2655.287002 | Y17: =IF(ISERROR((X17-W17)/W17),"--",(X17-W17)/W17) -> -- | Z17: 2693.082462 | AA17: 1362.252 | AB17: 2303.723 | AC17: 2247.816 | AD17: 2194.752733
A18: System Service | B18: Note 1 | C18: 692.6305673 | D18: -- | E18: Note 1 | F18: 939.77215 | G18: -- | H18: Note 1 | I18: 885.43526 | J18: -- | K18: Note 1 | L18: 184.76884 | M18: -- | N18: Note 1 | O18: 176.50215 | P18: -- | Q18: Note 1 | R18: 2195.82473 | S18: -- | T18: Note 1 | U18: 1005.363286 | V18: -- | W18: Note 1 | X18: 787.132 | Y18: -- | Z18: 707.28062 | AA18: 2186.065 | AB18: 1125.546 | AC18: 1243.057 | AD18: 1341.796898
A19: General Plant | B19: Note 1 | C19: 959.5454039 | D19: -- | E19: Note 1 | F19: 250.85469 | G19: -- | H19: Note 1 | I19: 1271.67333 | J19: -- | K19: Note 1 | L19: 450.11224 | M19: -- | N19: Note 1 | O19: 487.09364 | P19: -- | Q19: Note 1 | R19: 547.46842 | S19: -- | T19: Note 1 | U19: 384.12861 | V19: -- | W19: Note 1 | X19: 1504.45 | Y19: -- | Z19: 1036.809 | AA19: 855.6 | AB19: 976.212 | AC19: 926.836 | AD19: 967.841535
A20: TOTAL EXPENDITURE | B20: =SUM(B16:B19) -> 0 | C20: =SUM(C16:C19) -> 5254.78684 | D20: -- | E20: =SUM(E16:E19) -> 0 | F20: =SUM(F16:F19) -> 4525.547451 | G20: -- | H20: =SUM(H16:H19) -> 0 | I20: =SUM(I16:I19) -> 6572.392275 | J20: -- | K20: =SUM(K16:K19) -> 0 | L20: =SUM(L16:L19) -> 5513.116595 | M20: -- | N20: =SUM(N16:N19) -> 0 | O20: =SUM(O16:O19) -> 6207.502059 | P20: -- | Q20: =SUM(Q16:Q19) -> 0 | R20: =SUM(R16:R19) -> 7779.437 | S20: -- | T20: =SUM(T16:T19) -> 0 | U20: =SUM(U16:U19) -> 5274.104 | V20: -- | W20: =SUM(W16:W19) -> 0 | X20: =SUM(X16:X19) -> 6658.465002 | Y20: -- | Z20: =SUM(Z16:Z19) -> 6183.000002 | AA20: =SUM(AA16:AA19) -> 6184.661 | AB20: =SUM(AB16:AB19) -> 6221.84 | AC20: =SUM(AC16:AC19) -> 6270.396 | AD20: =SUM(AD16:AD19) -> 6339.273735
A21: System O&M | B21: Note 1 | C21: 2264 | D21: -- | E21: Note 1 | F21: 2618 | G21: -- | H21: Note 1 | I21: 3203 | J21: -- | K21: Note 1 | L21: 2722 | M21: -- | N21: Note 1 | O21: 2994 | P21: -- | Q21: Note 1 | R21: 3141 | S21: -- | T21: Note 1 | U21: 3171 | V21: -- | W21: Note 1 | X21: 2794 | Y21: -- | Z21: 3067 | AA21: 3116 | AB21: 3162 | AC21: 3213 | AD21: 3264
A23: Notes to the Table:
A24: 1. Historical “previous plan” data is not required unless a plan has previously been filed. However, use the last Board-approved, at least on a Total (Capital) Expenditure basis for the last cost of service rebasing year, and the applicant should include their planned budget in each subsequent historical year up to and including the Bridge Year.
A25: 2. Indicate the number of months of 'actual' data included in the last year of the Historical Period (normally a 'bridge' year): | J25: 0
A27: Explanatory Notes on Variances (complete only if applicable)
A28: Notes on shifts in forecast vs. historical budgets by category
A29: 1. Historical “previous plan” data is not required unless a plan has previously been filed
A31: Notes on year over year Plan vs. Actual variances for Total Expenditures
A34: Notes on Plan vs. Actual variance trends for individual expenditure categories

Sheet App.2-AC_Customer Engagement
B1: File Number: | C1: =EBNUMBER -> EB-2017-0039
B2: Exhibit: | C2: 1
B3: Tab: | C3: 1-F
B4: Page: | C4: 1 of 1
B6: Date: | C6: August 28th, 2017
A8: Appendix 2-AC
A9: Customer Engagement Activities Summary
A11: Provide a list of customer engagement activities | B11: Provide a list of customer needs and preferences identified through each engagement activity | C11: Actions taken to respond to identified needs and preferences. If no action was taken, explain why.
A12: Customer phone calls related to new accounts, billing inquiries, general inquiries, etc. (Ongoing) | B12: 1. Importance of low/affordable rates; 2. Importance of reliability; 3. Importance of customer service and availability of information; 4. Identified the need for assistance with comprehending complexity of electricity sector; 5. Need for social media presence to respond to customer inquiries; | C12: 1. Continue to focus on realizing efficiencies, keeping any increases in line with inflation; 2. Continue to focus on the Self-Healing Grid and vegetation management initiatives as well as the other programs identified in EPLC's DSP to further reduce customer outages and improve reliability; 3. Enhancements to EPLC's website, bill presentment; 4. Enhancements to EPLC's website, bill presentment and face to face meetings where necessary; 5. Added profiles on Facebook and twitter to better outreach and communicate with customers;
A13: Customer phone calls related to outages, reliability, maintenance projects, vegetation management, conversion work, etc. (Ongoing) | B13: 1. Importance of reliability; 2. Importance of availability of information, especially relating to outage information; 3. Need for social media presence to respond to customer inquries; | C13: 1. Continue to focus on the Self-Healing Grid and vegetation management initiatives as well as the other programs identified in EPLC's DSP to further reduce customer outages and improve reliability; 2. Enhancements to EPLC's website, update to EPLC's online outage information system where updates are sent via social media to following customers and local stakeholders; 3. Added profiles on Facebook and twitter to better outreach and communicate with customers;
A14: Bill inserts and semi-annual update brochures (Ongoing) | B14: 1. Importance of need for assistance with comprehending complexity of electricity sector; | C14: 1. Enhancements to EPLC's website, bill presentment;
A15: Community Conservation Events (Ongoing) | B15: 1. Importance of low/affordable rates; 2. Importance of reliability; 3. Importance of customer service and availability of information; 4. Importance of need for assistance with comprehending complexity of electricity sector; 5. Need for social media presence to respond to customer inquiries; 6. Identified need to assist customers through the application process for various CDM initiatives; | C15: 1. Continue to focus on realizing efficiencies, keeping any increases in line with inflation; 2. Continue to focus on the Self-Healing Grid and vegetation management initiatives as well as the other programs identified in EPLC's DSP to further reduce customer outages and improve reliability; 3. Enhancements to EPLC's website, bill presentment; 4. Enhancements to EPLC's website, bill presentment and face to face meetings where necessary; 5. Added profiles on Facebook and twitter to better outreach and communicate with customers; 6. CDM department now completes applications with or on behalf of customers where requested. Detailed walkthroughs also provided on an as-needed basis;
A16: School / Children Conservation & Electricity Awareness Events (Ongoing) | B16: 1. Importance of ongoing education of children and schools about electricity awareness/safety and conservation | C16: 1. Implemented ongoing school conservation & electricity awareness campaign that educates children in all grade schools within EPLC shareholder communities about the importance of electrical safety and conservation;
A17: Website & social media (Ongoing) | B17: 1. Importance of reliability; 2. Importance of customer service and availability of information; 3. Importance of need for assistance with comprehending complexity of electricity sector; 4. Need for social media presence to respond to customer inquiries; | C17: 1. Continue to focus on the Self-Healing Grid and vegetation management initiatives as well as the other programs identified in EPLC's DSP to further reduce customer outages and improve reliability; 2. Enhancements to EPLC's website, bill presentment; 3. Enhancements to EPLC's website, bill presentment and face to face meetings where necessary; 4. Added profiles on Facebook and twitter to better outreach and communicate with customers;
A18: St. Clair College Powerline Maintainer Program (Ongoing) | B18: 1. Identified the need for the local community to train and retain skilled people available to the enter the workforce; | C18: 1. Received senior management buy-in and support; 2. Promoted the program locally; 3. Hired apprentices from the program;
A19: OEL meetings and channel partner / contractor events (Ongoing) | B19: 1. Identified the need to inform local contractors of electrical safety and EPLC's Conditions of Service; 2. Identified the need to inform local contractors of conservation initiatives that available provincially; | C19: 1. Continue participating in OEL events and promote EPLC standards and electricity safety; 2. Continue promoting energy conservation initiatives and any relevant updates or changes to programs;
A20: Conservation & Demand Management Outreach - Residential (Ongoing) | B20: 1. Importance of low/affordable rates; 2. Importance of reliability; 3. Importance of customer service and availability of information; 4. Importance of need for assistance with comprehending complexity of electricity sector; 5. Need for social media presence to respond to customer inquiries; | C20: 1. Continue to focus on realizing efficiencies, keeping any increases in line with inflation; 2. Continue to focus on the Self-Healing Grid and vegetation management initiatives as well as the other programs identified in EPLC's DSP to further reduce customer outages and improve reliability; 3. Enhancements to EPLC's website, bill presentment; 4. Enhancements to EPLC's website, bill presentment and face to face meetings where necessary; 5. Added profiles on Facebook and twitter to better outreach and communicate with customers;
A21: Conservation & Demand Management Outreach - Small Commercial (Ongoing) | B21: 1. Importance of low/affordable rates; 2. Importance of reliability; 3. Importance of customer service and availability of information; 4. Importance of need for assistance with comprehending complexity of electricity sector; 5. Need for social media presence to respond to customer inquiries; 6. Need to offer opportunities and incentives to reduce electricity costs; | C21: 1. Continue to focus on realizing efficiencies, keeping any increases in line with inflation; 2. Continue to focus on the Self-Healing Grid and vegetation management initiatives as well as the other programs identified in EPLC's DSP to further reduce customer outages and improve reliability; 3. Enhancements to EPLC's website, bill presentment; 4. Enhancements to EPLC's website, bill presentment and face to face meetings where necessary; 5. Added profiles on Facebook and twitter to better outreach and communicate with customers; 6. Continue promoting energy conservation initiatives and any relevant updates or changes to programs;
A22: Conservation & Demand Management Outreach - Larger Commercial & Industrial (Ongoing) | B22: 1. Importance of reliability; 2. Importance of power quality; 3. Need to offer opportunities and incentives to reduce electricity costs; | C22: 1. Continue to focus on the Self-Healing Grid and vegetation management initiatives as well as the other programs identified in EPLC's DSP to further reduce customer outages and improve reliability; 2. Implementation of EPLC's SmartMAP toolset with active power quality management tools; 3. Continue promoting energy conservation initiatives and any relevant updates or changes to programs;
A23: Annual customer satisfaction survey (2014) | B23: 1. Importance of reliability; 2. Importance of low/affordable rates; 3. Importance of customer service and availability of information; 4. Importance of power quality; | C23: 1. Continue to focus on the Self-Healing Grid and vegetation management initiatives as well as the other programs identified in EPLC's DSP to further reduce customer outages and improve reliability; 2. Continue to focus on realizing efficiencies, keeping any increases in line with inflation; 3. Enhancements to EPLC's website, bill presentment and face to face meetings, if required; 4. Implementation of EPLC's SmartMAP toolset with active power quality management tools;
A24: Annual customer satisfaction survey (2015) | B24: 1. Importance of low/affordable rates; 2. Importance of reliability; 3. Importance of customer service and availability of information; 4. Importance of power quality; | C24: 1. Continue to focus on realizing efficiencies, keeping any increases in line with inflation; 2. Continue to focus on the Self-Healing Grid and vegetation management initiatives as well as the other programs identified in EPLC's DSP to further reduce customer outages and improve reliability; 3. Enhancements to EPLC's website, bill presentment and face to face meetings, if required; 4. Implementation of EPLC's SmartMAP toolset with active power quality management tools;
A25: Annual customer satisfaction survey (2016) | B25: 1. Importance of low/affordable rates; 2. Importance of reliability; 3. Importance of customer service and availability of information; 4. Importance of power quality; | C25: 1. Continue to focus on realizing efficiencies, keeping any increases in line with inflation; 2. Continue to focus on the Self-Healing Grid and vegetation management initiatives as well as the other programs identified in EPLC's DSP to further reduce customer outages and improve reliability; 3. Enhancements to EPLC's website, bill presentment and face to face meetings, if required; 4. Implementation of EPLC's SmartMAP toolset with active power quality management tools;
A26: Community open house meetings (2017) | B26: 1. Importance of low/affordable rates; 2. Importance of reliability; 3. Importance of customer service and availability of information; 4. Need to offer opportunities and incentives to reduce electricity costs; | C26: 1. Continue to focus on realizing efficiencies, keeping any increases in line with inflation; 2. Continue to focus on the Self-Healing Grid and vegetation management initiatives as well as the other programs identified in EPLC's DSP to further reduce customer outages and improve reliability; 3. Enhancements to EPLC's website, bill presentment and face to face meetings, if required; 4. Continue promoting energy conservation initiatives and any relevant updates or changes to programs;
A27: Innovative DSP customer survey (2017) | B27: 1. Importance of low/affordable rates; 2. Importance of reliability; 3. Importance of customer service and availability of information; 4. Importance of power quality; | C27: 1. Continue to focus on realizing efficiencies, keeping any increases in line with inflation; 2. Continue to focus on the Self-Healing Grid and vegetation management initiatives as well as the other programs identified in EPLC's DSP to further reduce customer outages and improve reliability; 3. Enhancements to EPLC's website, bill presentment and face to face meetings, if required; 4. Implementation of EPLC's SmartMAP toolset with active power quality management tools;
A29: Note: Use "ALT-ENTER" to go to the next line within a cell

Sheet App.2-B_Acctg Instructions
A1: General Instructions to MIFRS Appendices
A2: Types of Schedules to File
A4: The purpose of this tab is to provide general instructions. The specific instructions to each appendix are listed in footnotes of each appendix.
A6: The typical applicant is expected to have made capitalization and depreciation policy changes under CGAAP as permitted by the Board on January 1, 2012 or mandated by the Board by January 1, 2013, and adopted IFRS for reporting purposes on January 1, 2015 (transition date January 1, 2014). Some distributors filing for 2018 rates have rebased with these accounting changes reflected in a prior rebasing application. If that is the case, information relating to pre-accounting policy changes is not generally required. The information to be provided by applicants will depend on when the accounting policy changes were made and when they last rebased. In general, applicants should provide the following information in the appendices:
E9: Reflecting Accounting Policy Changes in Current Application | G9: Reflected Accounting Policy Changes in Prior Application3
E10: Accounting Policy Changes in 2012 and Adopted IFRS in 2015 | F10: Accounting Policy Changes in 2013 and Adopted IFRS in 2015 | G10: Adopted IFRS in 2015
A11: Information to be filed in 2018 CoS Application | B11: 2018 | C11: Test | E11: MIFRS | F11: MIFRS | G11: MIFRS
B12: 2017 | C12: Bridge | E12: MIFRS | F12: MIFRS | G12: MIFRS
B13: 2016 | C13: Historical | E13: MIFRS | F13: MIFRS | G13: MIFRS
B14: 2015 | C14: Historical | E14: MIFRS | F14: MIFRS | G14: MIFRS
B15: 2014 | C15: Historical | E15: MIFRS and Revised CGAAP1 | F15: MIFRS and Revised CGAAP1 | G15: MIFRS and Revised CGAAP1
B16: 2013 | C16: Historical | E16: Revised CGAAP | F16: CGAAP and Revised CGAAP2 | G16: N/A
B17: 2012 | C17: Historical | E17: CGAAP and Revised CGAAP2 | F17: N/A | G17: N/A
A19: 1) For the transition year (2014), the applicant may file two appendices, one under Revised CGAAP and one under MIFRS, depending on the materiality of impacts. See the specific instructions under each appendix below for further details.
A20: 2) For applicants that are reflecting accounting policy changes for the first time in a rebasing application, the applicant must file two appendices in the year that the applicant implemented changes to its capitalization and depreciation policies (2012 or 2013), one before and one after the policy changes.
A21: 3) Applicants should provide CGAAP and Revised CGAAP schedules (i.e. as indicated in the first two columns of the above table) to support balances in Account 1576 if the account has yet to be disposed of.
A24: Appendix 2-BA - Fixed Asset Schedule
A26: Applicants are to provide Appendix 2-BA in accordance with the years and corresponding accounting standards noted in the above table to provide a year over year continuity in fixed assets.
A27: For the transition year (2014), the applicant should file two appendices, one under Revised CGAAP and one under MIFRS if the change between Revised CGAAP and MIFRS is material. If the change from the accounting standards is not material, the applicant may choose to only provide one appendix under MIFRS. However, the applicant must also indicate the fixed asset net book value balance under Revised CGAAP, the total dollar value of the change and explain why it is not material.
A31: The applicant must establish the continuity of historic cost for gross assets and accumulated depreciation by asset class by ensuring that the opening balance in the year agrees to the closing balance in the prior year.
A34: Appendix 2-Cx - Depreciation and Amortization
A36: Applicants are to provide Appendix 2-C in accordance with the years and corresponding accounting standards listed in the above table.
A37: Appendix 2-C is to be used under all three of the scenarios presented in the table above. In the appendix, the applicant will need to indicate which scenario applies. The appendix is to be duplicated for each year and accounting standard required under the scenario.
A38: Depreciation accounting policy changes were mandated by the Board by January 1, 2013. In general, no further changes to an applicant's depreciation policy (i.e. assets' service lives) are expected after the Board mandated changes by January 1, 2013. If the applicant has made any changes to its depreciation policy subsequent to the Board mandated changes, for the year of the change, applicants must complete Appendix 2-C before and after the change. Applicants must also explain the nature of the change, the reason for the change, quantify the impact of the change, and quantify the depreciation expense before and after the change.
A40: Appendix 2-E - Account 1575, IFRS-CGAAP Transitional PP&E Amounts (2-EA), Account 1576, Accounting Changes Under CGAAP (2-EB, 2-EC)
A42: 1) For an applicant that has a balance in Account 1576 to dispose:
A43: · | B43: If an applicant changed capitalization and depreciation policies effective January 1, 2012, the applicant must complete Appendix 2-EB
A44: · | B44: If an applicant changed capitalization and depreciation policies effective January 1, 2013, the applicant must complete Appendix 2-EC
A46: 2) For an applicant that has a balance in Account 1575 to dispose:
A47: · | B47: The applicant must complete 2-EA
A48: If the applicant did not make any further PP&E accounting policy changes beyond the capitalization and depreciation policy changes as mandated by the Board by January 1, 2013 (i.e. no further changes made on transition to IFRS), the applicant must indicate this and does not need to complete Appendix 2-EA.
A52: Appendix 2-Y - Summary of Impacts to Revenue Requirement from Transition to MIFRS
A54: An applicant must provide a summary of the dollar impacts of MIFRS to each component of the revenue requirement (e.g. rate base, operating costs, etc.), including the overall impact on the proposed revenue requirement. Accordingly, the applicant must identify financial differences and resulting revenue requirement impacts arising from the adoption of MIFRS as compared to CGAAP. If the applicant is reflecting the changes in capitalization and depreciation policies for the first time in a rebasing application, then a comparison between MIFRS and CGAAP before the change in accounting policies should be completed. If the applicant changed capitalization and depreciation policies and reflected these changes in a prior rebasing application, then a comparison between MIFRS and CGAAP after the change in accounting policies should be completed.

Sheet App.2-BA_Fixed Asset Cont
L1: File Number: | M1: =EBNUMBER -> EB-2017-0039
L2: Exhibit: | M2: 2
L3: Tab: | M3: 2-A
L4: Page: | M4: 1 of 10
L6: Date: | M6: August 28th, 2017
A8: Appendix 2-BA
A9: Fixed Asset Continuity Schedule 1
E11: Accounting Standard | F11: CGAAP
E12: Year | F12: 2010
D14: Cost | J14: Accumulated Depreciation
A15: CCA Class 2 | B15: OEB Account 3 | C15: Description 3 | D15: Opening Balance | E15: Additions 4 | F15: Disposals 6 | G15: Closing Balance | I15: Opening Balance | J15: Additions | K15: Disposals 6 | L15: Closing Balance | M15: Net Book Value
A16: 12 | B16: 1611 | C16: Computer Software (Formally known as Account 1925) | D16: 588577.87 | E16: 449119.17 | G16: =D16+E16+F16 -> 1037697.04 | I16: -334168.64 | J16: -150109.73 | L16: =I16+J16+K16 -> -484278.37 | M16: =G16+L16 -> 553418.67
A17: CEC | B17: 1612 | C17: Land Rights (Formally known as Account 1906) | D17: 62518.55 | E17: 35060.94 | G17: =D17+E17+F17 -> 97579.49 | I17: -3399.1 | J17: -1600.99 | L17: =I17+J17+K17 -> -5000.09 | M17: =G17+L17 -> 92579.4
A18: N/A | B18: 1805 | C18: Land | D18: 47899.33 | E18: 0 | G18: =D18+E18+F18 -> 47899.33 | L18: =I18+J18+K18 -> 0 | M18: =G18+L18 -> 47899.33
A19: 47 | B19: 1808 | C19: Buildings | G19: =D19+E19+F19 -> 0 | L19: =I19+J19+K19 -> 0 | M19: =G19+L19 -> 0
A20: 13 | B20: 1810 | C20: Leasehold Improvements | G20: 0 | L20: 0 | M20: 0
A21: 47 | B21: 1815 | C21: Transformer Station Equipment >50 kV | G21: 0 | L21: 0 | M21: 0
A22: 47 | B22: 1820 | C22: Distribution Station Equipment <50 kV | D22: 102721.63 | E22: 0 | G22: 102721.63 | I22: -18378.66 | J22: -4773.41 | L22: -23152.07 | M22: 79569.56
A23: 47 | B23: 1825 | C23: Storage Battery Equipment | G23: 0 | L23: 0 | M23: 0
A24: 47 | B24: 1830 | C24: Poles, Towers & Fixtures | D24: 5278538.27 | E24: 453100.82 | G24: 5731639.09 | I24: -528986.24 | J24: -114466.83 | L24: -643453.07 | M24: 5088186.02
A25: 47 | B25: 1835 | C25: Overhead Conductors & Devices | D25: 5161417.34 | E25: 334495.69 | G25: 5495913.03 | I25: -2263290.23 | J25: -312857.4 | L25: -2576147.63 | M25: 2919765.4
A26: 47 | B26: 1840 | C26: Underground Conduit | D26: 8233530.66 | E26: 289705.68 | G26: 8523236.34 | I26: -1575659.93 | J26: -210276.35 | L26: -1785936.28 | M26: 6737300.06
A27: 47 | B27: 1845 | C27: Underground Conductors & Devices | D27: 9568801.08 | E27: 721048.89 | G27: 10289849.97 | I27: -3172818.38 | J27: -450574.54 | L27: -3623392.92 | M27: 6666457.05
A28: 47 | B28: 1850 | C28: Line Transformers | D28: 12047174.76 | E28: 1309498.85 | G28: 13356673.61 | I28: -3280457.22 | J28: -528294.98 | L28: -3808752.2 | M28: 9547921.41
A29: 47 | B29: 1855 | C29: Services (Overhead & Underground) | D29: 6285634.85 | E29: 532935.43 | G29: 6818570.28 | I29: -1686526.37 | J29: -277134.8 | L29: -1963661.17 | M29: 4854909.11
A30: 47 | B30: 1860 | C30: Meters | D30: 3432271.52 | E30: 525391.87 | G30: 3957663.39 | I30: -805475.26 | J30: -148395.34 | L30: -953870.6 | M30: 3003792.79
A31: 47 | B31: 1860 | C31: Meters (Smart Meters) | G31: 0 | L31: 0 | M31: 0
A32: N/A | B32: 1905 | C32: Land | D32: 191700 | E32: 0 | F32: -1581 | G32: 190119 | L32: 0 | M32: 190119
A33: 47 | B33: 1908 | C33: Buildings & Fixtures | D33: 1606059.79 | E33: 1080 | G33: 1607139.79 | I33: -156568 | J33: -78511.6 | L33: -235079.6 | M33: 1372060.19
A34: 13 | B34: 1910 | C34: Leasehold Improvements | G34: 0 | L34: 0 | M34: 0
A35: 8 | B35: 1915 | C35: Office Furniture & Equipment (10 years) | D35: 128881.01 | E35: 30533.68 | G35: 159414.69 | I35: -57170.83 | J35: -22199.71 | L35: -79370.54 | M35: 80044.15
A36: 8 | B36: 1915 | C36: Office Furniture & Equipment (5 years) | G36: 0 | L36: 0 | M36: 0
A37: 10 | B37: 1920 | C37: Computer Equipment - Hardware | D37: 61473.55 | E37: 189929.87 | G37: 251403.42 | I37: -35038.78 | J37: -33616.42 | L37: -68655.2 | M37: 182748.22
A38: 45 | B38: 1920 | C38: Computer Equip.-Hardware(Post Mar. 22/04) | G38: 0 | L38: 0 | M38: 0
A39: 45.1 | B39: 1920 | C39: Computer Equip.-Hardware(Post Mar. 19/07) | G39: 0 | L39: 0 | M39: 0
A40: 10 | B40: 1930 | C40: Transportation Equipment | D40: 759025.89 | E40: 330899.77 | F40: -107097 | G40: 982828.66 | I40: -205601.9 | J40: -92823.43 | K40: 107097.14 | L40: -191328.19 | M40: 791500.47
A41: 8 | B41: 1935 | C41: Stores Equipment | D41: 29711.37 | G41: 29711.37 | I41: -8434.68 | J41: -4448.03 | L41: -12882.71 | M41: 16828.66
A42: 8 | B42: 1940 | C42: Tools, Shop & Garage Equipment | D42: 174134.01 | E42: 40834.18 | G42: 214968.19 | I42: -48884.51 | J42: -25181.42 | L42: -74065.93 | M42: 140902.26
A43: 8 | B43: 1945 | C43: Measurement & Testing Equipment | D43: 43186.29 | E43: 11152 | G43: 54338.29 | I43: -6457.94 | J43: -5442.73 | L43: -11900.67 | M43: 42437.62
A44: 8 | B44: 1950 | C44: Power Operated Equipment | G44: 0 | L44: 0 | M44: 0
A45: 8 | B45: 1955 | C45: Communications Equipment | D45: 197224.16 | G45: 197224.16 | I45: -89671.18 | J45: -36740.91 | L45: -126412.09 | M45: 70812.07
A46: 8 | B46: 1955 | C46: Communication Equipment (Smart Meters) | G46: 0 | L46: 0 | M46: 0
A47: 8 | B47: 1960 | C47: Miscellaneous Equipment | G47: 0 | L47: 0 | M47: 0
A48: 47 | B48: 1970 | C48: Load Management Controls Customer Premises | G48: 0 | L48: 0 | M48: 0
A49: 47 | B49: 1975 | C49: Load Management Controls Utility Premises | G49: 0 | L49: 0 | M49: 0
A50: 47 | B50: 1980 | C50: System Supervisor Equipment | G50: 0 | L50: 0 | M50: 0
A51: 47 | B51: 1985 | C51: Miscellaneous Fixed Assets | G51: 0 | L51: 0 | M51: 0
A52: 47 | B52: 1990 | C52: Other Tangible Property | G52: 0 | L52: 0 | M52: 0
A53: 47 | B53: 1995 | C53: Contributions & Grants | D53: -8396091 | E53: -1667247 | G53: -10063338 | I53: 157227 | J53: 219928 | L53: 377155 | M53: -9686183
A54: 47 | B54: 2440 | C54: Deferred Revenue5
G55: 0 | L55: 0 | M55: 0
C56: Sub-Total | D56: =SUM(D16:D55) -> 45604390.93 | E56: =SUM(E16:E55) -> 3587539.84 | F56: =SUM(F16:F55) -> -108678 | G56: =SUM(G16:G55) -> 49083252.77 | I56: =SUM(I16:I55) -> -14119760.85 | J56: =SUM(J16:J55) -> -2277520.62 | K56: =SUM(K16:K55) -> 107097.14 | L56: =SUM(L16:L55) -> -16290184.33 | M56: =SUM(M16:M55) -> 32793068.44
C57: Less Socialized Renewable Energy Generation Investments (input as negative) | G57: =D57+E57+F57 -> 0 | L57: =I57+J57+K57 -> 0 | M57: =G57+L57 -> 0
C58: Less Other Non Rate-Regulated Utility Assets (input as negative) | G58: 0 | L58: 0 | M58: 0
C59: Total PP&E | D59: =SUM(D56:D58) -> 45604390.93 | E59: =SUM(E56:E58) -> 3587539.84 | F59: -108678 | G59: 49083252.77 | I59: =SUM(I56:I58) -> -14119760.85 | J59: -2277520.62 | K59: 107097.14 | L59: -16290184.33 | M59: 32793068.44
C60: Depreciation Expense adj. from gain or loss on the retirement of assets (pool of like assets), if applicable6
C61: Total | J61: =J59+J60 -> -2277520.62
I63: Less: Fully Allocated Depreciation
A64: 10 | C64: Transportation | I64: Transportation | K64: -89667.4
A65: 8 | C65: Stores Equipment | I65: Stores Equipment
I66: Net Depreciation | K66: =J61-K64-K65 -> -2187853.22
A68: Notes:
A70: 1 | B70: Tables in the format outlined above covering all fixed asset accounts should be submitted for the Test Year, Bridge Year and all relevant historical years. At a minimum , the applicant must provide data for the earlier of: 1) all historical years back to its last rebasing; or 2) at least three years of historical actuals, in addition to Bridge Year and Test Year forecasts.
A73: 2 | B73: The "CCA Class" for fixed assets should agree with the CCA Class used for tax purposes in Tax Returns. Fixed Assets sub-components may be used where the underlying asset components are classified under multiple CCA Classes for tax purposes. If an applicant uses any different classes from those shown in the table, an explanation should be provided. (also see note 3).
A76: 3 | B76: The table may need to be customized for a utility's asset categories or for any new asset accounts announced or authorized by the Board.
A78: 4 | B78: The additions in column (E) must not include construction work in progress (CWIP).
A80: 5 | B80: Effective on the date of IFRS adoption, customer contributions will no longer be recorded in Account 1995 Contributions & Grants, but will be recorded in Account 2440, Deferred Revenues.
A82: 6 | B82: The applicant must ensure that all asset disposals have been clearly identified in the Chapter 2 Appendices for all historic, bridge and test years. Where a distributor for general financial reporting purposes under IFRS has accounted for the amount of gain or loss on the retirement of assets in a pool of like assets as a charge or credit to income, for reporting and rate application filings, the distributor shall reclassify such gains and losses as depreciation expense, and disclose the amount separately.
L86: File Number: | M86: =EBNUMBER -> EB-2017-0039
L87: Exhibit: | M87: 2
L88: Tab: | M88: 2-A
L89: Page: | M89: 2 of 10
L91: Date: | M91: August 28th, 2017
E93: Accounting Standard | F93: CGAAP
E94: Year | F94: 2011
D96: Cost | J96: Accumulated Depreciation
A97: CCA Class 2 | B97: OEB Account 3 | C97: Description 3 | D97: Opening Balance | E97: Additions 4 | F97: Disposals 6 | G97: Closing Balance | I97: Opening Balance | J97: Additions | K97: Disposals 6 | L97: Closing Balance | M97: Net Book Value
A98: 12 | B98: 1611 | C98: Computer Software (Formally known as Account 1925) | D98: 1037697.04 | E98: -91368.43 | G98: =D98+E98+F98 -> 946328.61 | I98: -484278.37 | J98: -120675.64 | L98: =I98+J98+K98 -> -604954.01 | M98: =G98+L98 -> 341374.6
A99: CEC | B99: 1612 | C99: Land Rights (Formally known as Account 1906) | D99: 97579.49 | E99: 11410.32 | G99: =D99+E99+F99 -> 108989.81 | I99: -5000.09 | J99: -2065.7 | L99: -7065.79 | M99: 101924.02
A100: N/A | B100: 1805 | C100: Land | D100: 47899.33 | E100: 0 | G100: =D100+E100+F100 -> 47899.33 | I100: 0 | L100: 0 | M100: 47899.33
A101: 47 | B101: 1808 | C101: Buildings | D101: 0 | G101: =D101+E101+F101 -> 0 | I101: 0 | L101: 0 | M101: 0
A102: 13 | B102: 1810 | C102: Leasehold Improvements | D102: 0 | G102: 0 | I102: 0 | L102: 0 | M102: 0
A103: 47 | B103: 1815 | C103: Transformer Station Equipment >50 kV | D103: 0 | G103: 0 | I103: 0 | L103: 0 | M103: 0
A104: 47 | B104: 1820 | C104: Distribution Station Equipment <50 kV | D104: 102721.63 | E104: 385 | G104: 103106.63 | I104: -23152.07 | J104: -4116.56 | L104: -27268.63 | M104: 75838
A105: 47 | B105: 1825 | C105: Storage Battery Equipment | D105: 0 | G105: 0 | I105: 0 | L105: 0 | M105: 0
A106: 47 | B106: 1830 | C106: Poles, Towers & Fixtures | D106: 5731639.09 | E106: 274975.59 | G106: 6006614.68 | I106: -643453.07 | J106: -193867.07 | L106: -837320.14 | M106: 5169294.54
A107: 47 | B107: 1835 | C107: Overhead Conductors & Devices | D107: 5495913.03 | E107: 488326 | F107: -300000.36 | G107: 5684238.67 | I107: -2576147.63 | J107: -228955.77 | K107: 114000 | L107: -2691103.4 | M107: 2993135.27
A108: 47 | B108: 1840 | C108: Underground Conduit | D108: 8523236.34 | E108: 1178202.79 | G108: 9701439.13 | I108: -1785936.28 | J108: -274681.14 | L108: -2060617.42 | M108: 7640821.71
A109: 47 | B109: 1845 | C109: Underground Conductors & Devices | D109: 10289849.97 | E109: 627857.51 | G109: 10917707.48 | I109: -3623392.92 | J109: -423812.19 | L109: -4047205.11 | M109: 6870502.37
A110: 47 | B110: 1850 | C110: Line Transformers | D110: 13356673.61 | E110: 876981.72 | G110: 14233655.33 | I110: -3808752.2 | J110: -559269 | L110: -4368021.2 | M110: 9865634.13
A111: 47 | B111: 1855 | C111: Services (Overhead & Underground) | D111: 6818570.28 | E111: 874067.6 | G111: 7692637.88 | I111: -1963661.17 | J111: -289809.85 | L111: -2253471.02 | M111: 5439166.86
A112: 47 | B112: 1860 | C112: Meters | D112: 3957663.39 | E112: 195759.57 | F112: 22310.41 | G112: 4175733.37 | I112: -953870.6 | J112: -155400.56 | L112: -1109271.16 | M112: 3066462.21
A113: 47 | B113: 1860 | C113: Meters (Smart Meters) | D113: 0 | E113: 24416.66 | G113: 24416.66 | I113: 0 | J113: -488.41 | L113: -488.41 | M113: 23928.25
A114: N/A | B114: 1905 | C114: Land | D114: 190119 | G114: 190119 | I114: 0 | L114: 0 | M114: 190119
A115: 47 | B115: 1908 | C115: Buildings & Fixtures | D115: 1607139.79 | E115: 26631.06 | G115: 1633770.85 | I115: -235079.6 | J115: -64818 | L115: -299897.6 | M115: 1333873.25
A116: 13 | B116: 1910 | C116: Leasehold Improvements | D116: 0 | G116: 0 | I116: 0 | L116: 0 | M116: 0
A117: 8 | B117: 1915 | C117: Office Furniture & Equipment (10 years) | D117: 159414.69 | G117: 159414.69 | I117: -79370.54 | J117: -15060.72 | L117: -94431.26 | M117: 64983.43
A118: 8 | B118: 1915 | C118: Office Furniture & Equipment (5 years) | D118: 0 | G118: 0 | I118: 0 | L118: 0 | M118: 0
A119: 10 | B119: 1920 | C119: Computer Equipment - Hardware | D119: 251403.42 | E119: 54639.55 | G119: 306042.97 | I119: -68655.2 | J119: -51907.24 | L119: -120562.44 | M119: 185480.53
A120: 45 | B120: 1920 | C120: Computer Equip.-Hardware(Post Mar. 22/04) | D120: 0 | G120: 0 | I120: 0 | L120: 0 | M120: 0
A121: 45.1 | B121: 1920 | C121: Computer Equip.-Hardware(Post Mar. 19/07) | D121: 0 | G121: 0 | I121: 0 | L121: 0 | M121: 0
A122: 10 | B122: 1930 | C122: Transportation Equipment | D122: 982828.66 | E122: 316344.69 | F122: -127092 | G122: 1172081.35 | I122: -191328.19 | J122: -161612 | K122: 127092 | L122: -225848.19 | M122: 946233.16
A123: 8 | B123: 1935 | C123: Stores Equipment | D123: 29711.37 | E123: 4656.06 | G123: 34367.43 | I123: -12882.71 | J123: -3203.94 | L123: -16086.65 | M123: 18280.78
A124: 8 | B124: 1940 | C124: Tools, Shop & Garage Equipment | D124: 214968.19 | E124: 27703.44 | G124: 242671.63 | I124: -74065.93 | J124: -22882 | L124: -96947.93 | M124: 145723.7
A125: 8 | B125: 1945 | C125: Measurement & Testing Equipment | D125: 54338.29 | E125: 9648.98 | G125: 63987.27 | I125: -11900.67 | J125: -5916.28 | L125: -17816.95 | M125: 46170.32
A126: 8 | B126: 1950 | C126: Power Operated Equipment | D126: 0 | G126: 0 | I126: 0 | L126: 0 | M126: 0
A127: 8 | B127: 1955 | C127: Communications Equipment | D127: 197224.16 | E127: 29691.34 | G127: 226915.5 | I127: -126412.09 | J127: -16873.54 | L127: -143285.63 | M127: 83629.87
A128: 8 | B128: 1955 | C128: Communication Equipment (Smart Meters) | D128: 0 | G128: 0 | I128: 0 | L128: 0 | M128: 0
A129: 8 | B129: 1960 | C129: Miscellaneous Equipment | D129: 0 | G129: 0 | I129: 0 | L129: 0 | M129: 0
A130: 47 | B130: 1970 | C130: Load Management Controls Customer Premises | D130: 0 | G130: 0 | I130: 0 | L130: 0 | M130: 0
A131: 47 | B131: 1975 | C131: Load Management Controls Utility Premises | D131: 0 | G131: 0 | I131: 0 | L131: 0 | M131: 0
A132: 47 | B132: 1980 | C132: System Supervisor Equipment | D132: 0 | G132: 0 | I132: 0 | L132: 0 | M132: 0
A133: 47 | B133: 1985 | C133: Miscellaneous Fixed Assets | D133: 0 | G133: 0 | I133: 0 | L133: 0 | M133: 0
A134: 47 | B134: 1990 | C134: Other Tangible Property | D134: 0 | G134: 0 | I134: 0 | L134: 0 | M134: 0
A135: 47 | B135: 1995 | C135: Contributions & Grants | D135: -10063338 | E135: -1939672 | G135: -12003010 | I135: 377155 | J135: 288452 | L135: 665607 | M135: -11337403
A136: 47 | B136: 2440 | C136: Deferred Revenue5 | D136: 0 | I136: =L54 -> 0
G137: =D137+E137+F137 -> 0 | L137: =I137+J137+K137 -> 0 | M137: =G137+L137 -> 0
C138: Sub-Total | D138: =SUM(D98:D137) -> 49083252.77 | E138: =SUM(E98:E137) -> 2990657.45 | F138: =SUM(F98:F137) -> -404781.95 | G138: =SUM(G98:G137) -> 51669128.27 | I138: =SUM(I98:I137) -> -16290184.33 | J138: =SUM(J98:J137) -> -2306963.61 | K138: =SUM(K98:K137) -> 241092 | L138: =SUM(L98:L137) -> -18356055.94 | M138: =SUM(M98:M137) -> 33313072.33
C139: Less Socialized Renewable Energy Generation Investments (input as negative) | G139: =D139+E139+F139 -> 0 | L139: =I139+J139+K139 -> 0 | M139: =G139+L139 -> 0
C140: Less Other Non Rate-Regulated Utility Assets (input as negative) | G140: 0 | L140: =I140+J140+K140 -> 0 | M140: =G140+L140 -> 0
C141: Total PP&E | D141: =SUM(D138:D140) -> 49083252.77 | E141: =SUM(E138:E140) -> 2990657.45 | F141: -404781.95 | G141: 51669128.27 | I141: =SUM(I138:I140) -> -16290184.33 | J141: -2306963.61 | K141: 241092 | L141: -18356055.94 | M141: 33313072.33
C142: Depreciation Expense adj. from gain or loss on the retirement of assets (pool of like assets), if applicable6
C143: Total | J143: =J141+J142 -> -2306963.61
I145: Less: Fully Allocated Depreciation
A146: 10 | C146: Transportation | I146: Transportation | K146: -184823
A147: 8 | C147: Stores Equipment | I147: Stores Equipment
I148: Net Depreciation | K148: =J143-K146-K147 -> -2122140.61
L150: File Number: | M150: =EBNUMBER -> EB-2017-0039
L151: Exhibit: | M151: 2
L152: Tab: | M152: 2-A
L153: Page: | M153: 3 of 10
L155: Date: | M155: August 28th, 2017
E157: Accounting Standard | F157: CGAAP
E158: Year | F158: 2012
D160: Cost | J160: Accumulated Depreciation
A161: CCA Class 2 | B161: OEB Account 3 | C161: Description 3 | D161: Opening Balance | E161: Additions 4 | F161: Disposals 6 | G161: Closing Balance | I161: Opening Balance | J161: Additions | K161: Disposals 6 | L161: Closing Balance | M161: Net Book Value
A162: 12 | B162: 1611 | C162: Computer Software (Formally known as Account 1925) | D162: 946328.61 | E162: 29330 | F162: 210816.17 | G162: =D162+E162+F162 -> 1186474.78 | I162: -604954.01 | J162: -76485.65 | K162: -89939 | L162: =I162+J162+K162 -> -771378.66 | M162: =G162+L162 -> 415096.12
A163: CEC | B163: 1612 | C163: Land Rights (Formally known as Account 1906) | D163: 108989.81 | E163: 6174.77 | G163: =D163+E163+F163 -> 115164.58 | I163: -7065.79 | J163: -2407.19 | L163: -9472.98 | M163: 105691.6
A164: N/A | B164: 1805 | C164: Land | D164: 47899.33 | E164: 0 | G164: =D164+E164+F164 -> 47899.33 | I164: 0 | L164: 0 | M164: 47899.33
A165: 47 | B165: 1808 | C165: Buildings | D165: 0 | G165: =D165+E165+F165 -> 0 | I165: 0 | L165: 0 | M165: 0
A166: 13 | B166: 1810 | C166: Leasehold Improvements | D166: 0 | G166: 0 | I166: 0 | L166: 0 | M166: 0
A167: 47 | B167: 1815 | C167: Transformer Station Equipment >50 kV | D167: 0 | G167: 0 | I167: 0 | L167: 0 | M167: 0
A168: 47 | B168: 1820 | C168: Distribution Station Equipment <50 kV | D168: 103106.63 | E168: 10966.16 | G168: 114072.79 | I168: -27268.63 | J168: -4343.59 | L168: -31612.22 | M168: 82460.57
A169: 47 | B169: 1825 | C169: Storage Battery Equipment | D169: 0 | G169: 0 | I169: 0 | L169: 0 | M169: 0
A170: 47 | B170: 1830 | C170: Poles, Towers & Fixtures | D170: 6006614.68 | E170: 456956.71 | G170: 6463571.39 | I170: -837320.14 | J170: -205289.26 | L170: -1042609.4 | M170: 5420961.99
A171: 47 | B171: 1835 | C171: Overhead Conductors & Devices | D171: 5684238.67 | E171: 730508.52 | G171: 6414747.19 | I171: -2691103.4 | J171: -252578.68 | L171: -2943682.08 | M171: 3471065.11
A172: 47 | B172: 1840 | C172: Underground Conduit | D172: 9701439.13 | E172: 955081.3 | G172: 10656520.43 | I172: -2060617.42 | J172: -313086.98 | L172: -2373704.4 | M172: 8282816.03
A173: 47 | B173: 1845 | C173: Underground Conductors & Devices | D173: 10917707.48 | E173: 653160.83 | G173: 11570868.31 | I173: -4047205.11 | J173: -448094.46 | L173: -4495299.57 | M173: 7075568.74
A174: 47 | B174: 1850 | C174: Line Transformers | D174: 14233655.33 | E174: 843760.6 | G174: 15077415.93 | I174: -4368021.2 | J174: -592639.7 | L174: -4960660.9 | M174: 10116755.03
A175: 47 | B175: 1855 | C175: Services (Overhead & Underground) | D175: 7692637.88 | E175: 683961.45 | G175: 8376599.33 | I175: -2253471.02 | J175: -322720.82 | L175: -2576191.84 | M175: 5800407.49
A176: 47 | B176: 1860 | C176: Meters | D176: 4175733.37 | E176: 210492 | F176: 186180 | G176: 4572405.37 | I176: -1109271.16 | J176: -169376.98 | L176: -1278648.14 | M176: 3293757.23
A177: 47 | B177: 1860 | C177: Meters (Smart Meters) | D177: 24416.66 | E177: 570007.9 | F177: -6531 | G177: 587893.56 | I177: -488.41 | J177: -33219.02 | L177: -33707.43 | M177: 554186.13
A178: N/A | B178: 1905 | C178: Land | D178: 190119 | G178: 190119 | I178: 0 | L178: 0 | M178: 190119
A179: 47 | B179: 1908 | C179: Buildings & Fixtures | D179: 1633770.85 | E179: 761184.97 | G179: 2394955.82 | I179: -299897.6 | J179: -79682.19 | L179: -379579.79 | M179: 2015376.03
A180: 13 | B180: 1910 | C180: Leasehold Improvements | D180: 0 | G180: 0 | I180: 0 | L180: 0 | M180: 0
A181: 8 | B181: 1915 | C181: Office Furniture & Equipment (10 years) | D181: 159414.69 | E181: 25424 | F181: -4595.21 | G181: 180243.48 | I181: -94431.26 | J181: -16141 | K181: 4595 | L181: -105977.26 | M181: 74266.22
A182: 8 | B182: 1915 | C182: Office Furniture & Equipment (5 years) | D182: 0 | G182: 0 | I182: 0 | L182: 0 | M182: 0
A183: 10 | B183: 1920 | C183: Computer Equipment - Hardware | D183: 306042.97 | G183: 306042.97 | I183: -120562.44 | J183: -50831 | L183: -171393.44 | M183: 134649.53
A184: 45 | B184: 1920 | C184: Computer Equip.-Hardware(Post Mar. 22/04) | D184: 0 | G184: 0 | I184: 0 | L184: 0 | M184: 0
A185: 45.1 | B185: 1920 | C185: Computer Equip.-Hardware(Post Mar. 19/07) | D185: 0 | G185: 0 | I185: 0 | L185: 0 | M185: 0
A186: 10 | B186: 1930 | C186: Transportation Equipment | D186: 1172081.35 | E186: 312048.79 | F186: -201657 | G186: 1282473.14 | I186: -225848.19 | J186: -185945 | K186: 172491 | L186: -239302.19 | M186: 1043170.95
A187: 8 | B187: 1935 | C187: Stores Equipment | D187: 34367.43 | E187: 2707.64 | G187: 37075.07 | I187: -16086.65 | J187: -3572.12 | L187: -19658.77 | M187: 17416.3
A188: 8 | B188: 1940 | C188: Tools, Shop & Garage Equipment | D188: 242671.63 | E188: 86796.99 | G188: 329468.62 | I188: -96947.93 | J188: -28085.98 | L188: -125033.91 | M188: 204434.71
A189: 8 | B189: 1945 | C189: Measurement & Testing Equipment | D189: 63987.27 | G189: 63987.27 | I189: -17816.95 | J189: -6398.73 | L189: -24215.68 | M189: 39771.59
A190: 8 | B190: 1950 | C190: Power Operated Equipment | D190: 0 | G190: 0 | I190: 0 | L190: 0 | M190: 0
A191: 8 | B191: 1955 | C191: Communications Equipment | D191: 226915.5 | E191: 49616.94 | G191: 276532.44 | I191: -143285.63 | J191: -20765.84 | L191: -164051.47 | M191: 112480.97
A192: 8 | B192: 1955 | C192: Communication Equipment (Smart Meters) | D192: 0 | G192: 0 | I192: 0 | L192: 0 | M192: 0
A193: 8 | B193: 1960 | C193: Miscellaneous Equipment | D193: 0 | G193: 0 | I193: 0 | L193: 0 | M193: 0
A194: 47 | B194: 1970 | C194: Load Management Controls Customer Premises | D194: 0 | G194: 0 | I194: 0 | L194: 0 | M194: 0
A195: 47 | B195: 1975 | C195: Load Management Controls Utility Premises | D195: 0 | G195: 0 | I195: 0 | L195: 0 | M195: 0
A196: 47 | B196: 1980 | C196: System Supervisor Equipment | D196: 0 | G196: 0 | I196: 0 | L196: 0 | M196: 0
A197: 47 | B197: 1985 | C197: Miscellaneous Fixed Assets | D197: 0 | G197: 0 | I197: 0 | L197: 0 | M197: 0
A198: 47 | B198: 1990 | C198: Other Tangible Property | D198: 0 | G198: 0 | I198: 0 | L198: 0 | M198: 0
A199: 47 | B199: 1995 | C199: Contributions & Grants | D199: -12003010 | E199: -869853 | G199: -12872863 | I199: 665607 | J199: 344643 | L199: 1010250 | M199: -11862613
A200: 47 | B200: 2440 | C200: Deferred Revenue5 | D200: 0 | I200: 0
G201: =D201+E201+F201 -> 0 | L201: =I201+J201+K201 -> 0 | M201: =G201+L201 -> 0
C202: Sub-Total | D202: =SUM(D162:D201) -> 51669128.27 | E202: =SUM(E162:E201) -> 5518326.57 | F202: =SUM(F162:F201) -> 184212.96 | G202: =SUM(G162:G201) -> 57371667.8 | I202: =SUM(I162:I201) -> -18356055.94 | J202: =SUM(J162:J201) -> -2467021.19 | K202: =SUM(K162:K201) -> 87147 | L202: =SUM(L162:L201) -> -20735930.13 | M202: =SUM(M162:M201) -> 36635737.67
C203: Less Socialized Renewable Energy Generation Investments (input as negative) | G203: =D203+E203+F203 -> 0 | L203: =I203+J203+K203 -> 0 | M203: =G203+L203 -> 0
C204: Less Other Non Rate-Regulated Utility Assets (input as negative) | G204: 0 | L204: =I204+J204+K204 -> 0 | M204: =G204+L204 -> 0
C205: Total PP&E | D205: =SUM(D202:D204) -> 51669128.27 | E205: =SUM(E202:E204) -> 5518326.57 | F205: 184212.96 | G205: 57371667.8 | I205: =SUM(I202:I204) -> -18356055.94 | J205: -2467021.19 | K205: 87147 | L205: -20735930.13 | M205: 36635737.67
C206: Depreciation Expense adj. from gain or loss on the retirement of assets (pool of like assets), if applicable6
C207: Total | J207: =J205+J206 -> -2467021.19
I209: Less: Fully Allocated Depreciation
A210: 10 | C210: Transportation | I210: Transportation | K210: -179623
A211: 8 | C211: Stores Equipment | I211: Stores Equipment
I212: Net Depreciation | K212: =J207-K210-K211 -> -2287398.19
L214: File Number: | M214: =EBNUMBER -> EB-2017-0039
L215: Exhibit: | M215: 2
L216: Tab: | M216: 2-A
L217: Page: | M217: 4 of 10
L219: Date: | M219: August 28th, 2017
E220: Accounting Standard | F220: CGAAP
E221: Year | F221: 2013
D223: Cost | J223: Accumulated Depreciation
A224: CCA Class 2 | B224: OEB Account 3 | C224: Description 3 | D224: Opening Balance | E224: Additions 4 | F224: Disposals 6 | G224: Closing Balance | I224: Opening Balance | J224: Additions | K224: Disposals 6 | L224: Closing Balance | M224: Net Book Value
A225: 12 | B225: 1611 | C225: Computer Software (Formally known as Account 1925) | D225: 1186474.78 | E225: 66054.57 | G225: =D225+E225+F225 -> 1252529.35 | I225: -771378.66 | J225: -84021.68 | L225: =I225+J225+K225 -> -855400.34 | M225: =G225+L225 -> 397129.01
A226: CEC | B226: 1612 | C226: Land Rights (Formally known as Account 1906) | D226: 115164.58 | E226: 60262.4 | G226: =D226+E226+F226 -> 175426.98 | I226: -9472.98 | J226: -2902.07 | L226: -12375.05 | M226: 163051.93
A227: N/A | B227: 1805 | C227: Land | D227: 47899.33 | G227: =D227+E227+F227 -> 47899.33 | I227: 0 | L227: 0 | M227: 47899.33
A228: 47 | B228: 1808 | C228: Buildings | D228: 0 | G228: =D228+E228+F228 -> 0 | I228: 0 | L228: 0 | M228: 0
A229: 13 | B229: 1810 | C229: Leasehold Improvements | D229: 0 | G229: 0 | I229: 0 | L229: 0 | M229: 0
... 399 more rows

Sheet Appendix 2-BB Service Life
N1: File Number: | P1: ='LDC Info'!E16 -> EB-2017-0039
N2: Exhibit: | P2: 4
N3: Tab: | P3: 4-L
N4: Page: | P4: 1 of 1
N6: Date: | P6: August 28th, 2017
A8: Appendix 2-BB
A9: Service Life Comparison
A10: Table F-1 from Kinetrics Report1
C14: Asset Details | F14: Useful Life | J14: USoA Account Number | K14: USoA Account Description | L14: Current | N14: Proposed | P14: Outside Range of Min, Max TUL?
A15: Parent* | B15: # | C15: Category| Component | Type | F15: MIN UL | G15: TUL | H15: MAX UL | L15: Years | M15: Rate | N15: Years | O15: Rate | P15: Below Min TUL | Q15: Above Max TUL
A16: OH | B16: 1 | C16: Fully Dressed Wood Poles | D16: Overall | F16: 35 | G16: 45 | H16: 75 | J16: 1830 | K16: Poles, Towers and Fixtures | L16: 25 | M16: =IF(ISERROR(1/L16), "", 1/L16) -> 0.04 | N16: 50 | O16: =IF(ISERROR(1/N16), "", 1/N16) -> 0.02 | P16: =IF(ISBLANK(N16),"",IF(N16<F16,"Yes","No")) -> No | Q16: =IF(ISBLANK(N16),"",IF(N16>H16,"Yes","No")) -> No
D17: Cross Arm | E17: Wood | F17: 20 | G17: 40 | H17: 55 | M17: =IF(ISERROR(1/L17), "", 1/L17) ->  | O17: =IF(ISERROR(1/N17), "", 1/N17) ->  | P17: =IF(ISBLANK(N17),"",IF(N17<F17,"Yes","No")) ->  | Q17: =IF(ISBLANK(N17),"",IF(N17>H17,"Yes","No")) -> 
E18: Steel | F18: 30 | G18: 70 | H18: 95
B19: 2 | C19: Fully Dressed Concrete Poles | D19: Overall | F19: 50 | G19: 60 | H19: 80 | J19: 1830 | K19: Poles, Towers and Fixtures | L19: 25 | M19: 0.04 | N19: 50 | O19: 0.02 | P19: No | Q19: No
D20: Cross Arm | E20: Wood | F20: 20 | G20: 40 | H20: 55
E21: Steel | F21: 30 | G21: 70 | H21: 95
B22: 3 | C22: Fully Dressed Steel Poles | D22: Overall | F22: 60 | G22: 60 | H22: 80
D23: Cross Arm | E23: Wood | F23: 20 | G23: 40 | H23: 55
E24: Steel | F24: 30 | G24: 70 | H24: 95
B25: 4 | C25: OH Line Switch | F25: 30 | G25: 45 | H25: 55
B26: 5 | C26: OH Line Switch Motor | F26: 15 | G26: 25 | H26: 25
B27: 6 | C27: OH Line Switch RTU | F27: 15 | G27: 20 | H27: 20
B28: 7 | C28: OH Integral Switches | F28: 35 | G28: 45 | H28: 60
B29: 8 | C29: OH Conductors | F29: 50 | G29: 60 | H29: 75 | J29: 1835 | K29: Overhead Conductors and Devices | L29: 25 | M29: 0.04 | N29: 50 | O29: 0.02 | P29: No | Q29: No
B30: 9 | C30: OH Transformers & Voltage Regulators | F30: 30 | G30: 40 | H30: 60 | J30: 1850 | K30: Line Transformers | L30: 25 | M30: 0.04 | N30: 40 | O30: 0.025 | P30: No | Q30: No
B31: 10 | C31: OH Shunt Capacitor Banks | F31: 25 | G31: 30 | H31: 40
B32: 11 | C32: Reclosers | F32: 25 | G32: 40 | H32: 55
A33: TS & MS | B33: 12 | C33: Power Transformers | D33: Overall | F33: 30 | G33: 45 | H33: 60
D34: Bushing | F34: 10 | G34: 20 | H34: 30
D35: Tap Changer | F35: 20 | G35: 30 | H35: 60
B36: 13 | C36: Station Service Transformer | F36: 30 | G36: 45 | H36: 55
B37: 14 | C37: Station Grounding Transformer | F37: 30 | G37: 40 | H37: 40
B38: 15 | C38: Station DC System | D38: Overall | F38: 10 | G38: 20 | H38: 30
D39: Battery Bank | F39: 10 | G39: 15 | H39: 15
D40: Charger | F40: 20 | G40: 20 | H40: 30
B41: 16 | C41: Station Metal Clad Switchgear | D41: Overall | F41: 30 | G41: 40 | H41: 60
D42: Removable Breaker | F42: 25 | G42: 40 | H42: 60
B43: 17 | C43: Station Independent Breakers | F43: 35 | G43: 45 | H43: 65
B44: 18 | C44: Station Switch | F44: 30 | G44: 50 | H44: 60
B45: 19 | C45: Electromechanical Relays | F45: 25 | G45: 35 | H45: 50
B46: 20 | C46: Solid State Relays | F46: 10 | G46: 30 | H46: 45
B47: 21 | C47: Digital & Numeric Relays | F47: 15 | G47: 20 | H47: 20
B48: 22 | C48: Rigid Busbars | F48: 30 | G48: 55 | H48: 60
B49: 23 | C49: Steel Structure | F49: 35 | G49: 50 | H49: 90
A50: UG | B50: 24 | C50: Primary Paper Insulated Lead Covered (PILC) Cables | F50: 60 | G50: 65 | H50: 75
B51: 25 | C51: Primary Ethylene-Propylene Rubber (EPR) Cables | F51: 20 | G51: 25 | H51: 25
B52: 26 | C52: Primary Non-Tree Retardant (TR) Cross Linked Polyethylene (XLPE) Cables Direct Buried | F52: 20 | G52: 25 | H52: 30
B53: 27 | C53: Primary Non-TR XLPE Cables in Duct | F53: 20 | G53: 25 | H53: 30
B54: 30 | C54: Secondary PILC Cables | F54: 70 | G54: 75 | H54: 80
B55: 31 | C55: Secondary Cables Direct Buried | F55: 25 | G55: 35 | H55: 40 | J55: 1845 | K55: Underground Conductors and Devices | L55: 25 | M55: 0.04 | N55: 30 | O55: 0.03333333333 | P55: No | Q55: No
B56: 32 | C56: Secondary Cables in Duct | F56: 35 | G56: 40 | H56: 60
B57: 33 | C57: Network Tranformers | D57: Overall | F57: 20 | G57: 35 | H57: 50
D58: Protector | F58: 20 | G58: 35 | H58: 40
B59: 34 | C59: Pad-Mounted Transformers | F59: 25 | G59: 40 | H59: 45 | J59: 1850 | K59: Line Transformers | L59: 25 | M59: 0.04 | N59: 40 | O59: 0.025 | P59: No | Q59: No
B60: 35 | C60: Submersible/Vault Transformers | F60: 25 | G60: 35 | H60: 45
B61: 36 | C61: UG Foundation | F61: 35 | G61: 55 | H61: 70
B62: 37 | C62: UG Vaults | D62: Overall | F62: 40 | G62: 60 | H62: 80
D63: Roof | F63: 20 | G63: 30 | H63: 45
B64: 38 | C64: UG Vault Switches | F64: 20 | G64: 35 | H64: 50
B65: 39 | C65: Pad-Mounted Switchgear | F65: 20 | G65: 30 | H65: 45
B66: 40 | C66: Ducts | F66: 30 | G66: 50 | H66: 85 | J66: 1840 | K66: Underground Conduit | L66: 25 | M66: 0.04 | N66: 40 | O66: 0.025 | P66: No | Q66: No
B67: 41 | C67: Concrete Encased Duct Banks | F67: 35 | G67: 55 | H67: 80
B68: 42 | C68: Cable Chambers | F68: 50 | G68: 60 | H68: 80
A69: S | B69: 43 | C69: Remote SCADA | F69: 15 | G69: 20 | H69: 30
A72: Table F-2 from Kinetrics Report1
C74: Asset Details | F74: Useful Life Range | J74: USoA Account Number | K74: USoA Account Description | L74: Current | N74: Proposed | P74: Outside Range of Min, Max TUL?
B75: # | C75: Category| Component | Type | L75: Years | M75: Rate | N75: Years | O75: Rate | P75: Below Min Range | Q75: Above Max Range
B76: 1 | C76: Office Equipment | F76: 5 | G76: 15 | J76: 1915 | K76: Office Furniture and Equipment | L76: 10 | M76: =IF(ISERROR(1/L76), "", 1/L76) -> 0.1 | N76: 10 | O76: =IF(ISERROR(1/N76), "", 1/N76) -> 0.1 | P76: =IF(ISBLANK(N76),"",IF(N76<F76,"Yes","No")) -> No | Q76: =IF(ISBLANK(N76),"",IF(N76>G76,"Yes","No")) -> No
B77: 2 | C77: Vehicles | D77: Trucks & Buckets | F77: 5 | G77: 15 | J77: 1930 | K77: Transportation Equipment | L77: 8 | M77: =IF(ISERROR(1/L77), "", 1/L77) -> 0.125 | N77: 10 | O77: =IF(ISERROR(1/N77), "", 1/N77) -> 0.1 | P77: =IF(ISBLANK(N77),"",IF(N77<F77,"Yes","No")) -> No | Q77: =IF(ISBLANK(N77),"",IF(N77>G77,"Yes","No")) -> No
D78: Trailers | F78: 5 | G78: 20 | J78: 1930 | K78: Transportation Equipment | L78: 5 | M78: 0.2 | N78: 7 | O78: 0.1428571429 | P78: No | Q78: No
D79: Vans | F79: 5 | G79: 10 | J79: 1930 | K79: Transportation Equipment | L79: 5 | M79: 0.2 | N79: 7 | O79: 0.1428571429 | P79: No | Q79: No
B80: 3 | C80: Administrative Buildings | F80: 50 | G80: 75 | J80: 1908 | K80: Buildings and Fixtures | L80: 25 | M80: 0.04 | N80: 50 | O80: 0.02 | P80: No | Q80: No
B81: 4 | C81: Leasehold Improvements | F81: Lease dependent
B82: 5 | C82: Station Buildings | D82: Station Buildings | F82: 50 | G82: 75
D83: Parking | F83: 25 | G83: 30
D84: Fence | F84: 25 | G84: 60
D85: Roof | F85: 20 | G85: 30
B86: 6 | C86: Computer Equipment | D86: Hardware | F86: 3 | G86: 5 | J86: 1920 | K86: Computer Equipment - Hardware | L86: 5 | M86: 0.2 | N86: 5 | O86: 0.2 | P86: No | Q86: No
D87: Software | F87: 2 | G87: 5 | J87: 1611 | K87: Computer Software | L87: 5 | M87: 0.2 | N87: 5 | O87: 0.2 | P87: No | Q87: No
B88: 7 | C88: Equipment | D88: Power Operated | F88: 5 | G88: 10
D89: Stores | F89: 5 | G89: 10 | J89: 1935 | K89: Stores Equipment | L89: 10 | M89: 0.1 | N89: 10 | O89: 0.1 | P89: No | Q89: No
D90: Tools, Shop, Garage Equipment | F90: 5 | G90: 10 | J90: 1940 | K90: Tools, Shop and Garage Equipment | L90: 10 | M90: 0.1 | N90: 10 | O90: 0.1 | P90: No | Q90: No
D91: Measurement & Testing Equipment | F91: 5 | G91: 10 | J91: 1945 | K91: Power Measurement & Test Equip | L91: 10 | M91: 0.1 | N91: 10 | O91: 0.1 | P91: No | Q91: No
B92: 8 | C92: Communication | D92: Towers | F92: 60 | G92: 70
D93: Wireless | F93: 2 | G93: 10 | J93: 1955 | K93: Communication Equipment | L93: 10 | M93: 0.1 | N93: 10 | O93: 0.1 | P93: No | Q93: No
B94: 9 | C94: Residential Energy Meters | F94: 25 | G94: 35
B95: 10 | C95: Industrial/Commercial Energy Meters | F95: 25 | G95: 35 | J95: 1860 | K95: Meters | L95: 25 | M95: 0.04 | N95: 25 | O95: 0.04 | P95: No | Q95: No
B96: 11 | C96: Wholesale Energy Meters | F96: 15 | G96: 30 | J96: 1860 | K96: Meters | L96: 25 | M96: 0.04 | N96: 25 | O96: 0.04 | P96: No | Q96: No
B97: 12 | C97: Current & Potential Transformer (CT & PT) | F97: 35 | G97: 50
B98: 13 | C98: Smart Meters | F98: 5 | G98: 15 | J98: 1860 | K98: Meters | L98: 25 | M98: 0.04 | N98: 15 | O98: 0.06666666667 | P98: No | Q98: No
B99: 14 | C99: Repeaters - Smart Metering | F99: 10 | G99: 15
B100: 15 | C100: Data Collectors - Smart Metering | F100: 15 | G100: 20
A103: * TS & MS = Transformer and Municipal Stations UG = Underground Systems S = Monitoring and Control Systems
A105: Note 1: | B105: Tables F-1 and F-2 above are to be used as a reference in order to complete columns J, K, L and N.
B106: See pages 17-19 of Kinetrics Report

Sheet App.2-C_DepExp
P1: File Number: | R1: EB-2017-0039
P2: Exhibit: | R2: 4
P3: Tab: | R3: 4-M
P4: Page: | R4: 1 of 7
P6: Date: | R6: August 28th, 2017
A9: Appendix 2-C | Y9: CGAAP
A10: Depreciation and Amortization Expense | Y10: Revised CGAAP
Y11: MIFRS
A12: This appendix is to be completed in conjunction with the accounting instructions in Appendix 2-B
A14: Scenario that applies | C14: Applicable Years and Accounting Standard | R14: Year Reflected in Schedule Below | S14: Accounting Standard Reflected in Schedule Below | Y14: 2012
A15: Rebasing for the first time with depreciation policy changes made in 2012. | C15: This appendix must be duplicated and completed for the years 2012 to 2018. The appendix for 2012 is to be completed under CGAAP (prior to changes in depreciation policies). The appendix for 2012 to 2014 must be completed under Revised CGAAP (after changes in depreciation policies). The appendix for 2014 to 2018 is to be completed under MIFRS (2014 if changes to MIFRS are material). | Y15: 2013
A16: Rebasing for the first time with depreciation policy changes made in 2013. | C16: This appendix must be duplicated and completed for the years 2013 to 2018. The appendix for 2013 is to be completed under CGAAP (prior to changes in depreciation policies). The appendix for 2013 to 2014 must be completed under Revised CGAAP (after changes in depreciation policies). The appendix for 2014 to 2018 is to be completed under MIFRS (2014 if changes to MIFRS are material). | R16: 2013 | S16: CGAAP | Y16: 2014
A17: Already rebased with depreciation policy changes in a prior rate application | C17: This appendix must be completed for 2014 to 2018. The appendix for 2014 is to be completed under Revised CGAAP (after changes in depreciation policies). The appendix for 2014 to 2018 is to be completed under MIFRS (2014 if changes to MIFRS are material). | Y17: 2015
Y18: 2016
Y19: 2017
C20: Book Values | J20: Service Lives | N20: Depreciation Expense | Y20: 2018
A21: Account | B21: Description | C21: Opening Net Book Value of Existing Assets as at Date of Policy Change (Jan. 1) 1 | D21: Less Fully Depreciated 7 | E21: Net Amount of Existing Assets Before Policy Change to be Depreciated | F21: Opening Gross Book Value of Assets Acquired After Policy Change 2 | G21: Less Fully Depreciated 8 | H21: Net Amount of Assets Acquired After Policy Change to be Depreciated | I21: Current Year Additions | J21: Average Remaining Life of Assets Existing Before Policy Change 3 | K21: Depreciation Rate Assets Acquired After Policy Change | L21: Life of Assets Acquired After Policy Change 4 | M21: Depreciation Rate on New Additions | N21: Depreciation Expense on Assets Existing Before Policy Change | O21: Depreciation Expense on Assets Acquired After Policy Change | P21: Depreciation Expense on Current Year Additions 5 | Q21: Total Current Year Depreciation Expense | R21: Depreciation Expense per Appendix 2-BA Fixed Assets, Column J | S21: Variance 6
C22: a | D22: b | E22: c = a-b | F22: d | G22: e | H22: f = d- e | I22: g | J22: h | K22: i = 1/h | L22: j | M22: k = 1/j | N22: l = c/h | O22: m = f/j | P22: n = g*0.5/j | Q22: o = l+m+n | R22: p | S22: q = p-o
A23: 1611 | B23: Computer Software (Formally known as Account 1925) | C23: 415096.12 | E23: =C23-D23 -> 415096.12 | H23: =F23-G23 -> 0 | I23: 66054.57 | J23: 2.67 | K23: =IF(J23=0,0,1/J23) -> 0.3745318352 | L23: 5 | M23: =IF(L23=0,0,1/L23) -> 0.2 | N23: =IF(J23=0,0,+E23/J23) -> 155466.7116 | O23: =IF(L23=0,0,+H23/L23) -> 0 | P23: =IF(L23=0,0,+(I23*0.5)/L23) -> 6605.457 | Q23: =IF(ISERROR(+N23+O23+P23), 0, +N23+O23+P23) -> 162072.1686 | R23: 84021.68 | S23: =IF(ISERROR(+R23-122), 0, +R23-Q23) -> -78050.48861
A24: 1612 | B24: Land Rights (Formally known as Account 1906) | C24: 105691.6 | E24: =C24-D24 -> 105691.6 | H24: =F24-G24 -> 0 | I24: 60262.4 | J24: 46.5 | K24: =IF(J24=0,0,1/J24) -> 0.02150537634 | L24: 50 | M24: =IF(L24=0,0,1/L24) -> 0.02 | N24: =IF(J24=0,0,+E24/J24) -> 2272.937634 | O24: =IF(L24=0,0,+H24/L24) -> 0 | P24: =IF(L24=0,0,+(I24*0.5)/L24) -> 602.624 | Q24: =IF(ISERROR(+N24+O24+P24), 0, +N24+O24+P24) -> 2875.561634 | R24: 2902.07 | S24: =IF(ISERROR(+R24-122), 0, +R24-Q24) -> 26.50836559
A25: 1805 | B25: Land | C25: 47899.33 | E25: 47899.33 | H25: 0 | K25: 0 | M25: 0 | N25: 0 | O25: =IF(L25=0,0,+H25/L25) -> 0 | P25: 0 | Q25: 0 | S25: 0
A26: 1808 | B26: Buildings | C26: 0 | E26: 0 | H26: 0 | K26: 0 | M26: 0 | N26: 0 | O26: 0 | P26: 0 | Q26: 0 | S26: 0
A27: 1810 | B27: Leasehold Improvements | C27: 0 | E27: 0 | H27: 0 | K27: 0 | M27: 0 | N27: 0 | O27: 0 | P27: 0 | Q27: 0 | S27: 0
A28: 1815 | B28: Transformer Station Equipment >50 kV | C28: 0 | E28: 0 | H28: 0 | K28: 0 | M28: 0 | N28: 0 | O28: 0 | P28: 0 | Q28: 0 | S28: 0
A29: 1820 | B29: Distribution Station Equipment <50 kV | C29: 82460.57 | E29: 82460.57 | H29: 0 | I29: 1572.09 | J29: 21 | K29: 0.04761904762 | L29: 25 | M29: 0.04 | N29: 3926.69381 | O29: 0 | P29: 31.4418 | Q29: 3958.13561 | R29: 4594.34 | S29: 636.2043905
A30: 1825 | B30: Storage Battery Equipment | C30: 0 | E30: 0 | H30: 0 | K30: 0 | M30: 0 | N30: 0 | O30: 0 | P30: 0 | Q30: 0 | S30: 0
A31: 1830 | B31: Poles, Towers & Fixtures | C31: 5420961.99 | E31: 5420961.99 | H31: 0 | I31: 427090.38 | J31: 20.08 | K31: 0.04980079681 | L31: 25 | M31: 0.04 | N31: 269968.2266 | O31: 0 | P31: 8541.8076 | Q31: 278510.0342 | R31: 219433.05 | S31: -59076.98419
A32: 1835 | B32: Overhead Conductors & Devices | C32: 3471065.11 | E32: 3471065.11 | H32: 0 | I32: 542962.03 | J32: 17 | K32: 0.05882352941 | L32: 25 | M32: 0.04 | N32: 204180.3006 | O32: 0 | P32: 10859.2406 | Q32: 215039.5412 | R32: 276493.64 | S32: 61454.09881
A33: 1840 | B33: Underground Conduit | C33: 8282816.03 | E33: 8282816.03 | H33: 0 | I33: 914367.45 | J33: 19.08 | K33: 0.05241090147 | L33: 25 | M33: 0.04 | N33: 434109.8548 | O33: 0 | P33: 18287.349 | Q33: 452397.2038 | R33: 346791.63 | S33: -105605.5738
A34: 1845 | B34: Underground Conductors & Devices | C34: 7075568.74 | E34: 7075568.74 | H34: 0 | I34: 1015488.75 | J34: 18 | K34: 0.05555555556 | L34: 25 | M34: 0.04 | N34: 393087.1522 | O34: 0 | P34: 20309.775 | Q34: 413396.9272 | R34: 480110.93 | S34: 66714.00278
A35: 1850 | B35: Line Transformers | C35: 10116755.03 | E35: 10116755.03 | H35: 0 | I35: 1487986.39 | J35: 20 | K35: 0.05 | L35: 25 | M35: 0.04 | N35: 505837.7515 | O35: 0 | P35: 29759.7278 | Q35: 535597.4793 | R35: 635745.72 | S35: 100148.2407
A36: 1855 | B36: Services (Overhead) | C36: 1066258.4 | E36: 1066258.4 | H36: 0 | I36: 307889.93 | J36: 18 | K36: 0.05555555556 | L36: 25 | M36: 0.04 | N36: 59236.57778 | O36: 0 | P36: 6157.7986 | Q36: 65394.37638 | R36: 60874.63 | S36: -4519.746378
A37: 1855 | B37: Services (Underground) | C37: 4734149.09 | E37: 4734149.09 | H37: 0 | I37: 620242.37 | J37: 19.08 | L37: 25 | N37: 248121.0215 | O37: =IF(L37=0,0,+H37/L37) -> 0 | P37: =IF(L37=0,0,+(I37*0.5)/L37) -> 12404.8474 | Q37: =IF(ISERROR(+N37+O37+P37), 0, +N37+O37+P37) -> 260525.8689 | R37: 291277.93 | S37: 30752.06111
A38: 1860 | B38: Meters | C38: 3293757.11 | E38: 3293757.11 | H38: 0 | I38: 156555.86 | J38: 19 | K38: 0.05263157895 | L38: 25 | M38: 0.04 | N38: 173355.6374 | O38: 0 | P38: 3131.1172 | Q38: 176486.7546 | R38: 274102.78 | S38: 97616.02543
A39: 1860 | B39: Meters (Smart Meters) | C39: 554186.13 | E39: 554186.13 | H39: 0 | I39: 37316 | J39: 24.5 | K39: 0.04081632653 | L39: 25 | M39: 0.04 | N39: 22619.84204 | O39: 0 | P39: 746.32 | Q39: 23366.16204 | R39: 31148.09 | S39: 7781.927959
A40: 1905 | B40: Land | C40: 190119 | E40: 190119 | H40: 0 | K40: 0 | M40: 0 | N40: 0 | O40: 0 | P40: 0 | Q40: 0 | S40: 0
A41: 1908 | B41: Buildings & Fixtures | C41: 2015376.03 | E41: 2015376.03 | H41: 0 | I41: 27401.3 | J41: 22 | K41: 0.04545454545 | L41: 25 | M41: 0.04 | N41: 91608.00136 | O41: 0 | P41: 548.026 | Q41: 92156.02736 | R41: 94561.57 | S41: 2405.542636
A42: 1910 | B42: Leasehold Improvements | C42: 0 | E42: 0 | H42: 0 | K42: 0 | M42: 0 | N42: 0 | O42: 0 | P42: 0 | Q42: 0 | S42: 0
A43: 1915 | B43: Office Furniture & Equipment (10 years) | C43: 74266.22 | E43: 74266.22 | H43: 0 | I43: 8365.17 | J43: 5 | K43: 0.2 | L43: 5 | M43: 0.2 | N43: 14853.244 | O43: 0 | P43: 836.517 | Q43: 15689.761 | R43: 17561.86 | S43: 1872.099
A44: 1915 | B44: Office Furniture & Equipment (5 years) | C44: 0 | E44: 0 | H44: 0 | K44: 0 | L44: 10 | M44: 0.1 | N44: 0 | O44: 0 | P44: 0 | Q44: 0 | S44: 0
A45: 1920 | B45: Computer Equipment - Hardware | C45: 134649.53 | E45: 134649.53 | H45: 0 | I45: 18106.27 | J45: 3.5 | K45: 0.2857142857 | L45: 5 | M45: 0.2 | N45: 38471.29429 | O45: 0 | P45: 1810.627 | Q45: 40281.92129 | R45: 50350.17 | S45: 10068.24871
A46: 1920 | B46: Computer Equip.-Hardware(Post Mar. 22/04) | C46: 0 | E46: 0 | H46: 0 | K46: 0 | M46: 0 | N46: 0 | O46: 0 | P46: 0 | Q46: 0 | S46: 0
A47: 1920 | B47: Computer Equip.-Hardware(Post Mar. 19/07) | C47: 0 | E47: 0 | H47: 0 | K47: 0 | M47: 0 | N47: 0 | O47: 0 | P47: 0 | Q47: 0 | S47: 0
A48: 1930 | B48: Transportation Equipment | C48: 1043170.95 | E48: 1043170.95 | H48: 0 | I48: 382064 | J48: 8.8 | K48: 0.1136363636 | L48: 8 | M48: 0.125 | N48: 118542.1534 | O48: 0 | P48: 23879 | Q48: 142421.1534 | R48: 273212.83 | S48: 130791.6766
A49: 1935 | B49: Stores Equipment | C49: 17416.3 | E49: 17416.3 | H49: 0 | J49: 7.85 | K49: 0.127388535 | L49: 10 | M49: 0.1 | N49: 2218.636943 | O49: 0 | P49: 0 | Q49: 2218.636943 | R49: 3707.5 | S49: 1488.863057
A50: 1940 | B50: Tools, Shop & Garage Equipment | C50: 204434.71 | E50: 204434.71 | H50: 0 | I50: 54158.99 | J50: 7.33 | K50: 0.136425648 | L50: 10 | M50: 0.1 | N50: 27890.13779 | O50: 0 | P50: 2707.9495 | Q50: 30598.08729 | R50: 33573.91 | S50: 2975.82271
A51: 1945 | B51: Measurement & Testing Equipment | C51: 39771.59 | E51: 39771.59 | H51: 0 | J51: 6.25 | K51: 0.16 | L51: 10 | M51: 0.1 | N51: 6363.4544 | O51: 0 | P51: 0 | Q51: 6363.4544 | R51: 6398.73 | S51: 35.2756
A52: 1950 | B52: Power Operated Equipment | C52: 0 | E52: 0 | H52: 0 | K52: 0 | M52: 0 | N52: 0 | O52: 0 | P52: 0 | Q52: 0 | S52: 0
A53: 1955 | B53: Communications Equipment | C53: 112480.97 | E53: 112480.97 | H53: 0 | I53: 4947.12 | J53: 6.12 | K53: 0.1633986928 | L53: 10 | M53: 0.1 | N53: 18379.24346 | O53: 0 | P53: 247.356 | Q53: 18626.59946 | R53: 21371.59 | S53: 2744.990536
A54: 1955 | B54: Communication Equipment (Smart Meters) | C54: 0 | E54: 0 | H54: 0 | K54: 0 | M54: 0 | N54: 0 | O54: 0 | P54: 0 | Q54: 0 | S54: 0
A55: 1960 | B55: Miscellaneous Equipment | C55: 0 | E55: 0 | H55: 0 | K55: 0 | M55: 0 | N55: 0 | O55: 0 | P55: 0 | Q55: 0 | S55: 0
A56: 1970 | B56: Load Management Controls Customer Premises | C56: 0 | E56: 0 | H56: 0 | K56: 0 | M56: 0 | N56: 0 | O56: 0 | P56: 0 | Q56: 0 | S56: 0
A57: 1975 | B57: Load Management Controls Utility Premises | C57: 0 | E57: 0 | H57: 0 | K57: 0 | M57: 0 | N57: 0 | O57: 0 | P57: 0 | Q57: 0 | S57: 0
A58: 1980 | B58: System Supervisor Equipment | C58: 0 | E58: 0 | H58: 0 | K58: 0 | M58: 0 | N58: 0 | O58: 0 | P58: 0 | Q58: 0 | S58: 0
A59: 1985 | B59: Miscellaneous Fixed Assets | C59: 0 | E59: 0 | H59: 0 | K59: 0 | M59: 0 | N59: 0 | O59: 0 | P59: 0 | Q59: 0 | S59: 0
A60: 1990 | B60: Other Tangible Property | C60: 0 | E60: 0 | H60: 0 | K60: 0 | M60: 0 | N60: 0 | O60: 0 | P60: 0 | Q60: 0 | S60: 0
A61: 1995 | B61: Contributions & Grants | C61: -11862613 | E61: =C61-D61 -> -11862613 | H61: 0 | I61: -2191898 | J61: 20 | K61: 0.05 | L61: 25 | M61: 0.04 | N61: -593130.65 | O61: 0 | P61: -43837.96 | Q61: -636968.61 | R61: -360377 | S61: 276591.61
B62: Total | C62: =SUM(C23:C61) -> 36635737.55 | D62: 0 | E62: 36635737.55 | F62: 0 | G62: 0 | H62: 0 | I62: 3940933.07 | N62: =SUM(N23:N61) -> 2197378.223 | O62: 0 | P62: 103629.0215 | Q62: 2301007.245 | R62: 2847857.65 | S62: 546850.4054
A65: General: | B65: Applicants are to complete this appendix to show the reasonability of the depreciation expense that is included in rate base via. Accumulated depreciation and the revenue requirement.
B66: Applicants must provide a breakdown of depreciation and amortization expense in the above format for all relevant accounts. Balances presented in the table should exclude asset retirement obligations (AROs) and the related depreciation and accretion expense. These should be disclosed separately consistent with the Notes of historical Audited Financial Statements.
A69: Notes:
A70: 1 | B70: This is the net book value of assets that existed as at the date of the utility's change in depreciation policies (i.e. as at Jan. 1, 2012 or Jan. 1, 2013). These assets are to be depreciated at the average remaining service life. This amount will not change in years subsequent to the date of the utility's change in depreciation policies. This column is expected to be used until the assets that existed as at the date of the utility's change in depreciation policies are fully depreciated.
A71: 2 | B71: This is the opening gross book value of assets that have been acquired after the date of the utilities change in depreciation policies (i.e. additions starting in 2012/2013 for those who changed policies Jan. 1, 2012/2013). These assets are to be depreciated at the revised service life. The amount is expected to be equal to the gross book value of the prior year plus the prior year's additions.
A72: 3 | B72: A recalculation should be performed to determine the average remaining life of opening balance of assets (i.e. excluding current year's additions) under the change in policies under CGAAP. For example, Asset A had a useful life of 20 years under CGAAP without the change in policies. On January 1 of the year of policy changes, Asset A was 3 years depreciated. As a result, Asset A would have a remaining service life of 17 years (20 years less 3 years) as at January 1 of the year of policy changes. Due to making the change in policies under CGAAP, management re-assessed the asset useful lives and concluded that the revised useful life of Asset A is now 30 years. Therefore, the average remaining useful life of the opening balance of Asset A is determined to be 27 years (30 years less 3 years) under the revised CGAAP as at January 1 of the year of policy changes.
A73: 4 | B73: The useful life used should be consistent with the OEB's regulatory accounting policies as set out in the Accounting Procedures Handbook for Electricity Distributors, effective Jan. 1, 2012 and also with the Report of the Board, Transition to International Financial Reporting Standards, EB-2008-0408, and the Kinectrics Report.
A74: 5 | B74: Board policy of the "half-year" rule - the applicant must ensure that additions in the year attract a half-year depreciation expense in the first year. Deviations from this standard practice must be supported in the application.
A75: 6 | B75: The applicant must provide an explanation of material variances in evidence.
A76: 7 | B76: This should include assets in column a (excel column C) that become fully depreciated since the date of the policy change. The amount input in b (excel column D) should equal the net book value of the asset as at the date of depreciation policy change
A77: 8 | B77: This should include assets in column d (excel column f) that have become fully depreciated. The amount input in e (excel column G) should equal the gross book value of the asset
P78: File Number: | R78: EB-2017-0039
A79: This appendix is to be completed in conjunction with the accounting instructions in Appendix 2-B | P79: Exhibit: | R79: 4
P80: Tab: | R80: 4-M
P81: Page: | R81: 2 of 7
P83: Date: | R83: August 28th, 2017
A85: Scenario that applies | C85: Applicable Years and Accounting Standard | R85: Year Reflected in Schedule Below | S85: Accounting Standard Reflected in Schedule Below | Y85: 2012
A86: Rebasing for the first time with depreciation policy changes made in 2012. | C86: This appendix must be duplicated and completed for the years 2012 to 2018. The appendix for 2012 is to be completed under CGAAP (prior to changes in depreciation policies). The appendix for 2012 to 2014 must be completed under Revised CGAAP (after changes in depreciation policies). The appendix for 2014 to 2018 is to be completed under MIFRS (2014 if changes to MIFRS are material). | Y86: 2013
A87: Rebasing for the first time with depreciation policy changes made in 2013. | C87: This appendix must be duplicated and completed for the years 2013 to 2018. The appendix for 2013 is to be completed under CGAAP (prior to changes in depreciation policies). The appendix for 2013 to 2014 must be completed under Revised CGAAP (after changes in depreciation policies). The appendix for 2014 to 2018 is to be completed under MIFRS (2014 if changes to MIFRS are material). | R87: 2013 | S87: Revised CGAAP | Y87: 2014
A88: Already rebased with depreciation policy changes in a prior rate application | C88: This appendix must be completed for 2014 to 2018. The appendix for 2014 is to be completed under Revised CGAAP (after changes in depreciation policies). The appendix for 2014 to 2018 is to be completed under MIFRS (2014 if changes to MIFRS are material). | Y88: 2015
Y89: 2016
Y90: 2017
C91: Book Values | J91: Service Lives | N91: Depreciation Expense | Y91: 2018
A92: Account | B92: Description | C92: Opening Net Book Value of Existing Assets as at Date of Policy Change (Jan. 1) 1 | D92: Less Fully Depreciated 7 | E92: Net Amount of Existing Assets Before Policy Change to be Depreciated | F92: Opening Gross Book Value of Assets Acquired After Policy Change 2 | G92: Less Fully Depreciated 8 | H92: Net Amount of Assets Acquired After Policy Change to be Depreciated | I92: Current Year Additions | J92: Average Remaining Life of Assets Existing Before Policy Change 3 | K92: Depreciation Rate Assets Acquired After Policy Change | L92: Life of Assets Acquired After Policy Change 4 | M92: Depreciation Rate on New Additions | N92: Depreciation Expense on Assets Existing Before Policy Change | O92: Depreciation Expense on Assets Acquired After Policy Change | P92: Depreciation Expense on Current Year Additions 5 | Q92: Total Current Year Depreciation Expense | R92: Depreciation Expense per Appendix 2-BA Fixed Assets, Column J | S92: Variance 6
C93: a | D93: b | E93: c = a-b | F93: d | G93: e | H93: f = d- e | I93: g | J93: h | K93: i = 1/h | L93: j | M93: k = 1/j | N93: l = c/h | O93: m = f/j | P93: n = g*0.5/j | Q93: o = l+m+n | R93: p | S93: q = p-o
A94: 1611 | B94: Computer Software (Formally known as Account 1925) | C94: 415096.12 | E94: =C94-D94 -> 415096.12 | H94: =F94-G94 -> 0 | I94: 66054.57 | J94: 2.67 | K94: =IF(J94=0,0,1/J94) -> 0.3745318352 | L94: 5 | M94: =IF(L94=0,0,1/L94) -> 0.2 | N94: =IF(J94=0,0,+E94/J94) -> 155466.7116 | O94: =IF(L94=0,0,+H94/L94) -> 0 | P94: =IF(L94=0,0,+(I94*0.5)/L94) -> 6605.457 | Q94: =IF(ISERROR(+N94+O94+P94), 0, +N94+O94+P94) -> 162072.1686 | R94: 342039.61 | S94: =IF(ISERROR(+R94-122), 0, +R94-Q94) -> 179967.4414
A95: 1612 | B95: Land Rights (Formally known as Account 1906) | C95: 105691.6 | E95: =C95-D95 -> 105691.6 | H95: =F95-G95 -> 0 | I95: 60262.4 | J95: 44 | K95: =IF(J95=0,0,1/J95) -> 0.02272727273 | L95: 50 | M95: =IF(L95=0,0,1/L95) -> 0.02 | N95: =IF(J95=0,0,+E95/J95) -> 2402.081818 | O95: =IF(L95=0,0,+H95/L95) -> 0 | P95: =IF(L95=0,0,+(I95*0.5)/L95) -> 602.624 | Q95: =IF(ISERROR(+N95+O95+P95), 0, +N95+O95+P95) -> 3004.705818 | R95: 2929.78 | S95: =IF(ISERROR(+R95-122), 0, +R95-Q95) -> -74.92581818
A96: 1805 | B96: Land | C96: 47899.33 | E96: 47899.33 | H96: 0 | K96: 0 | M96: 0 | N96: 0 | O96: =IF(L96=0,0,+H96/L96) -> 0 | P96: 0 | Q96: 0 | S96: 0
A97: 1808 | B97: Buildings | C97: 0 | E97: 0 | H97: 0 | K97: 0 | M97: 0 | N97: 0 | O97: 0 | P97: 0 | Q97: 0 | S97: 0
A98: 1810 | B98: Leasehold Improvements | C98: 0 | E98: 0 | H98: 0 | K98: 0 | M98: 0 | N98: 0 | O98: 0 | P98: 0 | Q98: 0 | S98: 0
A99: 1815 | B99: Transformer Station Equipment >50 kV | C99: 0 | E99: 0 | H99: 0 | K99: 0 | M99: 0 | N99: 0 | O99: 0 | P99: 0 | Q99: 0 | S99: 0
A100: 1820 | B100: Distribution Station Equipment <50 kV | C100: 82460.57 | E100: 82460.57 | H100: 0 | I100: 1431.86 | J100: 21.8 | K100: 0.04587155963 | L100: 25 | M100: 0.04 | N100: 3782.594954 | O100: 0 | P100: 28.6372 | Q100: 3811.232154 | R100: 4002 | S100: 190.7678459
A101: 1825 | B101: Storage Battery Equipment | C101: 0 | E101: 0 | H101: 0 | K101: 0 | M101: 0 | N101: 0 | O101: 0 | P101: 0 | Q101: 0 | R101: 0 | S101: 0
A102: 1830 | B102: Poles, Towers & Fixtures | C102: 5420961.99 | E102: 5420961.99 | H102: 0 | I102: 388993.92 | J102: 45.5 | K102: 0.02197802198 | L102: 50 | M102: 0.02 | N102: 119142.0218 | O102: 0 | P102: 3889.9392 | Q102: 123031.961 | R102: 148489.7 | S102: 25457.73904
A103: 1835 | B103: Overhead Conductors & Devices | C103: 3471065.11 | E103: 3471065.11 | H103: 0 | I103: 494529.82 | J103: 44 | K103: 0.02272727273 | L103: 50 | M103: 0.02 | N103: 78887.84341 | O103: 0 | P103: 4945.2982 | Q103: 83833.14161 | R103: 95859.15 | S103: 12026.00839
A104: 1840 | B104: Underground Conduit | C104: 8282816.03 | E104: 8282816.03 | H104: 0 | I104: 832805.87 | J104: 34 | K104: 0.02941176471 | L104: 40 | M104: 0.025 | N104: 243612.2362 | O104: 0 | P104: 10410.07337 | Q104: 254022.3096 | R104: 199739.43 | S104: -54282.87955
A105: 1845 | B105: Underground Conductors & Devices | C105: 7075568.74 | E105: 7075568.74 | H105: 0 | I105: 924907.15 | J105: 24 | K105: 0.04166666667 | L105: 30 | M105: 0.03333333333 | N105: 294815.3642 | O105: 0 | P105: 15415.11917 | Q105: 310230.4833 | R105: 229618.45 | S105: -80612.03333
A106: 1850 | B106: Line Transformers | C106: 10116755.03 | E106: 10116755.03 | H106: 0 | I106: 1355258.01 | J106: 34 | K106: 0.02941176471 | L106: 40 | M106: 0.025 | N106: 297551.6185 | O106: 0 | P106: 16940.72513 | Q106: 314492.3437 | R106: 326071.76 | S106: 11579.41635
A107: 1855 | B107: Services (Overhead) | C107: 1066258.4 | E107: 1066258.4 | H107: 0 | I107: 279902.74 | J107: 44 | K107: 0.02272727273 | L107: 50 | M107: 0.02 | N107: 24233.14545 | O107: 0 | P107: 2799.0274 | Q107: 27032.17285 | R107: 28433.75 | S107: 1401.577145
A108: 1855 | B108: Services (Underground) | C108: 4734149.09 | E108: 4734149.09 | H108: 0 | I108: 565440.34 | J108: 34 | K108: 0.02941176471 | L108: 40 | M108: 0.025 | N108: =IF(J108=0,0,+E108/J108) -> 139239.6791 | O108: =IF(L108=0,0,+H108/L108) -> 0 | P108: =IF(L108=0,0,+(I108*0.5)/L108) -> 7068.00425 | Q108: =IF(ISERROR(+N108+O108+P108), 0, +N108+O108+P108) -> 146307.6834 | R108: 116092.7 | S108: -30214.98337
A109: 1860 | B109: Meters | C109: 3293757.11 | E109: 3293757.11 | H109: 0 | I109: 150059.58 | J109: 20 | K109: 0.05 | L109: 25 | M109: 0.04 | N109: 164687.8555 | O109: 0 | P109: 3001.1916 | Q109: 167689.0471 | R109: 167575 | S109: -114.0471
A110: 1860 | B110: Meters (Smart Meters) | C110: 554186.13 | E110: 554186.13 | H110: 0 | I110: 24347.26 | J110: 14.5 | K110: 0.06896551724 | L110: 15 | M110: 0.06666666667 | N110: 38219.7331 | O110: 0 | P110: 811.5753333 | Q110: 39031.30844 | R110: 31148 | S110: -7883.308437
A111: 1905 | B111: Land | C111: 190119 | E111: 190119 | H111: 0 | K111: 0 | M111: 0 | N111: 0 | O111: 0 | P111: 0 | Q111: 0 | S111: 0
A112: 1908 | B112: Buildings & Fixtures | C112: 2015376.03 | E112: 2015376.03 | H112: 0 | I112: 27401.3 | J112: 47.5 | K112: 0.02105263158 | L112: 50 | M112: 0.02 | N112: 42428.96905 | O112: 0 | P112: 274.013 | Q112: 42702.98205 | R112: 42858.18 | S112: 155.1979474
A113: 1910 | B113: Leasehold Improvements | C113: 0 | E113: 0 | H113: 0 | K113: 0 | M113: 0 | N113: 0 | O113: 0 | P113: 0 | Q113: 0 | S113: 0
A114: 1915 | B114: Office Furniture & Equipment (10 years) | C114: 74266.22 | E114: 74266.22 | H114: 0 | I114: 8365.17 | J114: 6.6 | K114: 0.1515151515 | L114: 10 | M114: 0.1 | N114: 11252.45758 | O114: 0 | P114: 418.2585 | Q114: 11670.71608 | R114: 16755.23 | S114: 5084.513924
A115: 1915 | B115: Office Furniture & Equipment (5 years) | C115: 0 | E115: 0 | H115: 0 | K115: 0 | L115: 10 | M115: 0.1 | N115: 0 | O115: 0 | P115: 0 | Q115: 0 | S115: 0
A116: 1920 | B116: Computer Equipment - Hardware | C116: 134649.53 | E116: 134649.53 | H116: 0 | I116: 18106.27 | J116: 2.5 | K116: 0.4 | L116: 5 | M116: 0.2 | N116: 53859.812 | O116: 0 | P116: 1810.627 | Q116: 55670.439 | R116: 141384.13 | S116: 85713.691
A117: 1920 | B117: Computer Equip.-Hardware(Post Mar. 22/04) | C117: 0 | E117: 0 | H117: 0 | K117: 0 | M117: 0 | N117: 0 | O117: 0 | P117: 0 | Q117: 0 | S117: 0
A118: 1920 | B118: Computer Equip.-Hardware(Post Mar. 19/07) | C118: 0 | E118: 0 | H118: 0 | K118: 0 | M118: 0 | N118: 0 | O118: 0 | P118: 0 | Q118: 0 | S118: 0
A119: 1930 | B119: Transportation Equipment | C119: 1043170.95 | E119: 1043170.95 | H119: 0 | I119: 382063.85 | J119: 13 | K119: 0.07692307692 | L119: 10 | M119: 0.1 | N119: 80243.91923 | O119: 0 | P119: 19103.1925 | Q119: 99347.11173 | R119: 157919.7 | S119: 58572.58827
A120: 1935 | B120: Stores Equipment | C120: 17416.3 | E120: 17416.3 | H120: 0 | J120: 8 | K120: 0.125 | L120: 10 | M120: 0.1 | N120: 2177.0375 | O120: 0 | P120: 0 | Q120: 2177.0375 | R120: 3670.37 | S120: 1493.3325
A121: 1940 | B121: Tools, Shop & Garage Equipment | C121: 204434.71 | E121: 204434.71 | H121: 0 | I121: 54158.99 | J121: 7.6 | K121: 0.1315789474 | L121: 10 | M121: 0.1 | N121: 26899.30395 | O121: 0 | P121: 2707.9495 | Q121: 29607.25345 | R121: 58183.86 | S121: 28576.60655
A122: 1945 | B122: Measurement & Testing Equipment | C122: 39771.59 | E122: 39771.59 | H122: 0 | K122: 0 | L122: 10 | M122: 0.1 | N122: 0 | O122: 0 | P122: 0 | Q122: 0 | R122: 11669.42 | S122: 11669.42
A123: 1950 | B123: Power Operated Equipment | C123: 0 | E123: 0 | H123: 0 | K123: 0 | M123: 0 | N123: 0 | O123: 0 | P123: 0 | Q123: 0 | R123: 0 | S123: 0
A124: 1955 | B124: Communications Equipment | C124: 112480.97 | E124: 112480.97 | H124: 0 | I124: 4947.12 | J124: 5 | K124: 0.2 | L124: 10 | M124: 0.1 | N124: 22496.194 | O124: 0 | P124: 247.356 | Q124: 22743.55 | R124: 59434.5 | S124: 36690.95
A125: 1955 | B125: Communication Equipment (Smart Meters) | C125: 0 | E125: 0 | H125: 0 | K125: 0 | M125: 0 | N125: 0 | O125: 0 | P125: 0 | Q125: 0 | S125: 0
A126: 1960 | B126: Miscellaneous Equipment | C126: 0 | E126: 0 | H126: 0 | K126: 0 | M126: 0 | N126: 0 | O126: 0 | P126: 0 | Q126: 0 | S126: 0
A127: 1970 | B127: Load Management Controls Customer Premises | C127: 0 | E127: 0 | H127: 0 | K127: 0 | M127: 0 | N127: 0 | O127: 0 | P127: 0 | Q127: 0 | S127: 0
A128: 1975 | B128: Load Management Controls Utility Premises | C128: 0 | E128: 0 | H128: 0 | K128: 0 | M128: 0 | N128: 0 | O128: 0 | P128: 0 | Q128: 0 | S128: 0
A129: 1980 | B129: System Supervisor Equipment | C129: 0 | E129: 0 | H129: 0 | K129: 0 | M129: 0 | N129: 0 | O129: 0 | P129: 0 | Q129: 0 | S129: 0
A130: 1985 | B130: Miscellaneous Fixed Assets | C130: 0 | E130: 0 | H130: 0 | K130: 0 | M130: 0 | N130: 0 | O130: 0 | P130: 0 | Q130: 0 | S130: 0
A131: 1990 | B131: Other Tangible Property | C131: 0 | E131: 0 | H131: 0 | K131: 0 | M131: 0 | N131: 0 | O131: 0 | P131: 0 | Q131: 0 | S131: 0
A132: 1995 | B132: Contributions & Grants | C132: -11862613 | E132: -11862613 | H132: 0 | I132: -2191898 | J132: 33.5 | K132: 0.02985074627 | L132: 40 | M132: 0.025 | N132: -354107.8507 | O132: 0 | P132: -27398.725 | Q132: -381506.5757 | R132: -278492 | S132: 103014.5757
B133: Total | C133: =SUM(C94:C132) -> 36635737.55 | D133: 0 | E133: 36635737.55 | F133: 0 | G133: 0 | H133: 0 | I133: 3447138.22 | N133: =SUM(N94:N132) -> 1447290.728 | O133: 0 | P133: 69680.34335 | Q133: 1516971.072 | R133: 1905382.72 | S133: 388411.6485
A136: General: | B136: Applicants are to complete this appendix to show the reasonability of the depreciation expense that is included in rate base via. Accumulated depreciation and the revenue requirement.
B137: Applicants must provide a breakdown of depreciation and amortization expense in the above format for all relevant accounts. Balances presented in the table should exclude asset retirement obligations (AROs) and the related depreciation and accretion expense. These should be disclosed separately consistent with the Notes of historical Audited Financial Statements.
A140: Notes:
A141: 1 | B141: This is the net book value of assets that existed as at the date of the utility's change in depreciation policies (i.e. as at Jan. 1, 2012 or Jan. 1, 2013). These assets are to be depreciated at the average remaining service life. This amount will not change in years subsequent to the date of the utility's change in depreciation policies. This column is expected to be used until the assets that existed as at the date of the utility's change in depreciation policies are fully depreciated.
A142: 2 | B142: This is the opening gross book value of assets that have been acquired after the date of the utilities change in depreciation policies (i.e. additions starting in 2012/2013 for those who changed policies Jan. 1, 2012/2013). These assets are to be depreciated at the revised service life. The amount is expected to be equal to the gross book value of the prior year plus the prior year's additions.
A143: 3 | B143: A recalculation should be performed to determine the average remaining life of opening balance of assets (i.e. excluding current year's additions) under the change in policies under CGAAP. For example, Asset A had a useful life of 20 years under CGAAP without the change in policies. On January 1 of the year of policy changes, Asset A was 3 years depreciated. As a result, Asset A would have a remaining service life of 17 years (20 years less 3 years) as at January 1 of the year of policy changes. Due to making the change in policies under CGAAP, management re-assessed the asset useful lives and concluded that the revised useful life of Asset A is now 30 years. Therefore, the average remaining useful life of the opening balance of Asset A is determined to be 27 years (30 years less 3 years) under the revised CGAAP as at January 1 of the year of policy changes.
A144: 4 | B144: The useful life used should be consistent with the OEB's regulatory accounting policies as set out in the Accounting Procedures Handbook for Electricity Distributors, effective Jan. 1, 2012 and also with the Report of the Board, Transition to International Financial Reporting Standards, EB-2008-0408, and the Kinectrics Report.
A145: 5 | B145: Board policy of the "half-year" rule - the applicant must ensure that additions in the year attract a half-year depreciation expense in the first year. Deviations from this standard practice must be supported in the application.
A146: 6 | B146: The applicant must provide an explanation of material variances in evidence.
A147: 7 | B147: This should include assets in column a (excel column C) that become fully depreciated since the date of the policy change. The amount input in b (excel column D) should equal the net book value of the asset as at the date of depreciation policy change
A148: 8 | B148: This should include assets in column d (excel column f) that have become fully depreciated. The amount input in e (excel column G) should equal the gross book value of the asset
P149: File Number: | R149: EB-2017-0039
P150: Exhibit: | R150: 4
A151: This appendix is to be completed in conjunction with the accounting instructions in Appendix 2-B | P151: Tab: | R151: 4-M
P152: Page: | R152: 3 of 7
P154: Date: | R154: August 28th, 2017
A157: Scenario that applies | C157: Applicable Years and Accounting Standard | R157: Year Reflected in Schedule Below | S157: Accounting Standard Reflected in Schedule Below | Y157: 2012
A158: Rebasing for the first time with depreciation policy changes made in 2012. | C158: This appendix must be duplicated and completed for the years 2012 to 2018. The appendix for 2012 is to be completed under CGAAP (prior to changes in depreciation policies). The appendix for 2012 to 2014 must be completed under Revised CGAAP (after changes in depreciation policies). The appendix for 2014 to 2018 is to be completed under MIFRS (2014 if changes to MIFRS are material). | Y158: 2013
A159: Rebasing for the first time with depreciation policy changes made in 2013. | C159: This appendix must be duplicated and completed for the years 2013 to 2018. The appendix for 2013 is to be completed under CGAAP (prior to changes in depreciation policies). The appendix for 2013 to 2014 must be completed under Revised CGAAP (after changes in depreciation policies). The appendix for 2014 to 2018 is to be completed under MIFRS (2014 if changes to MIFRS are material). | R159: 2014 | S159: Revised CGAAP | Y159: 2014
A160: Already rebased with depreciation policy changes in a prior rate application | C160: This appendix must be completed for 2014 to 2018. The appendix for 2014 is to be completed under Revised CGAAP (after changes in depreciation policies). The appendix for 2014 to 2018 is to be completed under MIFRS (2014 if changes to MIFRS are material). | Y160: 2015
Y161: 2016
Y162: 2017
C163: Book Values | J163: Service Lives | N163: Depreciation Expense | Y163: 2018
A164: Account | B164: Description | C164: Opening Net Book Value of Existing Assets as at Date of Policy Change (Jan. 1) 1 | D164: Less Fully Depreciated 7 | E164: Net Amount of Existing Assets Before Policy Change to be Depreciated | F164: Opening Gross Book Value of Assets Acquired After Policy Change 2 | G164: Less Fully Depreciated 8 | H164: Net Amount of Assets Acquired After Policy Change to be Depreciated | I164: Current Year Additions | J164: Average Remaining Life of Assets Existing Before Policy Change 3 | K164: Depreciation Rate Assets Acquired After Policy Change | L164: Life of Assets Acquired After Policy Change 4 | M164: Depreciation Rate on New Additions | N164: Depreciation Expense on Assets Existing Before Policy Change | O164: Depreciation Expense on Assets Acquired After Policy Change | P164: Depreciation Expense on Current Year Additions 5 | Q164: Total Current Year Depreciation Expense | R164: Depreciation Expense per Appendix 2-BA Fixed Assets, Column J | S164: Variance 6
C165: a | D165: b | E165: c = a-b | F165: d | G165: e | H165: f = d- e | I165: g | J165: h | K165: i = 1/h | L165: j | M165: k = 1/j | N165: l = c/h | O165: m = f/j | P165: n = g*0.5/j | Q165: o = l+m+n | R165: p | S165: q = p-o
A166: 1611 | B166: Computer Software (Formally known as Account 1925) | C166: 415096.12 | D166: 155466.7116 | E166: =C166-D166 -> 259629.4084 | F166: 66054.57 | H166: =F166-G166 -> 66054.57 | I166: 74868.21 | J166: 2.67 | K166: =IF(J166=0,0,1/J166) -> 0.3745318352 | L166: 5 | M166: =IF(L166=0,0,1/L166) -> 0.2 | N166: =IF(J166=0,0,+E166/J166) -> 97239.4788 | O166: =IF(L166=0,0,+H166/L166) -> 13210.914 | P166: =IF(L166=0,0,+(I166*0.5)/L166) -> 7486.821 | Q166: =IF(ISERROR(+N166+O166+P166), 0, +N166+O166+P166) -> 117937.2138 | R166: 75831.19 | S166: =IF(ISERROR(+R166-122), 0, +R166-Q166) -> -42106.0238
A167: 1612 | B167: Land Rights (Formally known as Account 1906) | C167: 105691.6 | D167: 2402.081818 | E167: =C167-D167 -> 103289.5182 | F167: 60262.4 | H167: =F167-G167 -> 60262.4 | I167: 15070.7 | J167: 43 | K167: =IF(J167=0,0,1/J167) -> 0.02325581395 | L167: 50 | M167: =IF(L167=0,0,1/L167) -> 0.02 | N167: =IF(J167=0,0,+E167/J167) -> 2402.081818 | O167: =IF(L167=0,0,+H167/L167) -> 1205.248 | P167: =IF(L167=0,0,+(I167*0.5)/L167) -> 150.707 | Q167: =IF(ISERROR(+N167+O167+P167), 0, +N167+O167+P167) -> 3758.036818 | R167: 3679.29 | S167: =IF(ISERROR(+R167-122), 0, +R167-Q167) -> -78.74681818
A168: 1805 | B168: Land | C168: 47899.33 | D168: 0 | E168: 47899.33 | F168: 0 | H168: 0 | I168: 0 | K168: 0 | M168: 0 | N168: 0 | O168: =IF(L168=0,0,+H168/L168) -> 0 | P168: 0 | Q168: 0 | R168: 0 | S168: 0
A169: 1808 | B169: Buildings | C169: 0 | D169: 0 | E169: 0 | F169: 0 | H169: 0 | K169: 0 | M169: 0 | N169: 0 | O169: 0 | P169: 0 | Q169: 0 | S169: 0
A170: 1810 | B170: Leasehold Improvements | C170: 0 | D170: 0 | E170: 0 | F170: 0 | H170: 0 | K170: 0 | M170: 0 | N170: 0 | O170: 0 | P170: 0 | Q170: 0 | S170: 0
A171: 1815 | B171: Transformer Station Equipment >50 kV | C171: 0 | D171: 0 | E171: 0 | F171: 0 | H171: 0 | K171: 0 | M171: 0 | N171: 0 | O171: 0 | P171: 0 | Q171: 0 | S171: 0
A172: 1820 | B172: Distribution Station Equipment <50 kV | C172: 82460.57 | D172: 3782.594954 | E172: 78677.97505 | F172: 1431.86 | H172: 1431.86 | J172: 20.8 | K172: 0.04807692308 | L172: 25 | M172: 0.04 | N172: 3782.594954 | O172: 57.2744 | P172: 0 | Q172: 3839.869354 | R172: 3599.49 | S172: -240.3793541
A173: 1825 | B173: Storage Battery Equipment | C173: 0 | D173: 0 | E173: 0 | F173: 0 | H173: 0 | K173: 0 | M173: 0 | N173: 0 | O173: 0 | P173: 0 | Q173: 0 | S173: 0
A174: 1830 | B174: Poles, Towers & Fixtures | C174: 5420961.99 | D174: 119142.0218 | E174: 5301819.968 | F174: 388993.92 | H174: 388993.92 | I174: 490623.75 | J174: 44.5 | K174: 0.02247191011 | L174: 50 | M174: 0.02 | N174: 119142.0218 | O174: 7779.8784 | P174: 4906.2375 | Q174: 131828.1377 | R174: 129120.78 | S174: -2707.357658
A175: 1835 | B175: Overhead Conductors & Devices | C175: 3471065.11 | D175: 78887.84341 | E175: 3392177.267 | F175: 494529.82 | H175: 494529.82 | I175: 431487.57 | J175: 43 | K175: 0.02325581395 | L175: 50 | M175: 0.02 | N175: 78887.84341 | O175: 9890.5964 | P175: 4314.8757 | Q175: 93093.31551 | R175: 73358.99 | S175: -19734.32551
A176: 1840 | B176: Underground Conduit | C176: 8282816.03 | D176: 243612.2362 | E176: 8039203.794 | F176: 832805.87 | H176: 832805.87 | I176: 1250715.53 | J176: 33 | K176: 0.0303030303 | L176: 40 | M176: 0.025 | N176: 243612.2362 | O176: 20820.14675 | P176: 15633.94412 | Q176: 280066.3271 | R176: 122832.81 | S176: -157233.5171
A177: 1845 | B177: Underground Conductors & Devices | C177: 7075568.74 | D177: 294815.3642 | E177: 6780753.376 | F177: 924907.15 | H177: 924907.15 | I177: 839997.2 | J177: 23 | K177: 0.04347826087 | L177: 30 | M177: 0.03333333333 | N177: 294815.3642 | O177: 30830.23833 | P177: 13999.95333 | Q177: 339645.5558 | R177: 365105.06 | S177: 25459.50417
A178: 1850 | B178: Line Transformers | C178: 10116755.03 | D178: 297551.6185 | E178: 9819203.411 | F178: 1355258.01 | H178: 1355258.01 | I178: 1287292.98 | J178: 33 | K178: 0.0303030303 | L178: 40 | M178: 0.025 | N178: 297551.6185 | O178: 33881.45025 | P178: 16091.16225 | Q178: 347524.231 | R178: 353494.25 | S178: 5970.018971
A179: 1855 | B179: Services (Overhead & Underground) | C179: 1066258.4 | D179: 24233.14545 | E179: 1042025.255 | F179: 279902.74 | H179: 279902.74 | I179: 274859.35 | J179: 43 | K179: 0.02325581395 | L179: 50 | M179: 0.02 | N179: 24233.14545 | O179: 5598.0548 | P179: 2748.5935 | Q179: 32579.79375 | R179: 34973.19 | S179: 2393.396245
A180: 1855 | B180: Services (Underground) | C180: 4734149.09 | D180: 139239.6791 | E180: 4594909.411 | F180: 565440.34 | H180: 565440.34 | I180: 770067.21 | J180: 33 | K180: 0.0303030303 | L180: 40 | M180: 0.025 | N180: =IF(J180=0,0,+E180/J180) -> 139239.6791 | O180: =IF(L180=0,0,+H180/L180) -> 14136.0085 | P180: =IF(L180=0,0,+(I180*0.5)/L180) -> 9625.840125 | Q180: =IF(ISERROR(+N180+O180+P180), 0, +N180+O180+P180) -> 163001.5277 | R180: 131826.65 | S180: =IF(ISERROR(+R180-122), 0, +R180-Q180) -> -31174.87774
A181: 1860 | B181: Meters | C181: 3293757.11 | D181: 164687.8555 | E181: 3129069.254 | F181: 150059.58 | H181: 150059.58 | I181: 68367.63 | J181: 19 | K181: 0.05263157895 | L181: 25 | M181: 0.04 | N181: 164687.8555 | O181: 6002.3832 | P181: 1367.3526 | Q181: 172057.5913 | R181: 178821 | S181: 6763.4087
A182: 1860 | B182: Meters (Smart Meters) | C182: 554186.13 | D182: 38219.7331 | E182: 515966.3969 | F182: 24347.26 | H182: 24347.26 | I182: 26539.09 | J182: 13.5 | K182: 0.07407407407 | L182: 15 | M182: 0.06666666667 | N182: 38219.7331 | O182: 1623.150667 | P182: 884.6363333 | Q182: 40727.5201 | R182: 23884 | S182: -16843.5201
A183: 1905 | B183: Land | C183: 190119 | D183: 0 | E183: 190119 | F183: 0 | H183: 0 | K183: 0 | M183: 0 | N183: 0 | O183: 0 | P183: 0 | Q183: 0 | S183: 0
A184: 1908 | B184: Buildings & Fixtures | C184: 2015376.03 | D184: 42428.96905 | E184: 1972947.061 | F184: 27401.3 | H184: 27401.3 | J184: 46.5 | K184: 0.02150537634 | L184: 50 | M184: 0.02 | N184: 42428.96905 | O184: 548.026 | P184: 0 | Q184: 42976.99505 | R184: 27100.35 | S184: -15876.64505
A185: 1910 | B185: Leasehold Improvements | C185: 0 | D185: 0 | E185: 0 | F185: 0 | H185: 0 | K185: 0 | M185: 0 | N185: 0 | O185: 0 | P185: 0 | Q185: 0 | S185: 0
A186: 1915 | B186: Office Furniture & Equipment (10 years) | C186: 74266.22 | D186: 11252.45758 | E186: 63013.76242 | F186: 8365.17 | H186: 8365.17 | I186: 1498.95 | J186: 5.6 | K186: 0.1785714286 | L186: 10 | M186: 0.1 | N186: 11252.45758 | O186: 836.517 | P186: 74.9475 | Q186: 12163.92208 | R186: 17979.47 | S186: 5815.547924
A187: 1915 | B187: Office Furniture & Equipment (5 years) | C187: 0 | D187: 0 | E187: 0 | F187: 0 | H187: 0 | K187: 0 | L187: 10 | M187: 0.1 | N187: 0 | O187: 0 | P187: 0 | Q187: 0 | S187: 0
A188: 1920 | B188: Computer Equipment - Hardware | C188: 134649.53 | D188: 53859.812 | E188: 80789.718 | F188: 18106.27 | H188: 18106.27 | I188: 43347.54 | J188: 1.5 | K188: 0.6666666667 | L188: 5 | M188: 0.2 | N188: 53859.812 | O188: 3621.254 | P188: 4334.754 | Q188: 61815.82 | R188: 4346.21 | S188: -57469.61
A189: 1920 | B189: Computer Equip.-Hardware(Post Mar. 22/04) | C189: 0 | D189: 0 | E189: 0 | F189: 0 | H189: 0 | K189: 0 | M189: 0 | N189: 0 | O189: 0 | P189: 0 | Q189: 0 | S189: 0
A190: 1920 | B190: Computer Equip.-Hardware(Post Mar. 19/07) | C190: 0 | D190: 0 | E190: 0 | F190: 0 | H190: 0 | K190: 0 | M190: 0 | N190: 0 | O190: 0 | P190: 0 | Q190: 0 | S190: 0
A191: 1930 | B191: Transportation Equipment | C191: 1043170.95 | D191: 80243.91923 | E191: 962927.0308 | F191: 382063.85 | H191: 382063.85 | I191: 425100.15 | J191: 12 | K191: 0.08333333333 | L191: 10 | M191: 0.1 | N191: 80243.91923 | O191: 38206.385 | P191: 21255.0075 | Q191: 139705.3117 | R191: 146304.74 | S191: 6599.428269
A192: 1935 | B192: Stores Equipment | C192: 17416.3 | D192: 2177.0375 | E192: 15239.2625 | F192: 0 | H192: 0 | J192: 7 | K192: 0.1428571429 | L192: 10 | M192: 0.1 | N192: 2177.0375 | O192: 0 | P192: 0 | Q192: 2177.0375 | R192: 2672.87 | S192: 495.8325
A193: 1940 | B193: Tools, Shop & Garage Equipment | C193: 204434.71 | D193: 26899.30395 | E193: 177535.4061 | F193: 54158.99 | H193: 54158.99 | I193: 78332.85 | J193: 6.6 | K193: 0.1515151515 | L193: 10 | M193: 0.1 | N193: 26899.30395 | O193: 5415.899 | P193: 3916.6425 | Q193: 36231.84545 | R193: 63233.44 | S193: 27001.59455
A194: 1945 | B194: Measurement & Testing Equipment | C194: 39771.59 | D194: 0 | E194: 39771.59 | F194: 0 | H194: 0 | K194: 0 | L194: 10 | M194: 0.1 | N194: 0 | O194: 0 | P194: 0 | Q194: 0 | R194: 11234.61 | S194: 11234.61
A195: 1950 | B195: Power Operated Equipment | C195: 0 | D195: 0 | E195: 0 | F195: 0 | H195: 0 | K195: 0 | M195: 0 | N195: 0 | O195: 0 | P195: 0 | Q195: 0 | S195: 0
A196: 1955 | B196: Communications Equipment | C196: 112480.97 | D196: 22496.194 | E196: 89984.776 | F196: 4947.12 | H196: 4947.12 | J196: 4 | K196: 0.25 | L196: 10 | M196: 0.1 | N196: 22496.194 | O196: 494.712 | P196: 0 | Q196: 22990.906 | R196: 43937.11 | S196: 20946.204
A197: 1955 | B197: Communication Equipment (Smart Meters) | C197: 0 | D197: 0 | E197: 0 | F197: 0 | H197: 0 | K197: 0 | M197: 0 | N197: 0 | O197: 0 | P197: 0 | Q197: 0 | S197: 0
A198: 1960 | B198: Miscellaneous Equipment | C198: 0 | D198: 0 | E198: 0 | F198: 0 | H198: 0 | K198: 0 | M198: 0 | N198: 0 | O198: 0 | P198: 0 | Q198: 0 | S198: 0
A199: 1970 | B199: Load Management Controls Customer Premises | C199: 0 | D199: 0 | E199: 0 | F199: 0 | H199: 0 | K199: 0 | M199: 0 | N199: 0 | O199: 0 | P199: 0 | Q199: 0 | S199: 0
A200: 1975 | B200: Load Management Controls Utility Premises | C200: 0 | D200: 0 | E200: 0 | F200: 0 | H200: 0 | K200: 0 | M200: 0 | N200: 0 | O200: 0 | P200: 0 | Q200: 0 | S200: 0
A201: 1980 | B201: System Supervisor Equipment | C201: 0 | D201: 0 | E201: 0 | F201: 0 | H201: 0 | K201: 0 | M201: 0 | N201: 0 | O201: 0 | P201: 0 | Q201: 0 | S201: 0
A202: 1985 | B202: Miscellaneous Fixed Assets | C202: 0 | D202: 0 | E202: 0 | F202: 0 | H202: 0 | K202: 0 | M202: 0 | N202: 0 | O202: 0 | P202: 0 | Q202: 0 | S202: 0
A203: 1990 | B203: Other Tangible Property | C203: 0 | D203: 0 | E203: 0 | F203: 0 | H203: 0 | K203: 0 | M203: 0 | N203: 0 | O203: 0 | P203: 0 | Q203: 0 | S203: 0
A204: 1995 | B204: Contributions & Grants | C204: -11862613 | D204: -354107.8507 | E204: -11508505.15 | F204: -2191898 | H204: -2191898 | I204: -1122171 | J204: 32.5 | K204: 0.03076923077 | L204: 40 | M204: 0.025 | N204: -354107.8507 | O204: -54797.45 | P204: -14027.1375 | Q204: -422932.4382 | R204: -247371 | S204: 175561.4382
B205: Total | C205: =SUM(C166:C204) -> 36635737.55 | D205: 1447290.728 | E205: 35188446.82 | F205: 3447138.22 | G205: 0 | H205: 3447138.22 | I205: 4955997.71 | N205: =SUM(N166:N204) -> 1389063.495 | O205: 139360.6867 | P205: 92764.33747 | Q205: 1621188.52 | R205: 1565964.5 | S205: -55224.01951
A208: General: | B208: Applicants are to complete this appendix to show the reasonability of the depreciation expense that is included in rate base via. Accumulated depreciation and the revenue requirement.
B209: Applicants must provide a breakdown of depreciation and amortization expense in the above format for all relevant accounts. Balances presented in the table should exclude asset retirement obligations (AROs) and the related depreciation and accretion expense. These should be disclosed separately consistent with the Notes of historical Audited Financial Statements.
A212: Notes:
A213: 1 | B213: This is the net book value of assets that existed as at the date of the utility's change in depreciation policies (i.e. as at Jan. 1, 2012 or Jan. 1, 2013). These assets are to be depreciated at the average remaining service life. This amount will not change in years subsequent to the date of the utility's change in depreciation policies. This column is expected to be used until the assets that existed as at the date of the utility's change in depreciation policies are fully depreciated.
A214: 2 | B214: This is the opening gross book value of assets that have been acquired after the date of the utilities change in depreciation policies (i.e. additions starting in 2012/2013 for those who changed policies Jan. 1, 2012/2013). These assets are to be depreciated at the revised service life. The amount is expected to be equal to the gross book value of the prior year plus the prior year's additions.
A215: 3 | B215: A recalculation should be performed to determine the average remaining life of opening balance of assets (i.e. excluding current year's additions) under the change in policies under CGAAP. For example, Asset A had a useful life of 20 years under CGAAP without the change in policies. On January 1 of the year of policy changes, Asset A was 3 years depreciated. As a result, Asset A would have a remaining service life of 17 years (20 years less 3 years) as at January 1 of the year of policy changes. Due to making the change in policies under CGAAP, management re-assessed the asset useful lives and concluded that the revised useful life of Asset A is now 30 years. Therefore, the average remaining useful life of the opening balance of Asset A is determined to be 27 years (30 years less 3 years) under the revised CGAAP as at January 1 of the year of policy changes.
A216: 4 | B216: The useful life used should be consistent with the OEB's regulatory accounting policies as set out in the Accounting Procedures Handbook for Electricity Distributors, effective Jan. 1, 2012 and also with the Report of the Board, Transition to International Financial Reporting Standards, EB-2008-0408, and the Kinectrics Report.
A217: 5 | B217: Board policy of the "half-year" rule - the applicant must ensure that additions in the year attract a half-year depreciation expense in the first year. Deviations from this standard practice must be supported in the application.
A218: 6 | B218: The applicant must provide an explanation of material variances in evidence.
A219: 7 | B219: This should include assets in column a (excel column C) that become fully depreciated since the date of the policy change. The amount input in b (excel column D) should equal the net book value of the asset as at the date of depreciation policy change
A220: 8 | B220: This should include assets in column d (excel column f) that have become fully depreciated. The amount input in e (excel column G) should equal the gross book value of the asset
A222: This appendix is to be completed in conjunction with the accounting instructions in Appendix 2-B | P222: File Number: | R222: EB-2017-0039
... 262 more rows

Sheet App.2-D_Overhead
I1: File Number: | J1: =EBNUMBER -> EB-2017-0039
I2: Exhibit: | J2: 2
I3: Attachment: | J3: 2-G
I4: Page: | J4: 1 of 1
I6: Date: | J6: August 28th, 2017
A8: Appendix 2-D
A9: Overhead Expense
A11: Applicants are to provide a breakdown of OM&A before capitalization in the below table. OM&A before capitalization may be broken down by cost center, program, drivers or another format best suited to focus on capitalized vs. uncapitalized OM&A.
A13: OM&A Before Capitalization
B14: =E14-3 -> 2011 | C14: =G14-4 -> 2012 | D14: =G14-3 -> 2013 | E14: =I14-4 -> 2014 | F14: =I14-3 -> 2015 | G14: =I14-2 -> 2016 | H14: =I14-1 -> 2017 | I14: =TestYear -> 2018
B15: Historical Year | C15: Historical Year | D15: Historical Year | E15: Historical Year | F15: Historical Year | G15: Historical Year | H15: Bridge Year | I15: Test Year
A16: Distribution | B16: 2311982.92 | C16: 2769623.95 | D16: 2288897.46 | E16: 2573945.51 | F16: 2768874.17 | G16: 2489996.05 | H16: 2112491.59 | I16: 2200339.097
A17: Billing & Collecting | B17: 1131257.29 | C17: 1174567.96 | D17: 1329771.06 | E17: 1158128.04 | F17: 1229676.23 | G17: 1348249.06 | H17: 1499880.49 | I17: 1550150.106
A18: Community Relations | B18: 11393.68 | C18: 8538.61 | D18: 8451.05 | E18: 10015.52 | F18: 12012.75 | G18: 6482.32 | H18: 23441.6927 | I18: 23395.9991
A19: Administrative & General | B19: 2092295.27 | C19: 2240565.97 | D19: 2400175.15 | E19: 2962129.8 | F19: 2753655.02 | G19: 3136895.42 | H19: 3579949.119 | I19: 3796389.519
A20: Labour Burden | B20: 229006 | C20: 293809 | D20: 370247 | E20: 375867 | F20: 420809 | G20: 426466 | H20: 486528 | I20: 496528
A21: Material Burden | B21: 415547 | C21: 451614 | D21: 117111 | E21: 94162 | F21: 92905 | G21: 79266 | H21: 88476 | I21: 90246
A22: Vehicle Burden | B22: 153393 | C22: 234821 | D22: 251570 | E22: 216004 | F22: 263029 | G22: 228808 | H22: 240000 | I22: 250000
A23: Total OM&A Before Capitalization (B) | B23: =SUM(B16:B22) -> 6344875.16 | C23: 7173540.49 | D23: 6766222.72 | E23: 7390251.87 | F23: 7540961.17 | G23: 7716162.85 | H23: 8030766.892 | I23: 8407048.721
A25: Applicants are to provide a breakdown of capitalized OM&A in the below table. Capitalized OM&A may be broken down using the categories listed in the table below if possible. Otherwise, applicants are to provide its own break down of capitalized OM&A.
A27: Capitalized OM&A | J27: Directly | K27: Explanation for Change in Overhead Capitalized
B28: =F28-4 -> 2011 | C28: 2012 | D28: 2013 | E28: =I28-4 -> 2014 | F28: =I28-3 -> 2015 | G28: =I28-2 -> 2016 | H28: =I28-1 -> 2017 | I28: =TestYear -> 2018 | J28: Attributable?
B29: Historical Year | C29: Historical Year | D29: Historical Year | E29: Historical Year | F29: Historical Year | G29: Historical Year | H29: Bridge Year | I29: Test Year | J29: (Yes/No)
A30: Labour Burden | B30: 229006 | C30: 293809 | D30: 370247 | E30: 375867 | F30: 420809 | G30: 426466 | H30: 486528 | I30: 496528 | J30: Yes | K30: Training no longer capitalized under IFRS/MIFRS.
A31: Material Burden | B31: 415547 | C31: 451614 | D31: 117111 | E31: 94162 | F31: 92905 | G31: 79266 | H31: 88476 | I31: 90246 | J31: Yes | K31: Removed the Admin OH layer of our burdens due to IFRS/MIFRS
A32: Vehicle Burden | B32: 153393 | C32: 234821 | D32: 251570 | E32: 216004 | F32: 263029 | G32: 228808 | H32: 240000 | I32: 250000 | J32: Yes | K32: No changes necessary under MIFRS/IFRS.
A33: Total Capitalized OM&A (A) | B33: =SUM(B30:B32) -> 797946 | C33: 980244 | D33: 738928 | E33: 686033 | F33: 776743 | G33: 734540 | H33: 815004 | I33: 836774
A35: % of Capitalized OM&A (=A/B) | B35: =IF(ISERROR(B33/B23),"0%",B33/B23) -> 0.1257622853 | C35: 0.136647169 | D35: 0.1092083472 | E35: 0.09282944777 | F35: 0.1030031826 | G35: 0.09519498412 | H35: 0.101485202 | I35: 0.09953243139

Sheet App.2-EA_Account 1575 (2015)
H1: File Number: | I1: =EBNUMBER -> EB-2017-0039
H2: Exhibit:
H3: Tab:
H4: Schedule:
H5: Page:
H7: Date:
A9: Appendix 2-EA
A10: Account 1575 - IFRS-CGAAP Transitional PP&E Amounts
A11: 2015 Adopters of IFRS for Financial Reporting Purposes
A13: For applicants that adopted IFRS on January 1, 2015 for financial reporting purposes
B17: 2014 | C17: =TestYear-3 -> 2015 | D17: =TestYear-2 -> 2016 | E17: =CONCATENATE(TestYear-1," Bridge Year") -> 2017 Bridge Year | F17: =CONCATENATE(TestYear," Rebasing Year") -> 2018 Rebasing Year
A18: Reporting Basis | B18: CGAAP | C18: CGAAP | D18: CGAAP | E18: MIFRS | F18: MIFRS
B19: Actual | C19: Actual | D19: Actual | E19: Forecast | F19: Forecast
D20: $ | E20: $
A21: PP&E Values under CGAAP
A22: Opening net PP&E - Note 1 | C22: =+B25 -> 0 | D22: =+C25 -> 0 | E22: =+D25 -> 0
A23: Net Additions - Note 4
A24: Net Depreciation (amounts should be negative) - Note 4
A25: Closing net PP&E (1) | B25: =SUM(B22:B24) -> 0 | C25: =SUM(C22:C24) -> 0 | D25: =SUM(D22:D24) -> 0 | E25: =SUM(E22:E24) -> 0
A27: PP&E Values under MIFRS (Starts from 2014, the transition year)
A28: Opening net PP&E - Note 1 | C28: =+B31 -> 0 | D28: =+C31 -> 0 | E28: =+D31 -> 0
A29: Net Additions - Note 4
A30: Net Depreciation (amounts should be negative) - Note 4
A31: Closing net PP&E (2) | B31: =SUM(B28:B30) -> 0 | C31: =SUM(C28:C30) -> 0 | D31: =SUM(D28:D30) -> 0 | E31: =SUM(E28:E30) -> 0
A33: Difference in Closing net PP&E, former CGAAP vs. revised CGAAP | B33: =B25-B31 -> 0 | C33: =C25-C31 -> 0 | D33: =D25-D31 -> 0 | E33: =E25-E31 -> 0
A36: Effect on Deferral and Variance Account Rate Riders
A37: Closing balance in Account 1575 | F37: =IF(ISERROR(E33), 0, E33) -> 0 | H37: WACC
A38: Return on Rate Base Associated with Account 1575 balance at WACC - Note 2 | F38: =E33*I37*I38 -> 0 | G38: # of years of rate rider disposition period
A39: Amount included in Deferral and Variance Account Rate Rider Calculation | F39: =F37+F38 -> 0
A41: Notes:
A42: 1 For an applicant that adopted IFRS on January 1, 2015, the PP&E values as of January 1, 2014 under both CGAAP and MIFRS should be the same.
A43: 2 Return on rate base associated with deferred balance is calculated as:
A44: the deferral account closing balance as of 2017 x WACC X # of years of rate rider disposition period
A45: * Please note that the calculation should be adjusted once WACC is updated and finalized in the rate application.
A46: 3 The PP&E deferral account is cleared by including the total balance in the deferral and variance account rate rider calculation.
A47: 4 Net additions are additions net of disposals; Net depreciation is additions to depreciation net of disposals.

Sheet App.2-EB_Account 1576 (2012)
K1: File Number: | L1: =EBNUMBER -> EB-2017-0039
K2: Exhibit:
K3: Tab:
K4: Schedule:
K5: Page:
K7: Date:
A9: Appendix 2-EB
A10: Account 1576 - Accounting Changes under CGAAP
A11: 2012 Changes in Accounting Policies under CGAAP
A13: For applicants with a balance in Account 1576 and made capitalization and depreciation expense accounting policy changes under CGAAP effective January 1, 2012. This is the first time the applicant is rebasing with changes in these accounting policies.
B17: Prior Years Rebasing | C17: 2012 | D17: 2013 | E17: 2014 | F17: 2015 | G17: 2016 | H17: 2017 | I17: 2018 Rebasing Year
A18: Reporting Basis | B18: CGAAP | C18: CGAAP | D18: CGAAP | E18: CGAAP | F18: MIFRS - Note 5 | G18: MIFRS | H18: MIFRS | I18: MIFRS
B19: Forecast | C19: Actual | D19: Actual | E19: Actual | F19: Actual | G19: Actual | H19: Forecast | I19: Forecast
C20: $ | D20: $ | E20: $ | F20: $ | G20: $ | H20: $
A21: PP&E Values under former CGAAP
A22: Opening net PP&E - Note 1 | D22: =+C25 -> 0 | E22: =+D25 -> 0 | F22: =+E25 -> 0 | G22: =+F25 -> 0 | H22: =+G25 -> 0
A23: Net Additions - Note 4
A24: Net Depreciation (amounts should be negative) - Note 4
A25: Closing net PP&E (1) | C25: =C22+C23+C24 -> 0 | D25: 0 | E25: 0 | F25: 0 | G25: 0 | H25: 0
A27: PP&E Values under revised CGAAP (Starts from 2012)
A28: Opening net PP&E - Note 1 | D28: =+C31 -> 0 | E28: =+D31 -> 0 | F28: =+E31 -> 0 | G28: =+F31 -> 0 | H28: =+G31 -> 0
A29: Net Additions - Note 4
A30: Net Depreciation (amounts should be negative) - Note 4
A31: Closing net PP&E (2) | C31: =SUM(C28:C30) -> 0 | D31: 0 | E31: 0 | F31: 0 | G31: 0 | H31: 0
A33: Difference in Closing net PP&E, former CGAAP vs. revised CGAAP | C33: =C25-C31 -> 0 | D33: 0 | E33: 0 | F33: 0 | G33: 0 | H33: 0
A36: Effect on Deferral and Variance Account Rate Riders
A37: Closing balance in Account 1576 | I37: =IF(ISERROR(H33), 0, H33) -> 0 | K37: WACC
A38: Return on Rate Base Associated with Account 1576 balance at WACC - Note 2 | I38: =H33*L37*L38 -> 0 | J38: # of years of rate rider disposition period
A39: Amount included in Deferral and Variance Account Rate Rider Calculation | I39: =I37+I38 -> 0
A41: Notes:
A42: 1 For an applicant that made the capitalization and depreciation expense accounting policy changes on January 1, 2012, the PP&E values as of January 1, 2012 under both former CGAAP and revised CGAAP should be the same.
A43: 2 Return on rate base associated with Account 1576 balance is calculated as:
A44: the variance account ending balance as of 2017 x WACC X # of years of rate rider disposition period
A45: * Please note that the calculation should be adjusted once WACC is updated and finalized in the rate application.
A46: 3 Account 1576 is cleared by including the total balance in the deferral and variance account rate rider calculation.
A47: 4 Net additions are additions net of disposals; Net depreciation is additions to depreciation net of disposals.
A48: 5 Differences due to the adoption of MIFRS are to be shown separately in Account 1575 in Appendix 2-EA as Accounts 1575 and 1576 cannot be used interchangably.

Sheet App.2-EC_Account 1576 (2013)
J1: File Number: | K1: =EBNUMBER -> EB-2017-0039
J2: Exhibit: | K2: 9
J3: Tab: | K3: 9-E
J4: Page: | K4: 1 of 1
J6: Date: | K6: August 28th, 2017
A8: Appendix 2-EC
A9: Account 1576 - Accounting Changes under CGAAP
A10: 2013 Changes in Accounting Policies under CGAAP
A12: For applicants with a balance in Account 1576 and made capitalization and depreciation expense accounting policy changes under CGAAP effective January 1, 2013. This is the first time the applicant is rebasing with changes in these accounting policies.
B16: Prior Years Rebasing | C16: 2013 | D16: 2014 | E16: 2015 | F16: 2016 | G16: 2017 | H16: 2018 Rebasing Year
A17: Reporting Basis | B17: CGAAP | C17: CGAAP | D17: CGAAP | E17: MIFRS - Note 5 | F17: MIFRS | G17: MIFRS | H17: MIFRS
B18: Actual | C18: Actual | D18: Actual | E18: Actual | F18: Actual | G18: Forecast | H18: Forecast
C19: $ | D19: $ | F19: $
A20: PP&E Values under former CGAAP
A21: Opening net PP&E - Note 1 | C21: 36635737.55 | D21: =+C24 -> 37728813.84 | E21: =+D24 -> 40731172.66 | F21: =+E24 -> 43685629.89 | G21: =+F24 -> 45475378.97
A22: Net Additions - Note 4 | C22: 3829948.26 | D22: 5574491.04 | E22: 7020363.098 | F22: 4570661.644 | G22: 5920311.9
A23: Net Depreciation (amounts should be negative) - Note 4 | C23: -2736871.97 | D23: -2572132.22 | E23: -4065905.87 | F23: -2780912.56 | G23: -3377317.62
A24: Closing net PP&E (1) | C24: =C21+C22+C23 -> 37728813.84 | D24: =D21+D22+D23 -> 40731172.66 | E24: =E21+E22+E23 -> 43685629.89 | F24: =F21+F22+F23 -> 45475378.97 | G24: =G21+G22+G23 -> 48018373.25
A26: PP&E Values under revised CGAAP (Starts from 2012)
A27: Opening net PP&E - Note 1 | C27: 36635737.55 | D27: =+C30 -> 38162559.15 | E27: =+D30 -> 41817979.78 | F27: =+E30 -> 45665368.65 | G27: =+F30 -> 48901598.65
A28: Net Additions - Note 4 | C28: 3321218.46 | D28: 5085331.07 | E28: 6331253.87 | F28: 4343082 | G28: 5433708
A29: Net Depreciation (amounts should be negative) - Note 4 | C29: -1794396.86 | D29: -1429910.44 | E29: -2483865 | F29: -1106852 | G29: -2361785.19
A30: Closing net PP&E (2) | C30: =SUM(C27:C29) -> 38162559.15 | D30: =SUM(D27:D29) -> 41817979.78 | E30: =SUM(E27:E29) -> 45665368.65 | F30: =SUM(F27:F29) -> 48901598.65 | G30: =SUM(G27:G29) -> 51973521.46
A32: Difference in Closing net PP&E, former CGAAP vs. revised CGAAP | C32: =C24-C30 -> -433745.31 | D32: =D24-D30 -> -1086807.12 | E32: =E24-E30 -> -1979738.762 | F32: =F24-F30 -> -3426219.678 | G32: =G24-G30 -> -3955148.208
A35: Effect on Deferral and Variance Account Rate Riders
A36: Closing balance in Account 1576 | H36: =IF(ISERROR(G32), 0, G32) -> -3955148.208 | J36: WACC | K36: 0.0556
A37: Return on Rate Base Associated with Account 1576 balance at WACC - Note 2 | H37: =G32*K36*K37 -> -439812.4807 | I37: # of years of rate rider disposition period | K37: 2
A38: Amount included in Deferral and Variance Account Rate Rider Calculation | H38: =H36+H37 -> -4394960.689
A40: Notes:
A41: 1 For an applicant that made the capitalization and depreciation expense accounting policy changes on January 1, 2013, the PP&E values as of January 1, 2013 under both former CGAAP and revised CGAAP should be the same.
A42: 2 Return on rate base associated with Account 1576 balance is calculated as:
A43: the variance account ending balance as of 2017 x WACC X # of years of rate rider disposition period
A44: * Please note that the calculation should be adjusted once WACC is updated and finalized in the rate application.
A45: 3 Account 1576 is cleared by including the total balance in the deferral and variance account rate rider calculation.
A46: 4 Net additions are additions net of disposals; Net depreciation is additions to depreciation net of disposals.
A47: 5 Differences due to the adoption of MIFRS are to be shown separately in Account 1575 in Appendix 2-EA as Accounts 1575 and 1576 cannot be used interchangably.

Sheet App.2-FA Proposed REG Invest.
J1: File Number: | K1: =EBNUMBER -> EB-2017-0039
J2: Exhibit:
J3: Tab:
J4: Schedule:
J5: Page:
J7: Date:
A9: Appendix 2-FA
A10: Renewable Generation Connection Investment Summary (past investments or over the future rate setting period)
A12: Enter the details of the Renewable Generation Connection projects as described in the appropriate section of the Filing Requirements.
A13: All costs entered on this page will be transferred to the appropriate cells in the appendices that follow.
A14: For Part A, Renewable Enabling Improvements (REI), these amounts will be transferred to Appendix 2 - FB
A15: For Part B, Expansions, these amounts will be transferred to Appendix 2 - FC
A17: If there are more than five projects proposed to be in-service in a certain year, please amend the tables below and ensure that the formulae for the Total Amounts in any given rate year are updated.
A18: Based on the current methodology and allocation, amounts allocated represent 6% for REI Connection Investments and 17% for Expansion Investments. (EB-2009-0349, 6-10-2010, p. 15, note 9)
A20: There are two scenarios described below. Separate sets of spreadsheets (2-FA, 2-FB, 2-FC) should be submited for each scenario as required.
A21: Scenario 1: Past Investments with No Recovery. The distributor has made investments in the past (during the IRM Years), but has not received approval for these projects and therefore did not receive
A22: revenue from the IESO under Regulation 330/09 and did not receive ratepayer revenue for the direct benefit portion of the investment.
A23: The WCA percentage, debt percentages, interest rates, kWh, tax rates, amortization period, CCA Class and percentage should correspond to the distributor's last Cost of Service approval.
A24: The Direct Benefit portion of the calculated Revenue Requirement for each year should be summed and can be applied for recovery from the distributor's ratepayers through a rate rider.
A25: The Provincial Recovery portion of the calculated Revenue Requirement for each year should be summed and can be applied for recovery from the IESO through a separate order.
A27: Scenario 2: Investments in the Test Year and Beyond. Distributor plans to make investments in 2017 and/or beyond. These investments should be added to 2-FA in the appropriate year.
A28: The WCA percentage, debt percentages, interest rates, kWh, tax rates, amortization period, CCA Class and percentage should correspond to the distributor's current application.
A30: Part A | G30: Test Year
A31: REI Investments (Direct Benefit at 6%) | C31: =D31-1 -> 2014 | D31: =E31-1 -> 2015 | E31: =F31-1 -> 2016 | F31: =G31-1 -> 2017 | G31: =TestYear -> 2018 | H31: =G31+1 -> 2019 | I31: =H31+1 -> 2020 | J31: =I31+1 -> 2021 | K31: =J31+1 -> 2022
A32: Project 1
A33: Name: REI Connection Project
A34: Capital Costs | C34: 0 | D34: 0 | E34: 0 | F34: 0 | G34: 0 | H34: 0 | I34: 0 | J34: 0 | K34: 0
A35: OM&A (Start-Up) | C35: 0 | D35: 0 | E35: 0 | F35: 0 | G35: 0 | H35: 0 | I35: 0 | J35: 0 | K35: 0
A36: OM&A (Ongoing) | C36: 0 | D36: 0 | E36: 0 | F36: 0 | G36: 0 | H36: 0 | I36: 0 | J36: 0 | K36: 0
A38: Project 2
A39: Name: REI Connection Project
A40: Capital Costs | C40: 0 | D40: 0 | E40: 0 | F40: 0 | G40: 0 | H40: 0 | I40: 0 | J40: 0 | K40: 0
A41: OM&A (Start-Up) | C41: 0 | D41: 0 | E41: 0 | F41: 0 | G41: 0 | H41: 0 | I41: 0 | J41: 0 | K41: 0
A42: OM&A (Ongoing) | C42: 0 | D42: 0 | E42: 0 | F42: 0 | G42: 0 | H42: 0 | I42: 0 | J42: 0 | K42: 0
A44: Project 3
A45: Name: REI Connection Project
A46: Capital Costs | C46: 0 | D46: 0 | E46: 0 | F46: 0 | G46: 0 | H46: 0 | I46: 0 | J46: 0 | K46: 0
A47: OM&A (Start-Up) | C47: 0 | D47: 0 | E47: 0 | F47: 0 | G47: 0 | H47: 0 | I47: 0 | J47: 0 | K47: 0
A48: OM&A (Ongoing) | C48: 0 | D48: 0 | E48: 0 | F48: 0 | G48: 0 | H48: 0 | I48: 0 | J48: 0 | K48: 0
A50: Project 4
A51: Name: REI Connection Project
A52: Capital Costs | C52: 0 | D52: 0 | E52: 0 | F52: 0 | G52: 0 | H52: 0 | I52: 0 | J52: 0 | K52: 0
A53: OM&A (Start-Up) | C53: 0 | D53: 0 | E53: 0 | F53: 0 | G53: 0 | H53: 0 | I53: 0 | J53: 0 | K53: 0
A54: OM&A (Ongoing) | C54: 0 | D54: 0 | E54: 0 | F54: 0 | G54: 0 | H54: 0 | I54: 0 | J54: 0 | K54: 0
A56: Project 5
A57: Name: REI Connection Project
A58: Capital Costs | C58: 0 | D58: 0 | E58: 0 | F58: 0 | G58: 0 | H58: 0 | I58: 0 | J58: 0 | K58: 0
A59: OM&A (Start-Up) | C59: 0 | D59: 0 | E59: 0 | F59: 0 | G59: 0 | H59: 0 | I59: 0 | J59: 0 | K59: 0
A60: OM&A (Ongoing) | C60: 0 | D60: 0 | E60: 0 | F60: 0 | G60: 0 | H60: 0 | I60: 0 | J60: 0 | K60: 0
A62: Total Capital Costs | C62: =SUM(C58,C52,C46,C40,C34) -> 0 | D62: 0 | E62: 0 | F62: 0 | G62: =SUM(G58,G52,G46,G40,G34) -> 0 | H62: =SUM(H58,H52,H46,H40,H34) -> 0 | I62: 0 | J62: 0 | K62: 0
A63: Total OM&A (Start-Up) | C63: 0 | D63: 0 | E63: 0 | F63: 0 | G63: =SUM(G59,G53,G47,G41,G35) -> 0 | H63: 0 | I63: 0 | J63: 0 | K63: 0
A64: Total OM&A (Ongoing) | C64: 0 | D64: 0 | E64: 0 | F64: 0 | G64: =SUM(G60,G54,G48,G42,G36) -> 0 | H64: 0 | I64: 0 | J64: 0 | K64: 0
A67: Part B | G67: Test Year
A68: Expansion Investments (Direct Benefit at 17%) | C68: =D68-1 -> 2014 | D68: =E68-1 -> 2015 | E68: =F68-1 -> 2016 | F68: =G68-1 -> 2017 | G68: =TestYear -> 2018 | H68: =G68+1 -> 2019 | I68: =H68+1 -> 2020 | J68: 2021 | K68: 2022
A69: Project 1
A70: Name: Expansion Connection Project
A71: Capital Costs | C71: 0 | D71: 0 | E71: 0 | F71: 0 | G71: 0 | H71: 0 | I71: 0 | J71: 0 | K71: 0
A72: OM&A (Start-Up) | C72: 0 | D72: 0 | E72: 0 | F72: 0 | G72: 0 | H72: 0 | I72: 0 | J72: 0 | K72: 0
A73: OM&A (Ongoing) | C73: 0 | D73: 0 | E73: 0 | F73: 0 | G73: 0 | H73: 0 | I73: 0 | J73: 0 | K73: 0
A75: Project 2
A76: Name: Expansion Connection Project
A77: Capital Costs | C77: 0 | D77: 0 | E77: 0 | F77: 0 | G77: 0 | H77: 0 | I77: 0 | J77: 0 | K77: 0
A78: OM&A (Start-Up) | C78: 0 | D78: 0 | E78: 0 | F78: 0 | G78: 0 | H78: 0 | I78: 0 | J78: 0 | K78: 0
A79: OM&A (Ongoing) | C79: 0 | D79: 0 | E79: 0 | F79: 0 | G79: 0 | H79: 0 | I79: 0 | J79: 0 | K79: 0
A81: Project 3
A82: Name: Expansion Connection Project
A83: Capital Costs | C83: 0 | D83: 0 | E83: 0 | F83: 0 | G83: 0 | H83: 0 | I83: 0 | J83: 0 | K83: 0
A84: OM&A (Start-Up) | C84: 0 | D84: 0 | E84: 0 | F84: 0 | G84: 0 | H84: 0 | I84: 0 | J84: 0 | K84: 0
A85: OM&A (Ongoing) | C85: 0 | D85: 0 | E85: 0 | F85: 0 | G85: 0 | H85: 0 | I85: 0 | J85: 0 | K85: 0
A87: Project 4
A88: Name: Expansion Connection Project
A89: Capital Costs | C89: 0 | D89: 0 | E89: 0 | F89: 0 | G89: 0 | H89: 0 | I89: 0 | J89: 0 | K89: 0
A90: OM&A (Start-Up) | C90: 0 | D90: 0 | E90: 0 | F90: 0 | G90: 0 | H90: 0 | I90: 0 | J90: 0 | K90: 0
A91: OM&A (Ongoing) | C91: 0 | D91: 0 | E91: 0 | F91: 0 | G91: 0 | H91: 0 | I91: 0 | J91: 0 | K91: 0
A93: Project 5
A94: Name: Expansion Connection Project
A95: Capital Costs | C95: 0 | D95: 0 | E95: 0 | F95: 0 | G95: 0 | H95: 0 | I95: 0 | J95: 0 | K95: 0
A96: OM&A (Start-Up) | C96: 0 | D96: 0 | E96: 0 | F96: 0 | G96: 0 | H96: 0 | I96: 0 | J96: 0 | K96: 0
A97: OM&A (Ongoing) | C97: 0 | D97: 0 | E97: 0 | F97: 0 | G97: 0 | H97: 0 | I97: 0 | J97: 0 | K97: 0
A99: Total Capital Costs | C99: =SUM(C95,C89,C83,C77,C71) -> 0 | D99: 0 | E99: 0 | F99: 0 | G99: =SUM(G95,G89,G83,G77,G71) -> 0 | H99: =SUM(H95,H89,H83,H77,H71) -> 0 | I99: 0 | J99: 0 | K99: 0
A100: Total OM&A (Start-Up) | C100: 0 | D100: 0 | E100: 0 | F100: 0 | G100: =SUM(G96,G90,G84,G78,G72) -> 0 | H100: 0 | I100: 0 | J100: 0 | K100: 0
A101: Total OM&A (Ongoing) | C101: 0 | D101: 0 | E101: 0 | F101: 0 | G101: =SUM(G97,G91,G85,G79,G73) -> 0 | H101: 0 | I101: 0 | J101: 0 | K101: 0

Sheet App.2-FB Calc of REG Improvemnt
N1: File Number: | O1: =EBNUMBER -> EB-2017-0039
N2: Exhibit:
N3: Tab:
N4: Schedule:
N5: Page:
N7: Date:
A9: Appendix 2-FB
A10: Calculation of Renewable Generation Connection Direct Benefits/Provincial Amount: Renewable Enabling Improvement Investments
A12: This table will calculate the distributor/provincial shares of the investments entered in Part A of Appendix 2-FA.
A13: Enter values in green shaded cells: WCA percentage, debt percentages, interest rates, kWh, tax rates, amortization period, CCA Class and percentage.
A14: For historical investments, enter these variables for your last cost of service test year. For 2017 and beyond, enter variables as in the application.
A15: Rate Riders are not calculated for the Test Year as these assets and costs are already in the distributor's rate base/revenue requirement.
C17: =F17-1 -> 2014 | F17: =I17-1 -> 2015 | I17: =L17-1 -> 2016 | L17: =BridgeYear -> 2017 | O17: =CONCATENATE(TestYear," Test Year") -> 2018 Test Year | R17: =TestYear+1 -> 2019 | U17: =R17+1 -> 2020 | V17: 2016 | X17: =U17+1 -> 2021 | AA17: =X17+1 -> 2022
D18: Direct Benefit | E18: Provincial | G18: Direct Benefit | H18: Provincial | J18: Direct Benefit | K18: Provincial | M18: Direct Benefit | N18: Provincial | P18: Direct Benefit | Q18: Provincial | S18: Direct Benefit | T18: Provincial | V18: Direct Benefit | W18: Provincial | Y18: Direct Benefit | Z18: Provincial | AB18: Direct Benefit | AC18: Provincial
C19: Total | D19: 0.06 | E19: 0.94 | F19: Total | G19: 0.06 | H19: 0.94 | I19: Total | J19: 0.06 | K19: 0.94 | L19: Total | M19: 0.06 | N19: 0.94 | O19: Total | P19: 0.06 | Q19: 0.94 | R19: Total | S19: 0.06 | T19: 0.94 | U19: Total | V19: 0.06 | W19: 0.94 | X19: Total | Y19: 0.06 | Z19: 0.94 | AA19: Total | AB19: 0.06 | AC19: 0.94
A20: Net Fixed Assets (average) | C20: =D82 -> 0 | D20: =C20*D19 -> 0 | E20: =C20*E19 -> 0 | F20: =E82 -> 0 | G20: =F20*G19 -> 0 | H20: =F20*H19 -> 0 | I20: =F82 -> 0 | J20: =I20*J19 -> 0 | K20: =I20*K19 -> 0 | L20: =G82 -> 0 | M20: =L20*M19 -> 0 | N20: =L20*N19 -> 0 | O20: =H82 -> 0 | P20: =O20*P19 -> 0 | Q20: =O20*Q19 -> 0 | R20: =I82 -> 0 | S20: =R20*S19 -> 0 | T20: =R20*T19 -> 0 | U20: =J82 -> 0 | V20: =U20*V19 -> 0 | W20: =U20*W19 -> 0 | X20: =K82 -> 0 | Y20: =X20*Y19 -> 0 | Z20: =X20*Z19 -> 0 | AA20: =L82 -> 0 | AB20: =AA20*AB19 -> 0 | AC20: =AA20*AC19 -> 0
A21: Incremental OM&A (on-going, N/A for Provincial Recovery) | C21: ='App.2-FA Proposed REG Invest.'!C64 -> 0 | D21: =C21 -> 0 | F21: ='App.2-FA Proposed REG Invest.'!D64 -> 0 | G21: =F21 -> 0 | I21: ='App.2-FA Proposed REG Invest.'!E64 -> 0 | J21: =I21 -> 0 | L21: ='App.2-FA Proposed REG Invest.'!F64 -> 0 | M21: =L21 -> 0 | O21: ='App.2-FA Proposed REG Invest.'!G64 -> 0 | P21: =O21 -> 0 | R21: ='App.2-FA Proposed REG Invest.'!H64 -> 0 | S21: =R21 -> 0 | U21: ='App.2-FA Proposed REG Invest.'!I64 -> 0 | V21: =U21 -> 0 | X21: ='App.2-FA Proposed REG Invest.'!J64 -> 0 | Y21: =X21 -> 0 | AA21: ='App.2-FA Proposed REG Invest.'!K64 -> 0 | AB21: =AA21 -> 0
A22: Incremental OM&A (start-up, applicable for Provincial Recovery) | C22: ='App.2-FA Proposed REG Invest.'!C63 -> 0 | D22: =C22*D19 -> 0 | E22: =C22*E19 -> 0 | F22: ='App.2-FA Proposed REG Invest.'!D63 -> 0 | G22: =F22*G19 -> 0 | H22: =F22*H19 -> 0 | I22: ='App.2-FA Proposed REG Invest.'!E63 -> 0 | J22: =I22*J19 -> 0 | K22: =I22*K19 -> 0 | L22: ='App.2-FA Proposed REG Invest.'!F63 -> 0 | M22: =L22*M19 -> 0 | N22: =L22*N19 -> 0 | O22: ='App.2-FA Proposed REG Invest.'!G63 -> 0 | P22: =O22*P19 -> 0 | Q22: =O22*Q19 -> 0 | R22: ='App.2-FA Proposed REG Invest.'!H63 -> 0 | S22: =R22*S19 -> 0 | T22: =R22*T19 -> 0 | U22: ='App.2-FA Proposed REG Invest.'!I63 -> 0 | V22: =U22*V19 -> 0 | W22: =U22*W19 -> 0 | X22: ='App.2-FA Proposed REG Invest.'!J63 -> 0 | Y22: =X22*Y19 -> 0 | Z22: =X22*Z19 -> 0 | AA22: ='App.2-FA Proposed REG Invest.'!K63 -> 0 | AB22: =AA22*AB19 -> 0 | AC22: =AA22*AC19 -> 0
A23: WCA | D23: =(D21+D22)*$B$23 -> 0 | E23: =E22*$B$23 -> 0 | G23: =(G21+G22)*$B$23 -> 0 | H23: =H22*$B$23 -> 0 | J23: =(J21+J22)*$B$23 -> 0 | K23: =K22*$B$23 -> 0 | M23: =(M21+M22)*$B$23 -> 0 | N23: =N22*$B$23 -> 0 | P23: =(P21+P22)*$B$23 -> 0 | Q23: =Q22*$B$23 -> 0 | S23: =(S21+S22)*$B$23 -> 0 | T23: =T22*$B$23 -> 0 | V23: =(V21+V22)*$B$23 -> 0 | W23: =W22*$B$23 -> 0 | Y23: =(Y21+Y22)*$B$23 -> 0 | Z23: =Z22*$B$23 -> 0 | AB23: =(AB21+AB22)*$B$23 -> 0 | AC23: =AC22*$B$23 -> 0
A24: Rate Base | D24: =SUM(D20+D23) -> 0 | E24: =SUM(E20+E23) -> 0 | G24: =SUM(G20+G23) -> 0 | H24: =SUM(H20+H23) -> 0 | J24: =SUM(J20+J23) -> 0 | K24: =SUM(K20+K23) -> 0 | M24: =SUM(M20+M23) -> 0 | N24: =SUM(N20+N23) -> 0 | P24: =SUM(P20+P23) -> 0 | Q24: =SUM(Q20+Q23) -> 0 | S24: =SUM(S20+S23) -> 0 | T24: =SUM(T20+T23) -> 0 | V24: =SUM(V20+V23) -> 0 | W24: =SUM(W20+W23) -> 0 | Y24: =SUM(Y20+Y23) -> 0 | Z24: =SUM(Z20+Z23) -> 0 | AB24: =SUM(AB20+AB23) -> 0 | AC24: =SUM(AC20+AC23) -> 0
A27: Deemed ST Debt | D27: =D24*$B$27 -> 0 | E27: =E24*$B$27 -> 0 | G27: =G24*$B$27 -> 0 | H27: =H24*$B$27 -> 0 | J27: =J24*$B$27 -> 0 | K27: =K24*$B$27 -> 0 | M27: =M24*$B$27 -> 0 | N27: =N24*$B$27 -> 0 | P27: =P24*$B$27 -> 0 | Q27: =Q24*$B$27 -> 0 | S27: =S24*$B$27 -> 0 | T27: =T24*$B$27 -> 0 | V27: =V24*$B$27 -> 0 | W27: =W24*$B$27 -> 0 | Y27: =Y24*$B$27 -> 0 | Z27: =Z24*$B$27 -> 0 | AB27: =AB24*$B$27 -> 0 | AC27: =AC24*$B$27 -> 0
A28: Deemed LT Debt | D28: =D24*$B$28 -> 0 | E28: =E24*$B$28 -> 0 | G28: =G24*$B$28 -> 0 | H28: =H24*$B$28 -> 0 | J28: =J24*$B$28 -> 0 | K28: =K24*$B$28 -> 0 | M28: =M24*$B$28 -> 0 | N28: =N24*$B$28 -> 0 | P28: =P24*$B$28 -> 0 | Q28: =Q24*$B$28 -> 0 | S28: =S24*$B$28 -> 0 | T28: =T24*$B$28 -> 0 | V28: =V24*$B$28 -> 0 | W28: =W24*$B$28 -> 0 | Y28: =Y24*$B$28 -> 0 | Z28: =Z24*$B$28 -> 0 | AB28: =AB24*$B$28 -> 0 | AC28: =AC24*$B$28 -> 0
A29: Deemed Equity | D29: =D24*$B$29 -> 0 | E29: =E24*$B$29 -> 0 | G29: =G24*$B$29 -> 0 | H29: =H24*$B$29 -> 0 | J29: =J24*$B$29 -> 0 | K29: =K24*$B$29 -> 0 | M29: =M24*$B$29 -> 0 | N29: =N24*$B$29 -> 0 | P29: =P24*$B$29 -> 0 | Q29: =Q24*$B$29 -> 0 | S29: =S24*$B$29 -> 0 | T29: =T24*$B$29 -> 0 | V29: =V24*$B$29 -> 0 | W29: =W24*$B$29 -> 0 | Y29: =Y24*$B$29 -> 0 | Z29: =Z24*$B$29 -> 0 | AB29: =AB24*$B$29 -> 0 | AC29: =AC24*$B$29 -> 0
A31: ST Interest | D31: =D27*$B31 -> 0 | E31: =E27*$B31 -> 0 | G31: =G27*$B31 -> 0 | H31: =H27*$B31 -> 0 | J31: =J27*$B31 -> 0 | K31: =K27*$B31 -> 0 | M31: =M27*$B31 -> 0 | N31: =N27*$B31 -> 0 | P31: =P27*$B31 -> 0 | Q31: =Q27*$B31 -> 0 | S31: =S27*$B31 -> 0 | T31: =T27*$B31 -> 0 | V31: =V27*$B31 -> 0 | W31: =W27*$B31 -> 0 | Y31: =Y27*$B31 -> 0 | Z31: =Z27*$B31 -> 0 | AB31: =AB27*$B31 -> 0 | AC31: =AC27*$B31 -> 0
A32: LT Interest | D32: =D28*$B32 -> 0 | E32: 0 | G32: =G28*$B32 -> 0 | H32: 0 | J32: =J28*$B32 -> 0 | K32: 0 | M32: =M28*$B32 -> 0 | N32: 0 | P32: =P28*$B32 -> 0 | Q32: 0 | S32: =S28*$B32 -> 0 | T32: 0 | V32: =V28*$B32 -> 0 | W32: 0 | Y32: =Y28*$B32 -> 0 | Z32: 0 | AB32: =AB28*$B32 -> 0 | AC32: 0
A33: ROE | D33: 0 | E33: 0 | G33: 0 | H33: 0 | J33: 0 | K33: 0 | M33: 0 | N33: 0 | P33: 0 | Q33: 0 | S33: 0 | T33: 0 | V33: 0 | W33: 0 | Y33: 0 | Z33: 0 | AB33: 0 | AC33: 0
A34: Cost of Capital Total | D34: =SUM(D31:D33) -> 0 | E34: =SUM(E31:E33) -> 0 | G34: =SUM(G31:G33) -> 0 | H34: =SUM(H31:H33) -> 0 | J34: =SUM(J31:J33) -> 0 | K34: =SUM(K31:K33) -> 0 | M34: =SUM(M31:M33) -> 0 | N34: =SUM(N31:N33) -> 0 | P34: =SUM(P31:P33) -> 0 | Q34: =SUM(Q31:Q33) -> 0 | S34: =SUM(S31:S33) -> 0 | T34: =SUM(T31:T33) -> 0 | V34: =SUM(V31:V33) -> 0 | W34: =SUM(W31:W33) -> 0 | Y34: =SUM(Y31:Y33) -> 0 | Z34: =SUM(Z31:Z33) -> 0 | AB34: =SUM(AB31:AB33) -> 0 | AC34: =SUM(AC31:AC33) -> 0
A36: OM&A | D36: =D21+D22 -> 0 | E36: =E22 -> 0 | G36: =G21+G22 -> 0 | H36: =H22 -> 0 | J36: =J21+J22 -> 0 | K36: =K22 -> 0 | M36: =M21+M22 -> 0 | N36: =N22 -> 0 | P36: =P21+P22 -> 0 | Q36: =Q22 -> 0 | S36: =S21+S22 -> 0 | T36: =T22 -> 0 | V36: =V21+V22 -> 0 | W36: =W22 -> 0 | Y36: =Y21+Y22 -> 0 | Z36: =Z22 -> 0 | AB36: =AB21+AB22 -> 0 | AC36: =AC22 -> 0
A37: Amortization | C37: =D77 -> 0 | D37: =C37*D$19 -> 0 | E37: =C37*E$19 -> 0 | F37: =E77 -> 0 | G37: =F37*G$19 -> 0 | H37: =F37*H$19 -> 0 | I37: =F77 -> 0 | J37: =I37*J$19 -> 0 | K37: =I37*K$19 -> 0 | L37: =G77 -> 0 | M37: =L37*M$19 -> 0 | N37: =L37*N$19 -> 0 | O37: =H77 -> 0 | P37: =O37*P$19 -> 0 | Q37: =O37*Q$19 -> 0 | R37: =I76+I77 -> 0 | S37: =R37*S$19 -> 0 | T37: =R37*T$19 -> 0 | U37: =J76+J77 -> 0 | V37: =U37*V$19 -> 0 | W37: =U37*W$19 -> 0 | X37: =K76+K77 -> 0 | Y37: =X37*Y$19 -> 0 | Z37: =X37*Z$19 -> 0 | AA37: =L76+L77 -> 0 | AB37: =AA37*AB$19 -> 0 | AC37: =AA37*AC$19 -> 0
A38: Grossed-up PILs | D38: =D65 -> 0 | E38: =E65 -> 0 | G38: =G65 -> 0 | H38: =H65 -> 0 | J38: =J65 -> 0 | K38: =K65 -> 0 | M38: =M65 -> 0 | N38: =N65 -> 0 | P38: =P65 -> 0 | Q38: =Q65 -> 0 | S38: =S65 -> 0 | T38: =T65 -> 0 | V38: =V65 -> 0 | W38: =W65 -> 0 | Y38: =Y65 -> 0 | Z38: =Z65 -> 0 | AB38: =AB65 -> 0 | AC38: =AC65 -> 0
A40: Revenue Requirement | D40: =SUM(D34:D38) -> 0 | E40: =SUM(E34:E38) -> 0 | G40: =SUM(G34:G38) -> 0 | H40: =SUM(H34:H38) -> 0 | J40: =SUM(J34:J38) -> 0 | K40: =SUM(K34:K38) -> 0 | M40: =SUM(M34:M38) -> 0 | N40: =SUM(N34:N38) -> 0 | P40: =SUM(P34:P38) -> 0 | Q40: =SUM(Q34:Q38) -> 0 | S40: =SUM(S34:S38) -> 0 | T40: =SUM(T34:T38) -> 0 | V40: =SUM(V34:V38) -> 0 | W40: =SUM(W34:W38) -> 0 | Y40: =SUM(Y34:Y38) -> 0 | Z40: =SUM(Z34:Z38) -> 0 | AB40: =SUM(AB34:AB38) -> 0 | AC40: =SUM(AC34:AC38) -> 0
A43: Provincial Rate Protection | E43: =E40 -> 0 | H43: =H40 -> 0 | K43: =K40 -> 0 | N43: =N40 -> 0 | Q43: =Q40 -> 0 | T43: =T40 -> 0 | W43: =W40 -> 0 | Z43: =Z40 -> 0 | AC43: =AC40 -> 0
A45: Monthly Amount Paid by IESO | E45: =E43/12 -> 0 | H45: =H43/12 -> 0 | K45: =K43/12 -> 0 | N45: =N43/12 -> 0 | Q45: =Q43/12 -> 0 | T45: =T43/12 -> 0 | W45: =W43/12 -> 0 | Z45: =Z43/12 -> 0 | AC45: =AC43/12 -> 0
A47: Note 1: The difference between the actual costs of approved eligible investments and revenue received from the IESO should be recorded in a variance account. The Board may provide
A48: regulatory accounting guidance regarding a variance account either in an individual proceeding or on a generic basis.
A49: Note 2: For the 2016 Test Year, Costs and Revenues of the Direct Benefit are to be included in the test year applicant Rate Base and Revenues.
A51: PILs Calculation
D52: =C17 -> 2014 | G52: =F17 -> 2015 | J52: =I17 -> 2016 | M52: =L17 -> 2017 | P52: =O17 -> 2018 Test Year | S52: =R17 -> 2019 | V52: =U17 -> 2020 | Y52: =X17 -> 2021 | AB52: =AA17 -> 2022
A53: Income Tax | D53: Direct Benefit | E53: Provincial | G53: Direct Benefit | H53: Provincial | J53: Direct Benefit | K53: Provincial | M53: Direct Benefit | N53: Provincial | P53: Direct Benefit | Q53: Provincial | S53: Direct Benefit | T53: Provincial | V53: Direct Benefit | W53: Provincial | Y53: Direct Benefit | Z53: Provincial | AB53: Direct Benefit | AC53: Provincial
X54: Total | AA54: Total
A55: Net Income - ROE on Rate Base | D55: =D33 -> 0 | E55: =E33 -> 0 | G55: =G33 -> 0 | H55: =H33 -> 0 | J55: =J33 -> 0 | K55: =K33 -> 0 | M55: =M33 -> 0 | N55: =N33 -> 0 | P55: =P33 -> 0 | Q55: =Q33 -> 0 | S55: =S33 -> 0 | T55: =T33 -> 0 | V55: =V33 -> 0 | W55: =W33 -> 0 | Y55: =Y33 -> 0 | Z55: =Z33 -> 0 | AB55: =AB33 -> 0 | AC55: =AC33 -> 0
A56: Amortization (6% DB and 94% P) | D56: =D37 -> 0 | E56: =E37 -> 0 | G56: =G37 -> 0 | H56: =H37 -> 0 | J56: =J37 -> 0 | K56: =K37 -> 0 | M56: =M37 -> 0 | N56: =N37 -> 0 | P56: =P37 -> 0 | Q56: =Q37 -> 0 | S56: =S37 -> 0 | T56: =T37 -> 0 | V56: =V37 -> 0 | W56: =W37 -> 0 | Y56: =Y37 -> 0 | Z56: =Z37 -> 0 | AB56: =AB37 -> 0 | AC56: =AC37 -> 0
A57: CCA (6% DB and 94% P) | D57: =-D94*D$19 -> 0 | E57: =-D94*E$19 -> 0 | G57: =-E94*G19 -> 0 | H57: =-E94*H$19 -> 0 | J57: =-F94*J$19 -> 0 | K57: =-F94*K$19 -> 0 | M57: =-G94*M$19 -> 0 | N57: =-G94*N$19 -> 0 | P57: =-H94*P$19 -> 0 | Q57: =-H94*Q$19 -> 0 | S57: =-I94*S$19 -> 0 | T57: =-I94*T$19 -> 0 | V57: =-J94*V$19 -> 0 | W57: =-J94*W$19 -> 0 | Y57: =-K94*Y$19 -> 0 | Z57: =-K94*Z$19 -> 0 | AB57: =-L94*AB$19 -> 0 | AC57: =-L94*AC$19 -> 0
A58: Taxable income | D58: =SUM(D55:D57) -> 0 | E58: =SUM(E55:E57) -> 0 | G58: =SUM(G55:G57) -> 0 | H58: =SUM(H55:H57) -> 0 | J58: =SUM(J55:J57) -> 0 | K58: =SUM(K55:K57) -> 0 | M58: =SUM(M55:M57) -> 0 | N58: =SUM(N55:N57) -> 0 | P58: =SUM(P55:P57) -> 0 | Q58: =SUM(Q55:Q57) -> 0 | S58: =SUM(S55:S57) -> 0 | T58: =SUM(T55:T57) -> 0 | V58: =SUM(V55:V57) -> 0 | W58: =SUM(W55:W57) -> 0 | Y58: =SUM(Y55:Y57) -> 0 | Z58: =SUM(Z55:Z57) -> 0 | AB58: =SUM(AB55:AB57) -> 0 | AC58: =SUM(AC55:AC57) -> 0
A60: Tax Rate (to be entered)
A62: Income Taxes Payable | D62: =D58*D60 -> 0 | E62: =E58*E60 -> 0 | G62: =G58*G60 -> 0 | H62: =H58*H60 -> 0 | J62: =J58*J60 -> 0 | K62: =K58*K60 -> 0 | M62: =M58*M60 -> 0 | N62: =N58*N60 -> 0 | P62: =P58*P60 -> 0 | Q62: =Q58*Q60 -> 0 | S62: =S58*S60 -> 0 | T62: =T58*T60 -> 0 | V62: =V58*V60 -> 0 | W62: =W58*W60 -> 0 | Y62: =Y58*Y60 -> 0 | Z62: =Z58*Z60 -> 0 | AB62: =AB58*AB60 -> 0 | AC62: =AC58*AC60 -> 0
A63: Gross Up
A64: Income Taxes Payable | D64: =D62/(1-D60) -> 0 | E64: =E62/(1-E60) -> 0 | G64: =G62/(1-G60) -> 0 | H64: =H62/(1-H60) -> 0 | J64: =J62/(1-J60) -> 0 | K64: =K62/(1-K60) -> 0 | M64: =M62/(1-M60) -> 0 | N64: =N62/(1-N60) -> 0 | P64: =P62/(1-P60) -> 0 | Q64: =Q62/(1-Q60) -> 0 | S64: =S62/(1-S60) -> 0 | T64: =T62/(1-T60) -> 0 | V64: =V62/(1-V60) -> 0 | W64: =W62/(1-W60) -> 0 | Y64: =Y62/(1-Y60) -> 0 | Z64: =Z62/(1-Z60) -> 0 | AB64: =AB62/(1-AB60) -> 0 | AC64: =AC62/(1-AC60) -> 0
A65: Grossed Up PILs | D65: =SUM(D64:D64) -> 0 | E65: =SUM(E64:E64) -> 0 | G65: =SUM(G64:G64) -> 0 | H65: =SUM(H64:H64) -> 0 | J65: =SUM(J64:J64) -> 0 | K65: =SUM(K64:K64) -> 0 | M65: =SUM(M64:M64) -> 0 | N65: =SUM(N64:N64) -> 0 | P65: =SUM(P64:P64) -> 0 | Q65: =SUM(Q64:Q64) -> 0 | S65: =SUM(S64:S64) -> 0 | T65: =SUM(T64:T64) -> 0 | V65: =SUM(V64:V64) -> 0 | W65: =SUM(W64:W64) -> 0 | Y65: =SUM(Y64:Y64) -> 0 | Z65: =SUM(Z64:Z64) -> 0 | AB65: =SUM(AB64:AB64) -> 0 | AC65: =SUM(AC64:AC64) -> 0
D68: =E68-1 -> 2014 | E68: =F68-1 -> 2015 | F68: =G68-1 -> 2016 | G68: =H68-1 -> 2017 | H68: =TestYear -> 2018 | I68: =H68+1 -> 2019 | J68: =I68+1 -> 2020 | K68: =J68+1 -> 2021 | L68: =K68+1 -> 2022
A69: Net Fixed Assets
B70: Enter applicable amortization in years: | C70: 25
A71: Opening Gross Fixed Assets | E71: =D73 -> 0 | F71: 0 | G71: 0 | H71: 0 | I71: =H73 -> 0 | J71: =I73 -> 0 | K71: =J73 -> 0 | L71: =K73 -> 0
A72: Gross Capital Additions | D72: ='App.2-FA Proposed REG Invest.'!C62 -> 0 | E72: ='App.2-FA Proposed REG Invest.'!D62 -> 0 | F72: ='App.2-FA Proposed REG Invest.'!E62 -> 0 | G72: ='App.2-FA Proposed REG Invest.'!F62 -> 0 | H72: ='App.2-FA Proposed REG Invest.'!G62 -> 0 | I72: ='App.2-FA Proposed REG Invest.'!H62 -> 0 | J72: ='App.2-FA Proposed REG Invest.'!I62 -> 0 | K72: ='App.2-FA Proposed REG Invest.'!J62 -> 0 | L72: ='App.2-FA Proposed REG Invest.'!K62 -> 0
A73: Closing Gross Fixed Assets | D73: =SUM(D71:D72) -> 0 | E73: 0 | F73: 0 | G73: 0 | H73: =SUM(H71:H72) -> 0 | I73: =SUM(I71:I72) -> 0 | J73: 0 | K73: 0 | L73: 0
A75: Opening Accumulated Amortization | E75: =+D78 -> 0 | F75: =E78 -> 0 | G75: 0 | H75: 0 | I75: 0 | J75: 0 | K75: 0 | L75: 0
A76: Current Year Amortization (before additions) | D76: =IF(ISERROR(D71/$C$70), 0, D71/$C$70) -> 0 | E76: 0 | F76: 0 | G76: 0 | H76: 0 | I76: =IF(ISERROR(I71/$C$70), 0, I71/$C$70) -> 0 | J76: =IF(ISERROR(J71/$C$70), 0, J71/$C$70) -> 0 | K76: =IF(ISERROR(K71/$C$70), 0, K71/$C$70) -> 0 | L76: =IF(ISERROR(L71/$C$70), 0, L71/$C$70) -> 0
A77: Additions (half year) | D77: =D72/$C$70/2 -> 0 | E77: =E72/$C$70/2 -> 0 | F77: =F72/$C$70/2 -> 0 | G77: 0 | H77: =H72/$C$70/2 -> 0 | I77: =I72/C70/2 -> 0 | J77: =J72/C70/2 -> 0 | K77: =K72/C70/2 -> 0 | L77: =L72/C70/2 -> 0
A78: Closing Accumulated Amortization | D78: =SUM(D75+D76+D77) -> 0 | E78: =SUM(E75+E76+E77) -> 0 | F78: =SUM(F75+F76+F77) -> 0 | G78: =SUM(G75+G76+G77) -> 0 | H78: =SUM(H75+H76+H77) -> 0 | I78: =SUM(I75:I77) -> 0 | J78: =SUM(J75:J77) -> 0 | K78: =SUM(K75:K77) -> 0 | L78: =SUM(L75:L77) -> 0
A80: Opening Net Fixed Assets | D80: =D71-D75 -> 0 | E80: 0 | F80: =F71-F75 -> 0 | G80: 0 | H80: =H71-H75 -> 0 | I80: =H81 -> 0 | J80: =I81 -> 0 | K80: =J81 -> 0 | L80: =K81 -> 0
A81: Closing Net Fixed Assets | D81: =D73-D78 -> 0 | E81: =E73-E78 -> 0 | F81: 0 | G81: 0 | H81: =H73-H78 -> 0 | I81: =I73-I78 -> 0 | J81: =J73-J78 -> 0 | K81: =K73-K78 -> 0 | L81: =L73-L78 -> 0
A82: Average Net Fixed Assets | D82: =SUM(D80:D81)/2 -> 0 | E82: 0 | F82: 0 | G82: 0 | H82: =SUM(H80:H81)/2 -> 0 | I82: =SUM(I80:I81)/2 -> 0 | J82: =SUM(J80:J81)/2 -> 0 | K82: =SUM(K80:K81)/2 -> 0 | L82: =SUM(L80:L81)/2 -> 0
A84: UCC for PILs Calculation
D85: =D68 -> 2014 | E85: =E68 -> 2015 | F85: 2016 | G85: 2017 | H85: 2018 | I85: 2019 | J85: 2020 | K85: 2021 | L85: 2022
A87: Opening UCC | E87: =D95 -> 0 | F87: 0 | G87: 0 | H87: 0 | I87: 0 | J87: 0 | K87: 0 | L87: 0
A88: Capital Additions (from Appendix 2-FA) | D88: =D72 -> 0 | E88: 0 | F88: 0 | G88: 0 | H88: =H72 -> 0 | I88: =I72 -> 0 | J88: 0 | K88: 0 | L88: 0
A89: UCC Before Half Year Rule | D89: =SUM(D87:D88) -> 0 | E89: 0 | F89: 0 | G89: 0 | H89: =SUM(H87:H88) -> 0 | I89: =SUM(I87:I88) -> 0 | J89: =SUM(J87:J88) -> 0 | K89: =SUM(K87:K88) -> 0 | L89: =SUM(L87:L88) -> 0
A90: Half Year Rule (1/2 Additions - Disposals) | D90: =D88/2 -> 0 | E90: 0 | F90: 0 | G90: 0 | H90: =H88/2 -> 0 | I90: =I88/2 -> 0 | J90: =J88/2 -> 0 | K90: =K88/2 -> 0 | L90: =L88/2 -> 0
A91: Reduced UCC | D91: =D89-D90 -> 0 | E91: 0 | F91: 0 | G91: 0 | H91: =H89-H90 -> 0 | I91: =I89-I90 -> 0 | J91: =J89-J90 -> 0 | K91: =K89-K90 -> 0 | L91: =L89-L90 -> 0
A92: CCA Rate Class (to be entered) | C92: 47 | D92: =C92 -> 47 | E92: =D92 -> 47 | F92: 47 | G92: 47 | H92: 47 | I92: 47 | J92: 47 | K92: 47 | L92: 47
A93: CCA Rate (to be entered) | C93: 0.08 | D93: =C93 -> 0.08 | E93: 0.08 | F93: 0.08 | G93: 0.08 | H93: 0.08 | I93: 0.08 | J93: 0.08 | K93: 0.08 | L93: 0.08
A94: CCA | D94: =D91*D93 -> 0 | E94: 0 | F94: 0 | G94: 0 | H94: =H91*H93 -> 0 | I94: =I91*I93 -> 0 | J94: 0 | K94: 0 | L94: =L91*L93 -> 0
A95: Closing UCC | D95: =D89-D94 -> 0 | E95: 0 | F95: 0 | G95: 0 | H95: =H89-H94 -> 0 | I95: =I89-I94 -> 0 | J95: =J89-J94 -> 0 | K95: =K89-K94 -> 0 | L95: =L89-L94 -> 0

Sheet App.2-FC Calc of REG Expansion
N1: File Number: | O1: =EBNUMBER -> EB-2017-0039
N2: Exhibit:
N3: Tab:
N4: Schedule:
N5: Page:
N7: Date:
A9: Appendix 2-FC
A10: Calculation of Renewable Generation Connection Direct Benefits/Provincial Amount: Renewable Expansion Investments
A12: This table will calculate the distributor/provincial shares of the investments entered in Part B of Appendix 2-FA.
A13: Enter values in green shaded cells: WCA percentage, debt percentages, interest rates, kWh, tax rates, amortization period, CCA Class and percentage.
A14: For historical investments, enter these variables for your last cost of service test year. For 2016 and beyond, enter variables as in the application.
A15: Rate Riders are not calculated for the Test Year as these assets and costs are already in the distributor's rate base.
D18: =G18-1 -> 2014 | G18: =J18-1 -> 2015 | J18: =M18-1 -> 2016 | M18: =BridgeYear -> 2017 | P18: =CONCATENATE(TestYear," Test Year") -> 2018 Test Year | S18: =TestYear+1 -> 2019 | T18: 2016 | V18: =S18+1 -> 2020 | Y18: =V18+1 -> 2021 | AB18: =Y18+1 -> 2022
E19: Direct Benefit | F19: Provincial | H19: Direct Benefit | I19: Provincial | K19: Direct Benefit | L19: Provincial | N19: Direct Benefit | O19: Provincial | Q19: Direct Benefit | R19: Provincial | T19: Direct Benefit | U19: Provincial | W19: Direct Benefit | X19: Provincial | Z19: Direct Benefit | AA19: Provincial | AC19: Direct Benefit | AD19: Provincial
D20: Total | E20: 0.17 | F20: 0.83 | G20: Total | H20: 0.17 | I20: 0.83 | J20: Total | K20: 0.17 | L20: 0.83 | M20: Total | N20: 0.17 | O20: 0.83 | P20: Total | Q20: 0.17 | R20: 0.83 | S20: Total | T20: 0.17 | U20: 0.83 | V20: Total | W20: 0.17 | X20: 0.83 | Y20: Total | Z20: 0.17 | AA20: 0.83 | AB20: Total | AC20: 0.17 | AD20: 0.83
A21: Net Fixed Assets (average) | D21: =D82 -> 0 | E21: =D21*E20 -> 0 | F21: =D21*F20 -> 0 | G21: =E82 -> 0 | H21: =G21*H20 -> 0 | I21: =G21*I20 -> 0 | J21: =F82 -> 0 | K21: =J21*K20 -> 0 | L21: =J21*L20 -> 0 | M21: =G82 -> 0 | N21: =M21*N20 -> 0 | O21: =M21*O20 -> 0 | P21: =H82 -> 0 | Q21: =P21*Q20 -> 0 | R21: =P21*R20 -> 0 | S21: =I82 -> 0 | T21: =S21*T20 -> 0 | U21: =S21*U20 -> 0 | V21: =J82 -> 0 | W21: =V21*W20 -> 0 | X21: =V21*X20 -> 0 | Y21: =K82 -> 0 | Z21: =Y21*Z20 -> 0 | AA21: =Y21*AA20 -> 0 | AB21: =L82 -> 0 | AC21: =AB21*AC20 -> 0 | AD21: =AB21*AD20 -> 0
A22: Incremental OM&A (on-going, N/A for Provincial Recovery) | D22: ='App.2-FA Proposed REG Invest.'!C101 -> 0 | E22: =D22 -> 0 | G22: ='App.2-FA Proposed REG Invest.'!D$101 -> 0 | H22: =G22 -> 0 | J22: ='App.2-FA Proposed REG Invest.'!E$101 -> 0 | K22: =J22 -> 0 | M22: ='App.2-FA Proposed REG Invest.'!F$101 -> 0 | N22: =M22 -> 0 | P22: ='App.2-FA Proposed REG Invest.'!G$101 -> 0 | Q22: =P22 -> 0 | S22: ='App.2-FA Proposed REG Invest.'!H$101 -> 0 | T22: =S22 -> 0 | V22: ='App.2-FA Proposed REG Invest.'!I$101 -> 0 | W22: =V22 -> 0 | Y22: ='App.2-FA Proposed REG Invest.'!J$101 -> 0 | Z22: =Y22 -> 0 | AB22: ='App.2-FA Proposed REG Invest.'!K$101 -> 0 | AC22: =AB22 -> 0
A23: Incremental OM&A (start-up, applicable for Provincial Recovery) | D23: ='App.2-FA Proposed REG Invest.'!C100 -> 0 | E23: =D23*E20 -> 0 | F23: =D23*F20 -> 0 | G23: ='App.2-FA Proposed REG Invest.'!D$100 -> 0 | H23: =G23*H20 -> 0 | I23: =G23*I20 -> 0 | J23: ='App.2-FA Proposed REG Invest.'!E$100 -> 0 | K23: =J23*K20 -> 0 | L23: =J23*L20 -> 0 | M23: ='App.2-FA Proposed REG Invest.'!F$100 -> 0 | N23: =M23*N20 -> 0 | O23: =M23*O20 -> 0 | P23: ='App.2-FA Proposed REG Invest.'!G$100 -> 0 | Q23: =P23*Q20 -> 0 | R23: =P23*R20 -> 0 | S23: ='App.2-FA Proposed REG Invest.'!H$100 -> 0 | T23: =S23*T20 -> 0 | U23: =S23*U20 -> 0 | V23: ='App.2-FA Proposed REG Invest.'!I$100 -> 0 | W23: =V23*W20 -> 0 | X23: =V23*X20 -> 0 | Y23: ='App.2-FA Proposed REG Invest.'!J$100 -> 0 | Z23: =Y23*Z20 -> 0 | AA23: =Y23*AA20 -> 0 | AB23: ='App.2-FA Proposed REG Invest.'!K$100 -> 0 | AC23: =AB23*AC20 -> 0 | AD23: =AB23*AD20 -> 0
A24: WCA | E24: =(E22+E23)*$B$24 -> 0 | F24: =F23*$B$24 -> 0 | H24: =(H22+H23)*$B$24 -> 0 | I24: =I23*$B$24 -> 0 | K24: =(K22+K23)*$B$24 -> 0 | L24: =L23*$B$24 -> 0 | N24: =(N22+N23)*$B$24 -> 0 | O24: =O23*$B$24 -> 0 | Q24: =(Q22+Q23)*$B$24 -> 0 | R24: =R23*$B$24 -> 0 | T24: =(T22+T23)*$B$24 -> 0 | U24: =U23*$B$24 -> 0 | W24: =(W22+W23)*$B$24 -> 0 | X24: =X23*$B$24 -> 0 | Z24: =(Z22+Z23)*$B$24 -> 0 | AA24: =AA23*$B$24 -> 0 | AC24: =(AC22+AC23)*$B$24 -> 0 | AD24: =AD23*$B$24 -> 0
A25: Rate Base | E25: =SUM(E21+E24) -> 0 | F25: =SUM(F21+F24) -> 0 | H25: =SUM(H21+H24) -> 0 | I25: =SUM(I21+I24) -> 0 | K25: =SUM(K21+K24) -> 0 | L25: =SUM(L21+L24) -> 0 | N25: =SUM(N21+N24) -> 0 | O25: =SUM(O21+O24) -> 0 | Q25: =SUM(Q21+Q24) -> 0 | R25: =SUM(R21+R24) -> 0 | T25: =SUM(T21+T24) -> 0 | U25: =SUM(U21+U24) -> 0 | W25: =SUM(W21+W24) -> 0 | X25: =SUM(X21+X24) -> 0 | Z25: =SUM(Z21+Z24) -> 0 | AA25: =SUM(AA21+AA24) -> 0 | AC25: =SUM(AC21+AC24) -> 0 | AD25: =SUM(AD21+AD24) -> 0
A28: Deemed ST Debt | E28: =E25*$B$28 -> 0 | F28: =F25*$B$28 -> 0 | H28: =H25*$B$28 -> 0 | I28: =I25*$B$28 -> 0 | K28: =K25*$B$28 -> 0 | L28: =L25*$B$28 -> 0 | N28: =N25*$B$28 -> 0 | O28: =O25*$B$28 -> 0 | Q28: =Q25*$B$28 -> 0 | R28: =R25*$B$28 -> 0 | T28: =T25*$B$28 -> 0 | U28: =U25*$B$28 -> 0 | W28: =W25*$B$28 -> 0 | X28: =X25*$B$28 -> 0 | Z28: =Z25*$B$28 -> 0 | AA28: =AA25*$B$28 -> 0 | AC28: =AC25*$B$28 -> 0 | AD28: =AD25*$B$28 -> 0
A29: Deemed LT Debt | E29: =E25*$B$29 -> 0 | F29: =F25*$B$29 -> 0 | H29: =H25*$B$29 -> 0 | I29: =I25*$B$29 -> 0 | K29: =K25*$B$29 -> 0 | L29: =L25*$B$29 -> 0 | N29: =N25*$B$29 -> 0 | O29: =O25*$B$29 -> 0 | Q29: =Q25*$B$29 -> 0 | R29: =R25*$B$29 -> 0 | T29: =T25*$B$29 -> 0 | U29: =U25*$B$29 -> 0 | W29: =W25*$B$29 -> 0 | X29: =X25*$B$29 -> 0 | Z29: =Z25*$B$29 -> 0 | AA29: =AA25*$B$29 -> 0 | AC29: =AC25*$B$29 -> 0 | AD29: =AD25*$B$29 -> 0
A30: Deemed Equity | E30: =E25*$B$30 -> 0 | F30: =F25*$B$30 -> 0 | H30: =H25*$B$30 -> 0 | I30: =I25*$B$30 -> 0 | K30: =K25*$B$30 -> 0 | L30: =L25*$B$30 -> 0 | N30: =N25*$B$30 -> 0 | O30: =O25*$B$30 -> 0 | Q30: =Q25*$B$30 -> 0 | R30: =R25*$B$30 -> 0 | T30: =T25*$B$30 -> 0 | U30: =U25*$B$30 -> 0 | W30: =W25*$B$30 -> 0 | X30: =X25*$B$30 -> 0 | Z30: =Z25*$B$30 -> 0 | AA30: =AA25*$B$30 -> 0 | AC30: =AC25*$B$30 -> 0 | AD30: =AD25*$B$30 -> 0
A32: ST Interest | E32: =E28*$B$32 -> 0 | F32: =F28*$B$32 -> 0 | H32: =H28*$B$32 -> 0 | I32: =I28*$B$32 -> 0 | K32: =K28*$B$32 -> 0 | L32: =L28*$B$32 -> 0 | N32: =N28*$B$32 -> 0 | O32: =O28*$B$32 -> 0 | Q32: =Q28*$B$32 -> 0 | R32: =R28*$B$32 -> 0 | T32: =T28*$B$32 -> 0 | U32: =U28*$B$32 -> 0 | W32: =W28*$B$32 -> 0 | X32: =X28*$B$32 -> 0 | Z32: =Z28*$B$32 -> 0 | AA32: =AA28*$B$32 -> 0 | AC32: =AC28*$B$32 -> 0 | AD32: =AD28*$B$32 -> 0
A33: LT Interest | E33: =E29*$B$33 -> 0 | F33: =F29*$B$33 -> 0 | H33: =H29*$B$33 -> 0 | I33: =I29*$B$33 -> 0 | K33: =K29*$B$33 -> 0 | L33: =L29*$B$33 -> 0 | N33: =N29*$B$33 -> 0 | O33: =O29*$B$33 -> 0 | Q33: =Q29*$B$33 -> 0 | R33: =R29*$B$33 -> 0 | T33: =T29*$B$33 -> 0 | U33: =U29*$B$33 -> 0 | W33: =W29*$B$33 -> 0 | X33: =X29*$B$33 -> 0 | Z33: =Z29*$B$33 -> 0 | AA33: =AA29*$B$33 -> 0 | AC33: =AC29*$B$33 -> 0 | AD33: =AD29*$B$33 -> 0
A34: ROE | E34: =E30*$B$34 -> 0 | F34: =F30*$B$34 -> 0 | H34: =H30*$B$34 -> 0 | I34: =I30*$B$34 -> 0 | K34: =K30*$B$34 -> 0 | L34: =L30*$B$34 -> 0 | N34: =N30*$B$34 -> 0 | O34: =O30*$B$34 -> 0 | Q34: =Q30*$B$34 -> 0 | R34: =R30*$B$34 -> 0 | T34: =T30*$B$34 -> 0 | U34: =U30*$B$34 -> 0 | W34: =W30*$B$34 -> 0 | X34: =X30*$B$34 -> 0 | Z34: =Z30*$B$34 -> 0 | AA34: =AA30*$B$34 -> 0 | AC34: =AC30*$B$34 -> 0 | AD34: =AD30*$B$34 -> 0
A35: Cost of Capital Total | E35: =SUM(E32:E34) -> 0 | F35: =SUM(F32:F34) -> 0 | H35: =SUM(H32:H34) -> 0 | I35: =SUM(I32:I34) -> 0 | K35: =SUM(K32:K34) -> 0 | L35: =SUM(L32:L34) -> 0 | N35: =SUM(N32:N34) -> 0 | O35: =SUM(O32:O34) -> 0 | Q35: =SUM(Q32:Q34) -> 0 | R35: =SUM(R32:R34) -> 0 | T35: =SUM(T32:T34) -> 0 | U35: =SUM(U32:U34) -> 0 | W35: =SUM(W32:W34) -> 0 | X35: =SUM(X32:X34) -> 0 | Z35: =SUM(Z32:Z34) -> 0 | AA35: =SUM(AA32:AA34) -> 0 | AC35: =SUM(AC32:AC34) -> 0 | AD35: =SUM(AD32:AD34) -> 0
A37: OM&A | E37: =E22+E23 -> 0 | F37: =F23 -> 0 | H37: =H22+H23 -> 0 | I37: =I23 -> 0 | K37: =K22+K23 -> 0 | L37: =L23 -> 0 | N37: =N22+N23 -> 0 | O37: =O23 -> 0 | Q37: =Q22+Q23 -> 0 | R37: =R23 -> 0 | T37: =T22+T23 -> 0 | U37: =U23 -> 0 | W37: =W22+W23 -> 0 | X37: =X23 -> 0 | Z37: =Z22+Z23 -> 0 | AA37: =AA23 -> 0 | AC37: =AC22+AC23 -> 0 | AD37: =AD23 -> 0
A38: Amortization | D38: =D78 -> 0 | E38: =D38*E$20 -> 0 | F38: =D38*F$20 -> 0 | G38: =E78 -> 0 | H38: =G38*H$20 -> 0 | I38: =G38*I$20 -> 0 | J38: =F78 -> 0 | K38: =J38*K$20 -> 0 | L38: =J38*L$20 -> 0 | M38: =G78 -> 0 | N38: =M38*N$20 -> 0 | O38: =M38*O$20 -> 0 | P38: =H76+H77 -> 0 | Q38: =P38*Q$20 -> 0 | R38: =P38*R$20 -> 0 | S38: =I76+I77 -> 0 | T38: =S38*T$20 -> 0 | U38: =S38*U$20 -> 0 | V38: =J76+J77 -> 0 | W38: =V38*W$20 -> 0 | X38: =V38*X$20 -> 0 | Y38: =K76+K77 -> 0 | Z38: =Y38*Z$20 -> 0 | AA38: =Y38*AA$20 -> 0 | AB38: =L76+L77 -> 0 | AC38: =AB38*AC$20 -> 0 | AD38: =AB38*AD$20 -> 0
A39: Grossed-up PILs | E39: =E66 -> 0 | F39: =F66 -> 0 | H39: =H66 -> 0 | I39: =I66 -> 0 | K39: =K66 -> 0 | L39: =L66 -> 0 | N39: =N66 -> 0 | O39: =O66 -> 0 | Q39: =Q66 -> 0 | R39: =R66 -> 0 | T39: =T66 -> 0 | U39: =U66 -> 0 | W39: =W66 -> 0 | X39: =X66 -> 0 | Z39: =Z66 -> 0 | AA39: =AA66 -> 0 | AC39: =AC66 -> 0 | AD39: =AD66 -> 0
A41: Revenue Requirement | E41: =SUM(E35:E39) -> 0 | F41: =SUM(F35:F39) -> 0 | H41: =SUM(H35:H39) -> 0 | I41: =SUM(I35:I39) -> 0 | K41: =SUM(K35:K39) -> 0 | L41: =SUM(L35:L39) -> 0 | N41: =SUM(N35:N39) -> 0 | O41: =SUM(O35:O39) -> 0 | Q41: =SUM(Q35:Q39) -> 0 | R41: =SUM(R35:R39) -> 0 | T41: =SUM(T35:T39) -> 0 | U41: =SUM(U35:U39) -> 0 | W41: =SUM(W35:W39) -> 0 | X41: =SUM(X35:X39) -> 0 | Z41: =SUM(Z35:Z39) -> 0 | AA41: =SUM(AA35:AA39) -> 0 | AC41: =SUM(AC35:AC39) -> 0 | AD41: =SUM(AD35:AD39) -> 0
A44: Provincial Rate Protection | F44: =F41 -> 0 | I44: =I41 -> 0 | L44: =L41 -> 0 | O44: =O41 -> 0 | R44: =R41 -> 0 | U44: =U41 -> 0 | X44: =X41 -> 0 | AA44: =AA41 -> 0 | AD44: =AD41 -> 0
A46: Monthly Amount Paid by IESO | F46: =F44/12 -> 0 | I46: =I44/12 -> 0 | L46: =L44/12 -> 0 | O46: =O44/12 -> 0 | R46: =R44/12 -> 0 | U46: =U44/12 -> 0 | X46: =X44/12 -> 0 | AA46: =AA44/12 -> 0 | AD46: =AD44/12 -> 0
A48: Note 1: The difference between the actual costs of approved eligible investments and revenue received from the IESO should be recorded in a variance account. The Board may provide
A49: regulatory accounting guidance regarding a variance account either in an individual proceeding or on a generic basis.
A50: Note 2: For the 2016 Test Year, Costs and Revenues of the Direct Benefit are to be included in the test year applicant Rate Base and Revenues.
A52: PILs Calculation
E53: =D18 -> 2014 | H53: =G18 -> 2015 | K53: =J18 -> 2016 | N53: =M18 -> 2017 | Q53: =P18 -> 2018 Test Year | T53: =S18 -> 2019 | W53: =V18 -> 2020 | Z53: =Y18 -> 2021 | AC53: =AB18 -> 2022
A54: Income Tax | E54: Direct Benefit | F54: Provincial | H54: Direct Benefit | I54: Provincial | K54: Direct Benefit | L54: Provincial | N54: Direct Benefit | O54: Provincial | Q54: Direct Benefit | R54: Provincial | T54: Direct Benefit | U54: Provincial | W54: Direct Benefit | X54: Provincial | Z54: Direct Benefit | AA54: Provincial | AC54: Direct Benefit | AD54: Provincial
V55: Total | Y55: Total | AB55: Total
A56: Net Income - ROE on Rate Base | E56: =E34 -> 0 | F56: =F34 -> 0 | H56: =H34 -> 0 | I56: =I34 -> 0 | K56: =K34 -> 0 | L56: =L34 -> 0 | N56: =N34 -> 0 | O56: =O34 -> 0 | Q56: =Q34 -> 0 | R56: =R34 -> 0 | T56: =T34 -> 0 | U56: =U34 -> 0 | W56: =W34 -> 0 | X56: =X34 -> 0 | Z56: =Z34 -> 0 | AA56: =AA34 -> 0 | AC56: =AC34 -> 0 | AD56: =AD34 -> 0
A57: Amortization (17% DB and 83% P) | E57: =E38 -> 0 | F57: =F38 -> 0 | H57: =H38 -> 0 | I57: =I38 -> 0 | K57: =K38 -> 0 | L57: =L38 -> 0 | N57: =N38 -> 0 | O57: =O38 -> 0 | Q57: =Q38 -> 0 | R57: =R38 -> 0 | T57: =T38 -> 0 | U57: =U38 -> 0 | W57: =W38 -> 0 | X57: =X38 -> 0 | Z57: =Z38 -> 0 | AA57: =AA38 -> 0 | AC57: =AC38 -> 0 | AD57: =AD38 -> 0
A58: CCA (17% DB and 83% P) | E58: =-D94*E$20 -> 0 | F58: =-D94*F$20 -> 0 | H58: =-E94*H$20 -> 0 | I58: =-E94*I$20 -> 0 | K58: =-F94*K$20 -> 0 | L58: =-F94*L$20 -> 0 | N58: =-G94*N$20 -> 0 | O58: =-G94*O$20 -> 0 | Q58: =-H94*Q$20 -> 0 | R58: =-H94*R$20 -> 0 | T58: =-I94*T$20 -> 0 | U58: =-I94*U$20 -> 0 | W58: =-J94*W$20 -> 0 | X58: =-J94*X$20 -> 0 | Z58: =-K94*Z$20 -> 0 | AA58: =-K94*AA$20 -> 0 | AC58: =-L94*AC$20 -> 0 | AD58: =-L94*AD$20 -> 0
A59: Taxable income | E59: =SUM(E56:E58) -> 0 | F59: =SUM(F56:F58) -> 0 | H59: =SUM(H56:H58) -> 0 | I59: =SUM(I56:I58) -> 0 | K59: =SUM(K56:K58) -> 0 | L59: =SUM(L56:L58) -> 0 | N59: =SUM(N56:N58) -> 0 | O59: =SUM(O56:O58) -> 0 | Q59: =SUM(Q56:Q58) -> 0 | R59: =SUM(R56:R58) -> 0 | T59: =SUM(T56:T58) -> 0 | U59: =SUM(U56:U58) -> 0 | W59: =SUM(W56:W58) -> 0 | X59: =SUM(X56:X58) -> 0 | Z59: =SUM(Z56:Z58) -> 0 | AA59: =SUM(AA56:AA58) -> 0 | AC59: =SUM(AC56:AC58) -> 0 | AD59: =SUM(AD56:AD58) -> 0
A61: Tax Rate (to be entered)
A63: Income Taxes Payable | E63: =E59*E61 -> 0 | F63: =F59*F61 -> 0 | H63: =H59*H61 -> 0 | I63: =I59*I61 -> 0 | K63: =K59*K61 -> 0 | L63: =L59*L61 -> 0 | N63: =N59*N61 -> 0 | O63: =O59*O61 -> 0 | Q63: =Q59*Q61 -> 0 | R63: =R59*R61 -> 0 | T63: =T59*T61 -> 0 | U63: =U59*U61 -> 0 | W63: =W59*W61 -> 0 | X63: =X59*X61 -> 0 | Z63: =Z59*Z61 -> 0 | AA63: =AA59*AA61 -> 0 | AC63: =AC59*AC61 -> 0 | AD63: =AD59*AD61 -> 0
A64: Gross Up
A65: Income Taxes Payable | E65: =E63/(1-E61) -> 0 | F65: =F63/(1-F61) -> 0 | H65: =H63/(1-H61) -> 0 | I65: =I63/(1-I61) -> 0 | K65: =K63/(1-K61) -> 0 | L65: =L63/(1-L61) -> 0 | N65: =N63/(1-N61) -> 0 | O65: =O63/(1-O61) -> 0 | Q65: =Q63/(1-Q61) -> 0 | R65: =R63/(1-R61) -> 0 | T65: =T63/(1-T61) -> 0 | U65: =U63/(1-U61) -> 0 | W65: =W63/(1-W61) -> 0 | X65: =X63/(1-X61) -> 0 | Z65: =Z63/(1-Z61) -> 0 | AA65: =AA63/(1-AA61) -> 0 | AC65: =AC63/(1-AC61) -> 0 | AD65: =AD63/(1-AD61) -> 0
A66: Grossed Up PILs | E66: =SUM(E65:E65) -> 0 | F66: =SUM(F65:F65) -> 0 | H66: =SUM(H65:H65) -> 0 | I66: =SUM(I65:I65) -> 0 | K66: =SUM(K65:K65) -> 0 | L66: =SUM(L65:L65) -> 0 | N66: =SUM(N65:N65) -> 0 | O66: =SUM(O65:O65) -> 0 | Q66: =SUM(Q65:Q65) -> 0 | R66: =SUM(R65:R65) -> 0 | T66: =SUM(T65:T65) -> 0 | U66: =SUM(U65:U65) -> 0 | W66: =SUM(W65:W65) -> 0 | X66: =SUM(X65:X65) -> 0 | Z66: =SUM(Z65:Z65) -> 0 | AA66: =SUM(AA65:AA65) -> 0 | AC66: =SUM(AC65:AC65) -> 0 | AD66: =SUM(AD65:AD65) -> 0
A69: Net Fixed Assets | D69: 2011 | E69: 2012 | F69: 2013 | G69: 2014 | H69: 2015 | I69: 2016 | J69: 2017 | K69: 2018 | L69: 2019
B70: Enter applicable amortization in years: | C70: 25
A71: Opening Gross Fixed Assets | E71: =D73 -> 0 | F71: 0 | G71: 0 | H71: 0 | I71: 0 | J71: 0 | K71: 0 | L71: 0
A72: Gross Capital Additions | D72: ='App.2-FA Proposed REG Invest.'!C99 -> 0 | E72: ='App.2-FA Proposed REG Invest.'!D99 -> 0 | F72: ='App.2-FA Proposed REG Invest.'!E99 -> 0 | G72: ='App.2-FA Proposed REG Invest.'!F99 -> 0 | H72: ='App.2-FA Proposed REG Invest.'!G99 -> 0 | I72: ='App.2-FA Proposed REG Invest.'!H99 -> 0 | J72: ='App.2-FA Proposed REG Invest.'!I99 -> 0 | K72: ='App.2-FA Proposed REG Invest.'!J99 -> 0 | L72: ='App.2-FA Proposed REG Invest.'!K99 -> 0
A73: Closing Gross Fixed Assets | D73: =SUM(D71:D72) -> 0 | E73: 0 | F73: 0 | G73: 0 | H73: 0 | I73: 0 | J73: 0 | K73: 0 | L73: 0
A75: Opening Accumulated Amortization | E75: =+D78 -> 0 | F75: =E78 -> 0 | G75: 0 | H75: =G78 -> 0 | I75: =H78 -> 0 | J75: =I78 -> 0 | K75: =J78 -> 0 | L75: =K78 -> 0
A76: Current Year Amortization (before additions) | E76: =IF(ISERROR(E71/$C$70), 0, E71/$C$70) -> 0 | F76: 0 | G76: 0 | H76: =H71/$C$70 -> 0 | I76: =I71/$C$70 -> 0 | J76: =J71/$C$70 -> 0 | K76: =K71/$C$70 -> 0 | L76: =L71/$C$70 -> 0
A77: Additions (half year) | D77: =D72/C70/2 -> 0 | E77: =E72/C70/2 -> 0 | F77: =F72/C70/2 -> 0 | G77: =G72/C70/2 -> 0 | H77: =H72/C70/2 -> 0 | I77: =I72/C70/2 -> 0 | J77: =J72/C70/2 -> 0 | K77: =K72/C70/2 -> 0 | L77: =L72/C70/2 -> 0
A78: Closing Accumulated Amortization | D78: =SUM(D75+D77) -> 0 | E78: =SUM(E75:E77) -> 0 | F78: 0 | G78: 0 | H78: 0 | I78: 0 | J78: 0 | K78: 0 | L78: 0
A80: Opening Net Fixed Assets | D80: =D71-D75 -> 0 | E80: =E71-E75 -> 0 | F80: =F71-F75 -> 0 | G80: =G71-G75 -> 0 | H80: =G81 -> 0 | I80: =H81 -> 0 | J80: =I81 -> 0 | K80: =J81 -> 0 | L80: =K81 -> 0
A81: Closing Net Fixed Assets | D81: =D73-D78 -> 0 | E81: 0 | F81: 0 | G81: 0 | H81: 0 | I81: 0 | J81: 0 | K81: 0 | L81: 0
A82: Average Net Fixed Assets | D82: =SUM(D80:D81)/2 -> 0 | E82: 0 | F82: 0 | G82: 0 | H82: 0 | I82: 0 | J82: 0 | K82: 0 | L82: 0
A84: UCC for PILs Calculation
D85: 2014 | E85: 2014 | F85: 2014 | G85: 2014 | H85: 2015 | I85: 2016 | J85: 2017 | K85: 2018 | L85: 2019
A87: Opening UCC | E87: =D95 -> 0 | F87: 0 | G87: 0 | H87: 0 | I87: 0 | J87: 0 | K87: 0 | L87: 0
A88: Capital Additions (from Appendix 2-FA) | D88: =D72 -> 0 | E88: 0 | F88: 0 | G88: 0 | H88: 0 | I88: 0 | J88: 0 | K88: 0 | L88: 0
A89: UCC Before Half Year Rule | D89: =SUM(D87:D88) -> 0 | E89: 0 | F89: 0 | G89: 0 | H89: 0 | I89: 0 | J89: 0 | K89: 0 | L89: 0
A90: Half Year Rule (1/2 Additions - Disposals) | D90: =D88/2 -> 0 | E90: 0 | F90: 0 | G90: 0 | H90: 0 | I90: 0 | J90: 0 | K90: 0 | L90: 0
A91: Reduced UCC | D91: =D89-D90 -> 0 | E91: 0 | F91: 0 | G91: 0 | H91: 0 | I91: 0 | J91: 0 | K91: 0 | L91: 0
A92: CCA Rate Class (to be entered) | C92: 47 | D92: =$C$92 -> 47 | E92: =$C$92 -> 47 | F92: 47 | G92: 47 | H92: 47 | I92: 47 | J92: 47 | K92: 47 | L92: 47
A93: CCA Rate (to be entered) | C93: 0.08 | D93: =$C$93 -> 0.08 | E93: =$C$93 -> 0.08 | F93: 0.08 | G93: 0.08 | H93: 0.08 | I93: 0.08 | J93: 0.08 | K93: 0.08 | L93: 0.08
A94: CCA | D94: =D91*D$93 -> 0 | E94: =E91*E$93 -> 0 | F94: =F91*F$93 -> 0 | G94: =G91*G$93 -> 0 | H94: =H91*H$93 -> 0 | I94: 0 | J94: 0 | K94: 0 | L94: 0
A95: Closing UCC | D95: =D89-D94 -> 0 | E95: 0 | F95: 0 | G95: 0 | H95: 0 | I95: 0 | J95: 0 | K95: 0 | L95: 0

Sheet App.2-G SQI
M1: File Number: | O1: =EBNUMBER -> EB-2017-0039
M2: Exhibit: | O2: 2
M3: Attachment: | O3: 2-H
M4: Page: | O4: 1 of 1
M6: Date: | O6: August 28th, 2017
A8: Appendix 2-G
A9: Service Reliability and Quality Indicators
A10: 2011 - 2015
A12: Service Reliability
A14: Index | B14: Including outages caused by loss of supply | G14: Excluding outages caused by loss of supply | L14: Excluding Major Event Days
B15: =TestYear-6 -> 2012 | C15: =TestYear-5 -> 2013 | D15: =TestYear-4 -> 2014 | E15: =TestYear-3 -> 2015 | F15: =TestYear-2 -> 2016 | G15: =B15 -> 2012 | H15: 2013 | I15: 2014 | J15: 2015 | K15: 2016 | L15: 2012 | M15: 2013 | N15: 2014 | O15: 2015 | P15: 2016
A16: SAIDI | B16: 4.53 | C16: 5.37 | D16: 3.82 | E16: 2.23 | F16: 2.54 | G16: 0.89 | H16: 2.24 | I16: 1.16 | J16: 1.34 | K16: 0.63 | L16: 4.53 | M16: 5.37 | N16: 3.82 | O16: 2.23 | P16: 2.54
A17: SAIFI | B17: 3.83 | C17: 3.58 | D17: 2.46 | E17: 1.84 | F17: 3.2 | G17: 0.61 | H17: 1.12 | I17: 0.66 | J17: 0.83 | K17: 0.5 | L17: 3.83 | M17: 3.58 | N17: 2.46 | O17: 1.84 | P17: 3.2
A19: 5 Year Historical Average
A20: SAIDI | F20: =IF(ISERROR(AVERAGE(B16:F16)), "", AVERAGE(B16:F16)) -> 3.698 | K20: =IF(ISERROR(AVERAGE(G16:K16)), "", AVERAGE(G16:K16)) -> 1.252 | P20: =IF(ISERROR(AVERAGE(L16:P16)), "", AVERAGE(L16:P16)) -> 3.698
A21: SAIFI | F21: =IF(ISERROR(AVERAGE(B17:F17)), "", AVERAGE(B17:F17)) -> 2.982 | K21: =IF(ISERROR(AVERAGE(G17:K17)), "", AVERAGE(G17:K17)) -> 0.744 | P21: =IF(ISERROR(AVERAGE(L17:P17)), "", AVERAGE(L17:P17)) -> 2.982
A23: SAIDI = System Average Interruption Duration Index
A24: SAIFI = System Average Interruption Frequency Index
A26: Service Quality
A28: Indicator | E28: OEB Minimum Standard | G28: =B15 -> 2012 | H28: =C15 -> 2013 | I28: =D15 -> 2014 | J28: =E15 -> 2015 | K28: =F15 -> 2016
A29: Low Voltage Connections | E29: 0.9 | G29: 0.932 | H29: 0.927 | I29: 0.93 | J29: 0.923 | K29: 0.905
A30: High Voltage Connections | E30: 0.9 | G30: N/A | H30: N/A | I30: N/A | J30: N/A | K30: N/A
A31: Telephone Accessibility | E31: 0.65 | G31: 0.685 | H31: 0.664 | I31: 0.78 | J31: 0.792 | K31: 0.736
A32: Appointments Met | E32: 0.9 | G32: 0.957 | H32: 0.943 | I32: 0.947 | J32: 0.948 | K32: 0.908
A33: Written Response to Enquires | E33: 0.8 | G33: 0.939 | H33: 0.912 | I33: 0.917 | J33: 0.847 | K33: 0.963
A34: Emergency Urban Response | E34: 0.8 | G34: 0.912 | H34: 0.929 | I34: 0.963 | J34: 1 | K34: 0.977
A35: Emergency Rural Response | E35: 0.8 | G35: N/A | H35: N/A | I35: N/A | J35: N/A | K35: N/A
A36: Telephone Call Abandon Rate | E36: 0.1 | G36: 0.07 | H36: 0.017 | I36: 0.012 | J36: 0.014 | K36: 0.008
A37: Appointment Scheduling | E37: 0.9 | G37: 0.968 | H37: 0.965 | I37: 0.955 | J37: 0.985 | K37: 0.988
A38: Rescheduling a Missed Appointment | E38: 1 | G38: 1 | H38: 1 | I38: 1 | J38: 1 | K38: 1
A39: Reconnection Performance Standard | E39: 0.85 | G39: 0.967 | H39: 0.933 | I39: 0.953 | J39: 0.937 | K39: 0.975

Sheet App.2-H_Other_Oper_Rev
J1: File Number: | K1: =EBNUMBER -> EB-2017-0039
J2: Exhibit: | K2: 3
J3: Attachment: | K3: 3-E
J4: Page: | K4: 1 of 2
J6: Date: | K6: August 28th, 2017
A8: Appendix 2-H
A9: Other Operating Revenue
A11: USoA # | B11: USoA Description | C11: =F12-3 & " Actual" & CHAR(178) -> 2010 Actual² | D11: =G12-3 & " Actual" & CHAR(178) -> 2011 Actual² | E11: =H12-3 & " Actual" & CHAR(178) -> 2012 Actual² | F11: =I12-3 & " Actual" & CHAR(178) -> 2013 Actual² | G11: =G12&" Actual"&CHAR(178) -> 2014 Actual² | H11: =H12 & " Actual" & CHAR(178) -> 2015 Actual² | I11: ="Actual Year" -> Actual Year | J11: ="Bridge Year" -> Bridge Year | K11: Test Year
C12: 2010 | D12: 2011 | E12: 2012 | F12: 2013 | G12: =H12-1 -> 2014 | H12: =I12-1 -> 2015 | I12: =J12-1 -> 2016 | J12: =BridgeYear -> 2017 | K12: =TestYear -> 2018
B13: Reporting Basis | C13: CGAAP | D13: CGAAP | E13: CGAAP | F13: CGAAP | G13: CGAAP | H13: MIFRS | I13: MIFRS | J13: MIFRS | K13: MIFRS
A14: 4235 | B14: Specific Service Charges | C14: 162778 | D14: 144884 | E14: 156010 | F14: 163155 | G14: 146338 | H14: 154685 | I14: 153296 | J14: 166480 | K14: 166480
A15: 4225 | B15: Late Payment Charges | C15: 193108 | D15: 269465 | E15: 252832 | F15: 274425 | G15: 259613 | H15: 261627 | I15: 266735 | J15: 260400 | K15: 260400
A16: 4080 | B16: SSS Revenue | C16: 78655 | D16: 76745 | E16: 82855 | F16: 83263 | G16: 84366 | H16: 84690 | I16: 86653 | J16: 80000 | K16: 80000
A17: 4082 | B17: Retail Services Revenues | C17: 45485 | D17: 38946 | E17: 35298 | F17: 27420 | G17: 27350 | H17: 23454 | I17: 21106 | J17: 28000 | K17: 28000
A18: 4084 | B18: Service Transaction Requests | C18: 12374 | D18: 14114 | E18: 15068 | F18: 15224 | G18: 10688 | H18: 15118 | I18: 15464 | J18: 7640 | K18: 7640
A19: 4210 | B19: Rent from Electric Property | C19: 102337 | D19: 105058 | E19: 102121 | F19: 110034 | G19: 129986 | H19: 114671 | I19: 117193 | J19: 109515 | K19: 109515
A20: 4220 | B20: Other Electric Revenues | C20: 73.71 | D20: 2152.39 | E20: 0 | F20: 0 | G20: 0 | H20: 0 | I20: 0 | J20: 0 | K20: 0
A21: 4305 | B21: Regulatory Debits | C21: 0 | D21: 0 | E21: 0 | F21: -465810.33 | G21: -160213 | H21: 0 | I21: -781899.77 | J21: 0 | K21: 0
A22: 4355 | B22: Gain on Disposition of Utility and Other Property | C22: 23878.5 | D22: 120531.2 | E22: 37914.83 | F22: 79456.94 | G22: 30602.31 | H22: 17612.43 | I22: 122721.27 | J22: 0 | K22: 0
A23: 4360 | B23: Loss on Disposition of Utility and Other Property | C23: 0 | D23: 0 | E23: 0 | F23: 0 | G23: 0 | H23: -104844.71 | I23: -85458.05 | J23: 0 | K23: 0
A24: 4375 | B24: Revenues from Non-Utility Operations | C24: 2196295.37 | D24: 1807743.73 | E24: 1961904.55 | F24: 2218438.78 | G24: 1906608.9 | H24: 2316677.8 | I24: 2862081.29 | J24: 1865253 | K24: 1875456
A25: 4380 | B25: Expenses from Non-Utility Operations | C25: -1711585.58 | D25: -1473362.354 | E25: -1604419.252 | F25: -1936340.205 | G25: -1879975.207 | H25: -2415302.99 | I25: -3063638 | J25: -1784228 | K25: -1865670
A26: 4390 | B26: Miscellaneous Non-Operating Income | C26: 8610.88 | D26: 26160.98 | E26: 31371.39 | F26: 48105.71 | G26: 22395.77 | H26: 11370.57 | I26: 12175.55 | J26: 14000
A27: 4398 | B27: Foreign Exchange Gains and Losses, Including Amortization | C27: -36067.11 | D27: -40.92 | E27: -11.19 | F27: 467.95 | G27: -641.68 | H27: 17575.99 | I27: -7335.18 | J27: 0 | K27: 0
A28: 4405 | B28: Interest and Dividend Income | C28: 87470.11 | D28: 136817.32 | E28: 163753.98 | F28: 283681.8 | G28: 335180.69 | H28: 98823.65 | I28: 141379.56 | J28: 101310 | K28: 30000
A30: Specific Service Charges | C30: =C14 -> 162778 | D30: 144884 | E30: 156010 | F30: 163155 | G30: 146338 | H30: 154685 | I30: 153296 | J30: 166480 | K30: 166480
A31: Late Payment Charges | C31: =C15 -> 193108 | D31: 269465 | E31: 252832 | F31: 274425 | G31: 259613 | H31: 261627 | I31: 266735 | J31: 260400 | K31: 260400
A32: Other Operating Revenues | C32: =C16+C17+C18+C19+C20 -> 238924.71 | D32: 237015.39 | E32: 235342 | F32: 235941 | G32: 252390 | H32: 237933 | I32: 240416 | J32: 225155 | K32: 225155
A33: Other Income or Deductions | C33: =SUM(C21:C28) -> 568602.17 | D33: 617849.9563 | E33: 590514.3079 | F33: 228000.6454 | G33: 253957.783 | H33: -58087.26 | I33: -799973.33 | J33: 196335 | K33: 39786
A34: Total | C34: =SUM(C30:C33) -> 1163412.88 | D34: =SUM(D30:D33) -> 1269214.346 | E34: =SUM(E30:E33) -> 1234698.308 | F34: =SUM(F30:F33) -> 901521.6454 | G34: 912298.783 | H34: 596157.74 | I34: -139526.33 | J34: 848370 | K34: 691821
A36: Description | F36: Account(s)
A37: Specific Service Charges: | F37: 4235
A38: Late Payment Charges: | F38: 4225
A39: Other Distribution Revenues: | F39: 4080, 4082, 4084, 4090, 4205, 4210, 4215, 4220, 4240, 4245
A40: Other Income and Expenses: | F40: 4305, 4310, 4315, 4320, 4325, 4330, 4335, 4340, 4345, 4350, 4355, 4360, 4365, 4370, 4375, 4380, 4385, 4390, 4395, 4398, 4405, 4415
A43: Note: Add all applicable accounts listed above to the table and include all relevant information.
A45: Account Breakdown Details
A47: For each "Other Operating Revenue" and "Other Income or Deductions" Account, a detailed breakdown of the account components is required. See the example below for Account 4405, Interest and Dividend Income.
A50: Account 4080 - SSS Revenue
C51: 2010 Actual² | D51: 2011 Actual² | E51: 2012 Actual² | F51: 2013 Actual² | G51: 2014 Actual² | H51: 2015 Actual² | I51: Actual Year | J51: Bridge Year | K51: Test Year
C52: 2010 | D52: 2011 | E52: 2012 | F52: 2013 | G52: 2014 | H52: 2015 | I52: 2016 | J52: 2017 | K52: 2018
A53: Reporting Basis | C53: CGAAP | D53: CGAAP | E53: CGAAP | F53: CGAAP | G53: CGAAP | H53: MIFRS | I53: MIFRS | J53: MIFRS | K53: MIFRS
A54: SSS Administration | C54: 78655 | D54: 76745 | E54: 82855 | F54: 83263 | G54: 84366 | H54: 84690 | I54: 86653 | J54: 80000 | K54: 80000
A56: Total | C56: =SUM(C54:C55) -> 78655 | D56: 76745 | E56: 82855 | F56: 83263 | G56: 84366 | H56: 84690 | I56: 86653 | J56: 80000 | K56: 80000
A59: Account 4082 - Retail Services Revenues
C60: 2010 Actual² | D60: 2011 Actual² | E60: 2012 Actual² | F60: 2013 Actual² | G60: 2014 Actual² | H60: 2015 Actual² | I60: Actual Year | J60: Bridge Year | K60: Test Year
C61: 2010 | D61: 2011 | E61: 2012 | F61: 2013 | G61: 2014 | H61: 2015 | I61: 2016 | J61: 2017 | K61: 2018
A62: Reporting Basis | C62: CGAAP | D62: CGAAP | E62: CGAAP | F62: CGAAP | G62: CGAAP | H62: MIFRS | I62: MIFRS | J62: MIFRS | K62: MIFRS
A63: Standard Charge | C63: 0 | D63: 0 | E63: 0 | F63: 0 | G63: 0 | H63: 0 | I63: 0 | J63: 0 | K63: 0
A64: Monthly Fixed Charge | C64: 4240 | D64: 4020 | E64: 5400 | F64: 4280 | G64: 5260 | H64: 4560 | I64: 4460 | J64: 4800 | K64: 4800
A65: Monthly Variable Charge | C65: 28971 | D65: 21816 | E65: 18686 | F65: 14929 | G65: 13340 | H65: 11809 | I65: 10404 | J65: 14500 | K65: 14500
A66: DCB - Monthly Charge | C66: 12274 | D66: 13110 | E66: 11212 | F66: 8211 | G66: 8750 | H66: 7085 | I66: 6242 | J66: 8700 | K66: 8700
A67: Total | C67: =SUM(C63:C66) -> 45485 | D67: 38946 | E67: 35298 | F67: 27420 | G67: 27350 | H67: 23454 | I67: 21106 | J67: 28000 | K67: 28000
A70: Account 4084 - Service Transaction Requests
C71: 2010 Actual² | D71: 2011 Actual² | E71: 2012 Actual² | F71: 2013 Actual² | G71: 2014 Actual² | H71: 2015 Actual² | I71: Actual Year | J71: Bridge Year | K71: Test Year
C72: 2010 | D72: 2011 | E72: 2012 | F72: 2013 | G72: 2014 | H72: 2015 | I72: 2016 | J72: 2017 | K72: 2018
A73: Reporting Basis | C73: CGAAP | D73: CGAAP | E73: CGAAP | F73: CGAAP | G73: CGAAP | H73: MIFRS | I73: MIFRS | J73: MIFRS | K73: MIFRS
A74: Request Fee | C74: 825 | D74: 348.25 | E74: 323.25 | F74: 224.75 | G74: 147 | H74: 160 | I74: 125 | J74: 150 | K74: 150
A75: Processing Fee | C75: 1527.5 | D75: 264 | E75: 370.5 | F75: 361 | G75: 196 | H75: 203.5 | I75: 173.5 | J75: 200 | K75: 200
A76: Easement Letter | C76: 4965 | D76: 6735 | E76: 7185 | F76: 7320 | G76: 5175 | H76: 7380 | I76: 7545 | J76: 60 | K76: 60
A77: Arrears Certificate | C77: 4966.02 | D77: 6737.24 | E77: 7189.09 | F77: 7318.02 | G77: 5170.49 | H77: 7374.11 | I77: 7545 | J77: 7200 | K77: 7200
A78: Statement of Account | C78: 90 | D78: 30 | E78: 0 | I78: 75 | J78: 30 | K78: 30
A79: Total | C79: =SUM(C74:C78) -> 12373.52 | D79: 14114.49 | E79: 15067.84 | F79: 15223.77 | G79: 10688.49 | H79: 15117.61 | I79: 15463.5 | J79: 7640 | K79: 7640
A82: Account 4210 - Rent from Electric Property
C83: 2010 Actual² | D83: 2011 Actual² | E83: 2012 Actual² | F83: 2013 Actual² | G83: 2014 Actual² | H83: 2015 Actual² | I83: Actual Year | J83: Bridge Year | K83: Test Year
C84: 2010 | D84: 2011 | E84: 2012 | F84: 2013 | G84: 2014 | H84: 2015 | I84: 2016 | J84: 2017 | K84: 2018
A85: Reporting Basis | C85: CGAAP | D85: CGAAP | E85: CGAAP | F85: CGAAP | G85: CGAAP | H85: MIFRS | I85: MIFRS | J85: MIFRS | K85: MIFRS
A86: Pole Joint Use | C86: 102337 | D86: 105058 | E86: 102121 | F86: 110034 | G86: 129986 | H86: 114671 | I86: 117193 | J86: 109515 | K86: 109515
A88: Total | C88: =SUM(C86:C87) -> 102337 | D88: 105058 | E88: 102121 | F88: 110034 | G88: 129986 | H88: 114671 | I88: 117193 | J88: 109515 | K88: 109515
A91: Account 4220 - Other Electric Revenues
C92: 2010 Actual² | D92: 2011 Actual² | E92: 2012 Actual² | F92: 2013 Actual² | G92: 2014 Actual² | H92: 2015 Actual² | I92: Actual Year | J92: Bridge Year | K92: Test Year
C93: 2010 | D93: 2011 | E93: 2012 | F93: 2013 | G93: 2014 | H93: 2015 | I93: 2016 | J93: 2017 | K93: 2018
A94: Reporting Basis | C94: CGAAP | D94: CGAAP | E94: CGAAP | F94: CGAAP | G94: CGAAP | H94: MIFRS | I94: MIFRS | J94: MIFRS | K94: MIFRS
A95: Other miscellaneous revenues | C95: 74 | D95: 2152 | E95: 0 | F95: 0 | G95: 0 | H95: 0 | I95: 0 | J95: 0 | K95: 0
A97: Total | C97: =SUM(C95:C96) -> 74 | D97: 2152 | E97: 0 | F97: 0 | G97: 0 | H97: 0 | I97: 0 | J97: 0 | K97: 0
A100: Account 4305 - Regulatory Debits
C101: 2010 Actual² | D101: 2011 Actual² | E101: 2012 Actual² | F101: 2013 Actual² | G101: 2014 Actual² | H101: 2015 Actual² | I101: Actual Year | J101: Bridge Year | K101: Test Year
C102: 2010 | D102: 2011 | E102: 2012 | F102: 2013 | G102: 2014 | H102: 2015 | I102: 2016 | J102: 2017 | K102: 2018
A103: Reporting Basis | C103: CGAAP | D103: CGAAP | E103: CGAAP | F103: CGAAP | G103: CGAAP | H103: MIFRS | I103: MIFRS | J103: MIFRS | K103: MIFRS
A104: Accounting Change | C104: 0 | D104: 0 | E104: 0 | F104: 465810.33 | G104: 160213 | H104: 0 | I104: 781899.77 | J104: 0 | K104: 0
A106: Total | C106: =SUM(C104:C105) -> 0 | D106: 0 | E106: 0 | F106: 465810.33 | G106: 160213 | H106: 0 | I106: 781899.77 | J106: 0 | K106: 0
J109: File Number: | K109: =EBNUMBER -> EB-2017-0039
J110: Exhibit: | K110: 3
J111: Attachment: | K111: 3-E
J112: Page: | K112: 2 of 2
J114: Date: | K114: August 28th, 2017
A116: Account 4355 - Gain on Disposition of Utility and Other Property
C117: 2010 Actual² | D117: 2011 Actual² | E117: 2012 Actual² | F117: 2013 Actual² | G117: 2014 Actual² | H117: 2015 Actual² | I117: Actual Year | J117: Bridge Year | K117: Test Year
C118: 2010 | D118: 2011 | E118: 2012 | F118: 2013 | G118: 2014 | H118: 2015 | I118: 2016 | J118: 2017 | K118: 2018
A119: Reporting Basis | C119: CGAAP | D119: CGAAP | E119: CGAAP | F119: CGAAP | G119: CGAAP | H119: MIFRS | I119: MIFRS | J119: MIFRS | K119: MIFRS
A120: Gain on Disposition of Utility and Other Property | C120: -23878.5 | D120: -120531.2 | E120: -37914.83 | F120: -79456.94 | G120: -30602.31 | H120: -17612.43 | I120: -122721.27 | J120: 0 | K120: 0
A122: Total | C122: =SUM(C120:C121) -> -23878.5 | D122: -120531.2 | E122: -37914.83 | F122: -79456.94 | G122: -30602.31 | H122: -17612.43 | I122: -122721.27 | J122: 0 | K122: 0
A125: Account 4360 - Loss on Disposition of Utility and Other Property
C126: 2010 Actual² | D126: 2011 Actual² | E126: 2012 Actual² | F126: 2013 Actual² | G126: 2014 Actual² | H126: 2015 Actual² | I126: Actual Year | J126: Bridge Year | K126: Test Year
C127: 2010 | D127: 2011 | E127: 2012 | F127: 2013 | G127: 2014 | H127: 2015 | I127: 2016 | J127: 2017 | K127: 2018
A128: Reporting Basis | C128: CGAAP | D128: CGAAP | E128: CGAAP | F128: CGAAP | G128: CGAAP | H128: MIFRS | I128: MIFRS | J128: MIFRS | K128: MIFRS
A129: Loss on Disposition of Utility and Other Property | C129: 0 | D129: 0 | E129: 0 | F129: 0 | G129: 0 | H129: 104844.71 | I129: 85458.05 | J129: 0 | K129: 0
A131: Total | C131: =SUM(C129:C130) -> 0 | D131: 0 | E131: 0 | F131: 0 | G131: 0 | H131: 104844.71 | I131: 85458.05 | J131: 0 | K131: 0
A134: Account 4375 - Revenues from Non-Utility Operations
C135: 2010 Actual² | D135: 2011 Actual² | E135: 2012 Actual² | F135: 2013 Actual² | G135: 2014 Actual² | H135: 2015 Actual² | I135: Actual Year | J135: Bridge Year | K135: Test Year
C136: 2010 | D136: 2011 | E136: 2012 | F136: 2013 | G136: 2014 | H136: 2015 | I136: 2016 | J136: 2017 | K136: 2018
A137: Reporting Basis | C137: CGAAP | D137: CGAAP | E137: CGAAP | F137: CGAAP | G137: CGAAP | H137: MIFRS | I137: MIFRS | J137: MIFRS | K137: MIFRS
A138: Municipal Water Billing & Collecting | C138: 907509.25 | D138: 971321.33 | E138: 993795 | F138: 993795 | G138: 1013670.96 | H138: 1013670.96 | I138: 1013670.96 | J138: 755253 | K138: 765456
A139: Streetlight & Traffic Light Services | C139: 385464.1 | D139: 227512.24 | E139: 310395.1 | F139: 286520.21 | G139: 264053.36 | H139: 219649.99 | I139: 145021.12 | J139: 110000 | K139: 110000
A140: CDM Related | C140: 903322.02 | D140: 608910.16 | E140: 657714.45 | F140: 938123.57 | G140: 628884.58 | H140: 1083356.85 | I140: 1703389.21 | J140: 1000000 | K140: 1000000
A141: Total | C141: =SUM(C138:C140) -> 2196295.37 | D141: 1807743.73 | E141: 1961904.55 | F141: 2218438.78 | G141: 1906608.9 | H141: 2316677.8 | I141: 2862081.29 | J141: 1865253 | K141: 1875456
A144: Account 4380 - Expenses from Non-Utility Operations
C145: 2010 Actual² | D145: 2011 Actual² | E145: 2012 Actual² | F145: 2013 Actual² | G145: 2014 Actual² | H145: 2015 Actual² | I145: Actual Year | J145: Bridge Year | K145: Test Year
C146: 2010 | D146: 2011 | E146: 2012 | F146: 2013 | G146: 2014 | H146: 2015 | I146: 2016 | J146: 2017 | K146: 2018
A147: Reporting Basis | C147: CGAAP | D147: CGAAP | E147: CGAAP | F147: CGAAP | G147: CGAAP | H147: MIFRS | I147: MIFRS | J147: MIFRS | K147: MIFRS
A148: Municipal Water Billing & Collecting | C148: -772333.97 | D148: -895442.25 | E148: -848241.6 | F148: -929920.54 | G148: -947979.53 | H148: -948337.03 | I148: -941723.28 | J148: -684228 | K148: -765456
A149: Streetlight & Traffic Light Services | C149: -336433.78 | D149: -195946.58 | E149: -322698.14 | F149: -274929.1 | G149: -302679.57 | H149: -216868.97 | I149: -142871.69 | J149: -100000 | K149: -100214
A150: CDM Related | C150: -602817.83 | D150: -548676.76 | E150: -631080.58 | F150: -927651.25 | G150: -762512.08 | H150: -1083356.85 | I150: -1703389.21 | J150: -1000000 | K150: -1000000
A151: Non-Recoverable | C151: 0 | D151: 0 | E151: 0 | F151: 0 | G151: 0 | H151: -166740.14 | I151: -275653.82 | J151: 0 | K151: 0
A152: Total | C152: =SUM(C148:C151) -> -1711585.58 | D152: -1640065.59 | E152: -1802020.32 | F152: -2132500.89 | G152: -2013171.18 | H152: -2415302.99 | I152: -3063638 | J152: -1784228 | K152: -1865670
A155: Account 4390 - Miscellaneous Non-Operating Income
C156: 2010 Actual² | D156: 2011 Actual² | E156: 2012 Actual² | F156: 2013 Actual² | G156: 2014 Actual² | H156: 2015 Actual² | I156: Actual Year | J156: Bridge Year | K156: Test Year
C157: 2010 | D157: 2011 | E157: 2012 | F157: 2013 | G157: 2014 | H157: 2015 | I157: 2016 | J157: 2017 | K157: 2018
A158: Reporting Basis | C158: CGAAP | D158: CGAAP | E158: CGAAP | F158: CGAAP | G158: CGAAP | H158: MIFRS | I158: MIFRS | J158: MIFRS | K158: MIFRS
A159: Miscellaneous Non-Operating Income | C159: 8610.88 | D159: 26160.98 | E159: 31371.39 | F159: 48105.71 | G159: 22395.77 | H159: 11370.57 | I159: 12175.55 | J159: 14000 | K159: 0
A161: Total | C161: =SUM(C159:C160) -> 8610.88 | D161: 26160.98 | E161: 31371.39 | F161: 48105.71 | G161: 22395.77 | H161: 11370.57 | I161: 12175.55 | J161: 14000 | K161: 0
A164: Account 4398 - Foreign Exchange Gains and Losses, including Amortization
C165: 2010 Actual² | D165: 2011 Actual² | E165: 2012 Actual² | F165: 2013 Actual² | G165: 2014 Actual² | H165: 2015 Actual² | I165: Actual Year | J165: Bridge Year | K165: Test Year
C166: 2010 | D166: 2011 | E166: 2012 | F166: 2013 | G166: 2014 | H166: 2015 | I166: 2016 | J166: 2017 | K166: 2018
A167: Reporting Basis | C167: CGAAP | D167: CGAAP | E167: CGAAP | F167: CGAAP | G167: CGAAP | H167: MIFRS | I167: MIFRS | J167: MIFRS | K167: MIFRS
A168: Gain/(Loss) on Foreign Exchange | C168: -36067.11 | D168: -40.92 | E168: -11.19 | F168: 467.95 | G168: -641.68 | H168: 17575.99 | I168: -7335.18 | J168: 0 | K168: 0
A170: Total | C170: =SUM(C168:C169) -> -36067.11 | D170: -40.92 | E170: -11.19 | F170: 467.95 | G170: -641.68 | H170: 17575.99 | I170: -7335.18 | J170: 0 | K170: 0
A173: Account 4405 - Interest and Dividend Income
C174: 2010 Actual² | D174: 2011 Actual² | E174: 2012 Actual² | F174: 2013 Actual² | G174: 2014 Actual² | H174: 2015 Actual² | I174: Actual Year | J174: Bridge Year | K174: Test Year
C175: 2010 | D175: 2011 | E175: 2012 | F175: 2013 | G175: 2014 | H175: 2015 | I175: 2016 | J175: 2017 | K175: 2018
A176: Reporting Basis | C176: CGAAP | D176: CGAAP | E176: CGAAP | F176: CGAAP | G176: CGAAP | H176: MIFRS | I176: MIFRS | J176: MIFRS | K176: MIFRS
A177: DVA Balance Interest | C177: 22245.28 | D177: 67937.91 | E177: 103056.43 | F177: 215535.23 | G177: 299988.43 | H177: 63815.94 | I177: 121509.94 | J177: 71300 | K177: 0
A178: Miscellaneous Interest Revenue | C178: 65224.83 | D178: 68879.41 | E178: 60697.55 | F178: 68146.57 | G178: 35192.26 | H178: 35007.71 | I178: 19869.62 | J178: 30000 | K178: 30000
A180: Total | C180: =SUM(C177:C179) -> 87470.11 | D180: 136817.32 | E180: 163753.98 | F180: 283681.8 | G180: 335180.69 | H180: 98823.65 | I180: 141379.56 | J180: 101300 | K180: 30000
A183: Notes:
A185: 2 | B185: In the transition year to IFRS, the applicant is to present information in both MIFRS and CGAAP. For the typical applicant that adopted IFRS on January 1, 2015, 2014 must be presented in both a CGAAP and MIFRS basis.

Sheet App_2-I LF_CDM
A1: =+G76+1 -> 2021 | G1: File Number: | H1: =EBNUMBER -> EB-2017-0039
G2: Exhibit: | H2: 3
G3: Tab: | H3: 3-B
G4: Page: | H4: 1 of 3
G6: Date: | H6: August 28th, 2017
A8: Appendix 2-I
A9: Load Forecast CDM Adjustment Work Form (2018)
A11: Appendix 2-I was initially developed to help determine what would be the amount of CDM savings needed in each year to cumulatively achieve the four year 2011-2014 CDM target. This then determined the amount of kWh (and with translation, kW of demand) savings that were converted into dollar balances for the LRAMVA, and also to determine the related adjustment to the load forecast to account for OPA-reported savings. Beginning in the 2015 year, it has been adjusted because the persistence of 2011-2014 CDM programs will be an adjustment to the load forecast in addition to the estimated savings for the first year (2015) for the new 2015-2020 CDM plan.
A13: 2018 is the fourth year of the six-year (2015-2020) Conservation First program. Final results for the 2011-14 program were issued in the fall of 2015, and the program is completed, although in some instances disposition of the amounts has been deferred. For the purposes of the 2015-2020 LRAMVA, and the impact of CDM on the load forecast, CDM programs in 2014 and earlier are implicit in the historical data on which the base load forecast is developed. Only actual and forecasted impacts of 2015 to 2018 CDM programs need to be reflected in the manual load forecast adjustment and for the LRAMVA threshold amount in 2018 and carrying forward, although the full year impact of 2015 CDM programs and half-year impact of 2016 CDM programs on 2016 historical data is also assumed to be reflected in the base load forecast.
A15: The new six year (2015-2020) CDM program works in a slightly different manner to the previous 2011-2014 CDM program. Distributors will offer programs each year that, over the six years (from January 1, 2015 to December 31, 2020) will strive to achieve savings equal to the new six year CDM target with the full target in place (i.e., persisting) on December 31, 2020. In other words, distributors will be able to offer and execute programs on a basis so that, as long as savings equal to the full target are in place at the end the period, the distributor's 2015-2020 CDM target will have been met.
A17: 2015-2020 CDM Program - 2018 fourth year of the current CDM plan
A19: For the first year of the new 2015-2020 CDM plan, it is assumed that each year's program will achieve an equal amount of new CDM savings. This results in each year's program being about 1/6 (16.67%) of the cumulative 2015-2020 CDM target for kWh savings. A distributor may propose an alternative approach but would be expected to document in its application why it believes that its proposal is more reasonable. In its proposal, the distributor should ensure that the sum of the results for each year's CDM program from 2015 to 2020 add up to its 2015-2020 CDM target as established by the IESO.
A21: 6 Year (2015-2020) kWh Target:
A22: 31430000
B23: 2015 | C23: 2016 | D23: 2017 | E23: 2018 | F23: 2019 | G23: 2020 | H23: Total
A24: %
A25: 2015 CDM Programs | G25: =G33/G39 -> 0.1215307031 | H25: =H33/H39 -> 0.1215307031
A26: 2016 CDM Programs | G26: =G34/G39 -> 0.1756938594 | H26: =H34/H39 -> 0.1756938594
A27: 2017 CDM Programs | G27: =G35/$H$39 -> 0.1756938594 | H27: =H35/H39 -> 0.1756938594
A28: 2018 CDM Programs | G28: 0.1756938594 | H28: =H36/H39 -> 0.1756938594
A29: 2019 CDM Programs | G29: 0.1756938594 | H29: =H37/H39 -> 0.1756938594
A30: 2020 CDM Programs | G30: =G38/$H$39 -> 0.1756938594 | H30: =H38/H39 -> 0.1756938594
A31: Total in Year | B31: =SUM(B25:B30) -> 0 | C31: =SUM(C25:C30) -> 0 | D31: =SUM(D25:D30) -> 0 | E31: =SUM(E25:E28) -> 0 | F31: =SUM(F25:F29) -> 0 | G31: =SUM(G25:G30) -> 1 | H31: =SUM(H25:H30) -> 1
A32: kWh
A33: =A25 -> 2015 CDM Programs | B33: 3819710 | C33: =B33 -> 3819710 | D33: =C33 -> 3819710 | E33: =D33 -> 3819710 | F33: =E33 -> 3819710 | G33: =F33 -> 3819710 | H33: =G33 -> 3819710
A34: 2016 CDM Programs | C34: 5522058 | D34: =C34 -> 5522058 | E34: =D34 -> 5522058 | F34: =E34 -> 5522058 | G34: =F34 -> 5522058 | H34: 5522058 | K34: 2011 | L34: 2012 | M34: 2013 | N34: 2014
A35: 2017 CDM Programs | D35: 5522058 | E35: =D35 -> 5522058 | F35: =E35 -> 5522058 | G35: =F35 -> 5522058 | H35: 5522058 | J35: 2011 CDM Programs | K35: =50% -> 0.5 | L35: 1 | M35: 1 | N35: 1
A36: 2018 CDM Programs | E36: 5522058 | F36: =E36 -> 5522058 | G36: =F36 -> 5522058 | H36: 5522058 | J36: 2012 CDM Programs | L36: 0.5 | M36: 1 | N36: 1
A37: 2019 CDM Programs | F37: 5522058 | G37: =F37 -> 5522058 | H37: 5522058 | J37: 2013 CDM Programs | M37: 0.5 | N37: 1
A38: 2020 CDM Programs | G38: 5522058 | H38: 5522058 | J38: 2014 CDM Programs | N38: 0.5
A39: Total in Year | B39: =SUM(B33:B38) -> 3819710 | C39: =SUM(C33:C38) -> 9341768 | D39: 14863826 | E39: =SUM(E33:E36) -> 20385884 | F39: =SUM(F33:F37) -> 25907942 | G39: =SUM(G33:G38) -> 31430000 | H39: =A22 -> 31430000
G40: =IF(G39-H39<>0,"Inputs do no match 2015-20 CDM target","") -> 
A42: Note: The default formulae in the above table assume that the 2015-2020 kWh CDM target is achieved through persistence of CDM savings to the end of 2020. The distributor should enter measured CDM savings for 2015, and persistence of 2015 programs for 2016-2020 in row 34. When available, (preliminary/final) CDM savings for 2016 can be entered into row 35. The distributor can also input estimates or forecasts of the 2017 CDM programs if it believes that these are more realistic and can be supported; such information would typically be derived from the CDM plans that the distributor has filed with the IESO. Similarly, CDM savings and persistence into future years can be estimated for 2018, 2019 and 2020 CDM programs. However, the distributor will have to support its proposals for estimated or forecasted savings, particularly beyond the 2017 bridge year. The sum of persistent savings to the end of 2020, should equal the target entered into cell A23.
G44: File Number: | H44: =EBNUMBER -> EB-2017-0039
G45: Exhibit: | H45: 3
G46: Tab: | H46: 3-B
G47: Page: | H47: 2 of 3
G49: Date: | H49: August 28th, 2017
A50: Determination of 2018 Load Forecast Adjustment
A52: The Board determined that the "net" number should be used in its Decision and Order with respect to Centre Wellington Hydro Ltd.'s 2013 Cost of Service rates (EB-2012-0113). This approach has also been used in Settlement Agreements accepted by the Board in other 2013 and 2014 applications. The distributor should select whether the adjustment is done on a "net" or "gross" basis, but must support a proposal for the adjustment being done on a "gross" basis. Sheet 2-I defaults to the adjustment being done on a "net" basis consistent with Board policy and practice.
A54: From each of the 2006-2010 CDM Final Report, and the 2011 to 2016 CDM Final Reports, issued by the OPA/IESO for the distributor, the distributor should input the "gross" and "net" results of the cumulative CDM savings for 2018 into cells C57 to C63 and D57 to D63. The model will calculate the cumulative savings for all programs from 2006 to 2016 and determine the "net" to "gross" factor "g".
A56: Net-to-Gross Conversion
A58: Is CDM adjustment being done on a "net" or "gross" basis? | F58: net
C60: "Gross" | D60: "Net" | E60: Difference | F60: "Net-to-Gross" Conversion Factor
A61: Persistence of Historical CDM programs to 2015 | C61: kWh | D61: kWh | E61: kWh | F61: ('g')
A62: 2006-2010 CDM programs | C62: 6034000 | D62: 3213000 | E62: =IF(ISBLANK(D62),"",C62-D62) -> 2821000
A63: 2011 CDM program | C63: 2911673 | D63: 1762640 | E63: =IF(ISBLANK(D63),"",C63-D63) -> 1149033
A64: 2012 CDM program | C64: 2453965 | D64: 1834086 | E64: 619879
A65: 2013 CDM program | C65: 3231110 | D65: 1595768 | E65: 1635342
A66: 2014 CDM program | C66: 4590608 | D66: 3628004 | E66: 962604
A67: 2015 CDM program | C67: 17262381 | D67: 12809928 | E67: 4452453
A68: 2016 CDM program
A69: 2006 to 2016 OPA CDM programs: Persistence to 2018. | C69: =SUM(C62:C68) -> 36483737 | D69: =SUM(D62:D68) -> 24843426 | E69: =C69-D69 -> 11640311 | F69: =IF(D69=0,0,IF(F58="net",0,E69/D69)) -> 0
A71: The default values below represent the factor used for how each year's CDM program is factored into the manual CDM adjustment. Distributors can choose alternative weights of "0", "0.5" or "1" from the drop-down menu for each cell, but must support its alternatives.
A73: These factors do not mean that CDM programs are excluded, but the assumption that impacts of previous year CDM programs are already implicitly reflected in the actual data for historical years that are used to derive the load forecast prior to any manual CDM adjustment for the 2018 test year.
A75: Weight Factor for Inclusion in CDM Adjustment to 2018 Load Forecast
B76: 2015 | C76: 2016 | D76: 2017 | E76: 2018 | F76: 2019 | G76: 2020
A77: Weight Factor for each year's CDM program impact on 2018 load forecast | B77: 0 | C77: 0.5 | D77: 1 | E77: 0.5 | F77: 0 | G77: 0 | H77: Distributor can select "0", "0.5", or "1" from drop-down list
A78: Default Value selection rationale. | B78: Full year impact of 2015 CDM is assumed to be reflected in the base forecast, as the full year persistence of 2015 CDM programs is in the 2016 historical actual data. No further impact is necessary for the manual adjustment to the load forecast. | C78: Default is 0.5, but one option is for full year impact of persistence of 2016 CDM programs on 2018 load forecast, but 50% impact in base forecast (first year impact of 2016 CDM programs on 2016 actuals, which is part of the data underlying the base load forecast). | D78: Full year impact of persistence of 2017 programs on 2018 load forecast. 2017 CDM program impacts are not in the base forecast. | E78: Only 50% of 2017 CDM programs are assumed to impact the 2018 load forecast based on the "half-year" rule. | F78: 2019 and 2020 are future years beyond the 2018 test year. No impacts of CDM programs beyond the 2018 test year are factored into the test year load forecast.
G80: File Number: | H80: =EBNUMBER -> EB-2017-0039
G81: Exhibit: | H81: 3
G82: Tab: | H82: 3-B
G83: Page: | H83: 3 of 3
G85: Date: | H85: August 28th, 2017
A87: 2015-2020 LRAMVA and 2018 CDM adjustment to Load Forecast
A89: One manual adjustment for CDM impacts to the 2018 load forecast is made. There is a different but related threshold amount that is used for the 2018 LRAMVA amount for Account 1568.
A91: The amount used for the CDM threshold of the LRAMVA is the kWh that will be used to determine the base amount for the LRAMVA balance for 2018, for assessing performance against the six-year target.
A93: If used to determine the manual CDM adjustment for the system purchased kWh, the proposed loss factor should correspond with the proposed total loss factor calculated in Appendix 2-R .
A95: The Manual Adjustment for the 2018 Load Forecast is the amount manually subtracted from the system-wide load forecast (either based on a purchased or billed basis) derived from the base forecast from historical data. If the distributor has developed their load forecast on a system purchased basis, then the manual adjustment should be on a system purchased basis, including the adjustment for losses. If the load forecast has been developed on a billed basis, either on a system basis or on a class-specific basis, the manual adjustment should be on a billed basis, excluding losses.
A97: The distributor should determine the allocation of the savings to all customer classes in a reasonable manner (e.g. taking into account what programs and what IESO-measured impacts were directed at specific customer classes), for both the LRAMVA and for the load forecast adjustment.
B99: 2015 | C99: 2016 | D99: 2017 | E99: 2018 | F99: 2019 | G99: 2020 | H99: Total for 2018
A101: Amount used for CDM threshold for LRAMVA (2018) | B101: =E33 -> 3819710 | C101: =E34 -> 5522058 | D101: =E35 -> 5522058 | E101: =E36 -> 5522058 | H101: =SUM(B101:G101) -> 20385884
A103: Manual Adjustment for 2018 Load Forecast (billed basis) | B103: =B101*(1+F69)*B77 -> 0 | C103: =C101*(1+F69)*C77 -> 2761029 | D103: =D101*(1+F69)*D77 -> 5522058 | E103: =E101*(1+G69)*E77 -> 2761029 | H103: =SUM(B103:G103) -> 11044116
A104: Manual Adjustment for 2018 LDC-only CDM programs (billed basis) | E104: 0
A105: Total Manual Forecast to Load Forecast | B105: =B103+B104 -> 0 | C105: 2761029 | D105: 5522058 | E105: 2761029 | H105: =SUM(B105:G105) -> 11044116
A107: Proposed Loss Factor (TLF) | B107: 0.0355 | C107: Format: X.XX%
A108: Manual Adjustment for 2018 Load Forecast (system purchased basis) | B108: =B105*(1+$B107) -> 0 | C108: 2859045.53 | D108: 5718091.059 | E108: 2859045.53 | H108: =SUM(B108:G108) -> 11436182.12
A110: Manual adjustment uses "gross" versus "net" (i.e. numbers multiplied by (1 + g). The Weight factor is also used to calculate the impact of each year's program on the CDM adjustment to the 2018 load forecast.

Sheet App.2-IA_Load_Forecast_Instrct
Q1: File Number: | R1: =EBNUMBER -> EB-2017-0039
Q2: Exhibit: | R2: 3
Q3: Tab:
Q4: Schedule:
Q5: Page:
Q7: Date: | R7: August 28th, 2017
B9: Appendix 2-IA
B10: Instructions on Customer, Connections, Load Forecast and Revenues Data and Analysis
B12: This sheet requires no inputs, but serves as a summary of the hiostorical and forecasted data to be provided with respect to:
B14: 1) | C14: Customers and connections
B15: 2) | C15: Consumption (kWh)
B16: 3) | C16: Demand (kW or kCA) for applicable demand-billed customer classes
B17: 4) | C17: Revenues
B19: The spreadsheet summarizes the data provided and the analyses (variance or year-over-year) that are required. Data are required to be provided on a customer class level. Consumption (kWh) must also be provided on a total distribution system level.
B21: Appendix 2-IB (formerly 2-IA) is the appendix spreadsheet that the distributor populates, and the spreadsheet is laid out for inputting the necessary data. The spreadsheet also calculates necessary statistics such as average consumption per customer/connection per year, and variances and % annual changes, as necessary.
B23: The distributor is required to provide suitable documentation in Exhibit 3 of its Application, in accordance with section 2.3.2 of Chaoter 2 of the Filing Requirements. This would include explanations for material variations or of trends in the data.
B25: The distributor is also required to input its test year customer/connection and load forecast in Sheet 10 - Load Forecast of the Revenue Requirement Work Form. This sheet should also be updated to reflect changes in the load forecast made through the stages of processing of the rates application.
B27: The applicant must demonstrate the historical accuracy of its load forecast approach for at least the past 5 years. Such analysis will cover both customer/connections and consumption (kWh) and demand (kW or kVA) by providing the following, as shown in the following table:
D29: Calendar Year | F29: Customers / Connections | I29: Consumption (kWh) (3) | M29: Demand (kW or kVA) | Q29: Revenues
D30: ="(for "&TestYear&" Cost of Service)" -> (for 2018 Cost of Service) | I30: Weather-actual | J30: Weather-normalized | M30: Weather-actual | N30: Weather-normalized | Q30: Weather-actual | R30: Weather-normalized
C31: Historical | D31: =D32-1 -> 2012 | F31: Actual | I31: Actual | J31: Actual (1) | M31: Actual | N31: Actual (1) | Q31: Actual
C32: Historical | D32: 2013 | F32: Actual | I32: Actual | J32: Actual (1) | M32: Actual | N32: Actual (1) | Q32: Actual
C33: Historical | D33: 2014 | F33: Actual | G33: Board-approved (2) | I33: Actual | J33: Actual (1) | K33: Board-approved (2) | M33: Actual | N33: Actual (1) | O33: Board-approved (2) | Q33: Actual
C34: Historical | D34: 2015 | F34: Actual | I34: Actual | J34: Actual (1) | M34: Actual | N34: Actual (1) | Q34: Actual
C35: Historical | D35: 2016 | F35: Actual | I35: Actual | J35: Actual (1) | M35: Actual | N35: Actual (1) | Q35: Actual
C36: Bridge Year (Forecast) | D36: 2017 | F36: Forecast | J36: Forecast | N36: Forecast | R36: Forecast
C37: Test Year (Forecast) | D37: =TestYear -> 2018 | F37: Forecast | J37: Forecast | N37: Forecast | R37: Forecast
B40: Notes:
B42: (1) | C42: “Weather-normalized actuals” are estimated by replacing the actual weather-related values (typically Heating Degree Days (HDD) and Cooling Degree Days (CDD)) by the “typical” or “weather-normalized” values. These “weather-normalized HDD and CDD values would be the same as used to estimate the Bridge Year and Test Year forecasts.
B43: (2) | C43: For 2017 Cost of Service rebasers, the typical situation is that 2013 would have been the most recent cost of service rebasing application. If the most recent rebasing application was for a rate year other than 2013, that year should be used. An applicant must provide historical information back to the greater of: a) at least five (5) historical actual years; or b) to its last cost of service application.
B44: (3) | C44: Consumption must be provided on a total distribution system basis as well as at a customer class level.
B45: (4) | C45: Revenues exclude commodity charges.

Sheet App.2-IB_Load_Forecast_Analysis
T1: File Number: | U1: =EBNUMBER -> EB-2017-0039
T2: Exhibit: | U2: 3
T3: Attachment: | U3: 3-D
T4: Page: | U4: 1 of 8
T6: Date: | U6: August 28th, 2017
B8: Appendix 2-IB
B9: Customer, Connections, Load Forecast and Revenues Data and Analysis
B11: This sheet requires no inputs, but serves as a summary of the hiostorical and forecasted data to be provided with respect to:
B13: 1) | C13: Customers and connections
B14: 2) | C14: Consumption (kWh)
B15: 3) | C15: Demand (kW or kCA) for applicable demand-billed customer classes
B16: 4) | C16: Revenues
B18: The spreadsheet summarizes the data provided and the analyses (variance or year-over-year) that are required. Data are required to be provided on a customer class level. Consumption (kWh) must also be provided on a total distribution system level.
B20: Appendix 2-IB (formerly 2-IA) is the appendix spreadsheet that the distributor populates, and the spreadsheet is laid out for inputting the necessary data. The spreadsheet also calculates necessary statistics such as average consumption per customer/connection per year, and variances and % annual changes, as necessary.
B22: The distributor is required to provide suitable documentation in Exhibit 3 of its Application, in accordance with section 2.3.2 of Chaoter 2 of the Filing Requirements. This would include explanations for material variations or of trends in the data.
B24: The distributor is also required to input its test year customer/connection and load forecast in Sheet 10 - Load Forecast of the Revenue Requirement Work Form. This sheet should also be updated to reflect changes in the load forecast made through the stages of processing of the rates application.
B26: The applicant must demonstrate the historical accuracy of its load forecast approach for at least the past 5 years. Such analysis will cover both customer/connections and consumption (kWh) and demand (kW or kVA) by providing the following, as shown in the following table:
B28: This sheet is to be filled in accordance with the instructions documented in section 2.3.2 of Chapter 2 of the Filing Requirements for Distribution Rate Applications, in terms of one set of tables per customer class.
B30: Color coding for Cells: | F30: Data input | K30: Drop-down List
F32: No data entry required | K32: Blank or calculated value
B34: Distribution System (Total)
D36: Calendar Year | K36: Consumption (kWh) (3)
D37: =CONCATENATE("(for ",TestYear," Cost of Service") -> (for 2018 Cost of Service | L37: Actual (Weather actual) | M37: Weather-normalized | O37: Weather-normalized
C38: Historical | D38: =D39-1 -> 2012 | K38: Actual | L38: 527521454 | M38: 527521454 | N38: =IF(D38=RebaseYear,"Board-approved","") -> 
C39: Historical | D39: 2013 | K39: Actual | L39: 526053625 | M39: 526053625
C40: Historical | D40: 2014 | K40: Actual | L40: 523146227 | M40: 523146227
C41: Historical | D41: 2015 | K41: Actual | L41: 528742855 | M41: 528742855
C42: Historical | D42: 2016 | K42: Actual | L42: 547976678 | M42: 527900141
C43: Bridge Year | D43: 2017 | K43: Forecast | M43: 528989785
C44: Test Year | D44: =TestYear -> 2018 | K44: Forecast | M44: 518917436
O45: =SUM(O38:O43) -> 0
C46: Variance Analysis | K46: Year | L46: Year-over-year | O46: Versus Board-approved
D47: =D38 -> 2012 | K47: =D47 -> 2012
D48: 2013 | K48: =D48 -> 2013 | L48: =IF(L38=0,"",L39/L38-1) -> -0.002782501051 | M48: -0.002782501051
D49: 2014 | K49: 2014 | L49: -0.005526809173 | M49: -0.005526809173
D50: 2015 | K50: 2015 | L50: 0.01069801847 | M50: 0.01069801847
D51: 2016 | K51: 2016 | L51: 0.03637651614 | M51: -0.00159380688
D52: 2017 | K52: 2017 | L52: =IF(K43="Forecast","",IF(L42=0,"",L43/L42-1)) ->  | M52: =IF(M42=0,"",M43/M42-1) -> 0.002064110076
D53: 2018 | K53: 2018 | L53: =IF(K44="Forecast","",IF(L43=0,"",L44/L43-1)) ->  | M53: =IF(M43=0,"",M44/M43-1) -> -0.01904072495 | O53: =IF(O45=0,"",M44/O45-1) -> 
D54: Geometric Mean | K54: Geometric Mean | L54: =IF(L38=0,"",(L42/L38)^(1/($D42-$D38-1))-1) -> 0.01276180966 | M54: =IF(M38=0,"",(M44/M38)^(1/($D44-$D38-1))-1) -> -0.003283546921 | O54: =IF(O45=0,"",(M44/O45)^(1/(TestYear-RebaseYear-1))-1) -> 
T56: File Number: | U56: =EBNUMBER -> EB-2017-0039
T57: Exhibit: | U57: 3
T58: Attachment: | U58: 3-D
B59: Customer Class Analysis (one for each Customer Class, excluding MicroFIT and Standby) | T59: Page: | U59: 2 of 8
B61: 1 | C61: Customer Class: | D61: Residential | H61: Is the customer class billed on consumption (kWh) or demand (kW or kVA)? | N61: kWh | T61: Date: | U61: August 28th, 2017
D63: Calendar Year | F63: Customers | K63: Consumption (kWh) (3) | Q63: =CONCATENATE("Consumption (kWh) per ",LEFT(F63,LEN(F63)-1)) -> Consumption (kWh) per Customer
D64: =CONCATENATE("(for ",TestYear," Cost of Service") -> (for 2018 Cost of Service | L64: Actual (Weather actual) | M64: Weather-normalized | O64: Weather-normalized | R64: =L64 -> Actual (Weather actual) | S64: =M64 -> Weather-normalized | U64: =O64 -> Weather-normalized
C65: Historical | D65: =D66-1 -> 2012 | F65: =K38 -> Actual | G65: 26337 | H65: =IF(D65=RebaseYear,"Board-approved","") ->  | K65: =F65 -> Actual | L65: 256003979 | M65: 256003979 | N65: =H65 ->  | Q65: =K65 -> Actual | R65: =IF(G65=0,"",L65/G65) -> 9720.316627 | S65: =IF(G65=0,"",M65/G65) -> 9720.316627 | T65: =N65 ->  | U65: =IF(T65="","",IF(I65=0,"",O65/I65)) -> 
C66: Historical | D66: 2013 | F66: Actual | G66: 26466 | K66: =F66 -> Actual | L66: 250406105 | M66: 250406105 | N66: =H66 ->  | Q66: =K66 -> Actual | R66: =IF(G66=0,"",L66/G66) -> 9461.426169 | S66: =IF(G66=0,"",M66/G66) -> 9461.426169 | T66: =N66 ->  | U66: =IF(T66="","",IF(I66=0,"",O66/I66)) -> 
C67: Historical | D67: 2014 | F67: Actual | G67: 26590 | K67: Actual | L67: 245551953 | M67: 245551953 | Q67: Actual | R67: 9234.748138 | S67: 9234.748138
C68: Historical | D68: 2015 | F68: Actual | G68: 26815 | K68: Actual | L68: 244757239 | M68: 244757239 | Q68: Actual | R68: 9127.624054 | S68: 9127.624054
C69: Historical | D69: 2016 | F69: Actual | G69: 27137 | K69: Actual | L69: 255390422 | M69: 249168165 | Q69: Actual | R69: 9411.151638 | S69: 9181.861112
C70: Bridge Year | D70: 2017 | F70: Forecast | G70: 27310 | K70: Forecast | M70: 247700344 | Q70: Forecast | R70: 0 | S70: 9069.950348
C71: Test Year | D71: =TestYear -> 2018 | F71: Forecast | G71: 27484 | K71: Forecast | M71: 245374118 | Q71: Forecast | R71: 0 | S71: 8927.889608
I72: =SUM(I65:I70) -> 0 | O72: =SUM(O65:O70) -> 0 | U72: =SUM(U65:U70) -> 0
C73: Variance Analysis | D73: Year | G73: Year-over-year | I73: Test Year Versus Board-approved | K73: Year | L73: Year-over-year | O73: =I73 -> Test Year Versus Board-approved | Q73: Year | R73: Year-over-year | U73: =O73 -> Test Year Versus Board-approved
D74: =D65 -> 2012 | K74: =D74 -> 2012 | Q74: =K74 -> 2012
D75: 2013 | G75: =IF(G65=0,"",G66/G65-1) -> 0.00489805217 | K75: =D75 -> 2013 | L75: =IF(L65=0,"",L66/L65-1) -> -0.02186635544 | M75: -0.02186635544 | Q75: =K75 -> 2013 | R75: =IF(R65="","",IF(R65=0,"",R66/R65-1)) -> -0.02663395312 | S75: =IF(S65="","",IF(S65=0,"",S66/S65-1)) -> -0.02663395312
D76: 2014 | G76: 0.004685256556 | K76: 2014 | L76: -0.01938511843 | M76: -0.01938511843 | Q76: 2014 | R76: =IF(R66="","",IF(R66=0,"",R67/R66-1)) -> -0.02395812502 | S76: -0.02395812502
D77: 2015 | G77: 0.008461827755 | K77: 2015 | L77: -0.003236439337 | M77: -0.003236439337 | Q77: 2015 | R77: -0.01160010897 | S77: -0.01160010897
D78: 2016 | G78: 0.01200820436 | K78: 2016 | L78: 0.04344379371 | M78: 0.01802163653 | Q78: 2016 | R78: 0.0310625835 | S78: 0.005942078477
D79: 2017 | G79: 0.006375059881 | K79: 2017 | L79: =IF(K70="Forecast","",IF(L69=0,"",L70/L69-1)) ->  | M79: =IF(M69=0,"",M70/M69-1) -> -0.005890884977 | Q79: 2017 | R79: =IF(Q70="Forecast","",IF(R69=0,"",R70/R69-1)) ->  | S79: =IF(S69="","",IF(S69=0,"",S70/S69-1)) -> -0.01218824407
D80: 2018 | G80: 0.006371292567 | I80: =IF(I72=0,"",G71/I72-1) ->  | K80: 2018 | L80: =IF(K71="Forecast","",IF(L70=0,"",L71/L70-1)) ->  | M80: =IF(M70=0,"",M71/M70-1) -> -0.009391290954 | O80: =IF(O72=0,"",M71/O72-1) ->  | Q80: 2018 | R80: =IF(Q71="Forecast","",IF(R70=0,"",R71/R70-1)) ->  | S80: -0.0156627913 | U80: =IF(U72=0,"",S71/U72-1) -> 
D81: Geometric Mean | G81: =IF(G65=0,"",(G71/G65)^(1/($D71-$D65-1))-1) -> 0.008562293035 | I81: =IF(I72=0,"",(G71/I72)^(1/(TestYear-RebaseYear-1))-1) ->  | K81: Geometric Mean | L81: =IF(L65=0,"",(L69/L65)^(1/($D69-$D65-1))-1) -> -0.0007995290029 | M81: =IF(M65=0,"",(M71/M65)^(1/($D71-$D65-1))-1) -> -0.008445916984 | O81: =IF(O72=0,"",(M71/O72)^(1/(TestYear-RebaseYear-1))-1) ->  | Q81: Geometric Mean | R81: =IF(R65="","",IF(R65=0,"",(R69/R65)^(1/($D69-$D65-1))-1)) -> -0.01071645264 | S81: =IF(S65="","",IF(S65=0,"",(S71/S65)^(1/($D71-$D65-1))-1)) -> -0.01686381708 | U81: =IF(U72=0,"",(S71/U72)^(1/(TestYear-RebaseYear-1))-1) -> 
D84: Calendar Year | F84: Revenues | K84: =IF(ISBLANK(N61),"",CONCATENATE("Demand (",N61,")")) -> Demand (kWh) | Q84: =CONCATENATE("Demand (",N61,") per ",LEFT(F63,LEN(F63)-1)) -> Demand (kWh) per Customer
D85: =CONCATENATE("(for ",TestYear," Cost of Service") -> (for 2018 Cost of Service | L85: Actual (Weather actual) | M85: Weather-normalized | O85: =M85 -> Weather-normalized | R85: =L85 -> Actual (Weather actual) | S85: =M85 -> Weather-normalized | U85: =O85 -> Weather-normalized
C86: Historical | D86: =D87-1 -> 2012 | F86: =F65 -> Actual | G86: 7804704.11 | H86: =IF(D86=RebaseYear,"Board-approved","") ->  | K86: =K65 -> Actual | N86: =N65 ->  | Q86: =K86 -> Actual | R86: =IF(G86=0,"",L86/G86) -> 0 | S86: =IF(G86=0,"",M86/G86) -> 0 | T86: =N86 ->  | U86: =IF(T86="","",IF(I86=0,"",O86/I86)) -> 
C87: Historical | D87: 2013 | F87: Actual | G87: 7876389.6 | K87: Actual | Q87: =K87 -> Actual | R87: =IF(G87=0,"",L87/G87) -> 0 | S87: =IF(G87=0,"",M87/G87) -> 0 | T87: =N87 ->  | U87: =IF(T87="","",IF(I87=0,"",O87/I87)) -> 
C88: Historical | D88: 2014 | F88: Actual | G88: 7711531.06 | K88: Actual | Q88: Actual | R88: 0 | S88: 0
C89: Historical | D89: 2015 | F89: Actual | G89: 9894481.27 | K89: Actual | Q89: Actual | R89: 0 | S89: 0
C90: Historical | D90: 2016 | F90: Actual | G90: 8394578.52 | K90: Actual | Q90: Actual | R90: 0 | S90: 0
C91: Bridge Year (Forecast) | D91: 2017 | F91: Forecast | G91: 8588055.883 | K91: Forecast | Q91: Forecast | R91: 0 | S91: 0
C92: Test Year (Forecast) | D92: =TestYear -> 2018 | F92: Forecast | G92: 8612318.6 | K92: Forecast | Q92: Forecast | R92: 0 | S92: 0
I93: =SUM(I86:I91) -> 0 | O93: =SUM(O86:O91) -> 0 | U93: =SUM(U86:U91) -> 0
C94: Variance Analysis | D94: Year | G94: Year-over-year | I94: =I73 -> Test Year Versus Board-approved | K94: Year | L94: Year-over-year | O94: =I94 -> Test Year Versus Board-approved | Q94: Year | R94: Year-over-year | U94: =O94 -> Test Year Versus Board-approved
D95: =D86 -> 2012 | K95: =D95 -> 2012 | Q95: =K95 -> 2012
D96: =D87 -> 2013 | G96: =IF(G86=0,"",G87/G86-1) -> 0.0091849081 | K96: =D96 -> 2013 | L96: =IF(L86=0,"",L87/L86-1) ->  | M96: =IF(M86=0,"",M87/M86-1) ->  | Q96: =K96 -> 2013 | R96: =IF(R86="","",IF(R86=0,"",R87/R86-1)) ->  | S96: =IF(S86="","",IF(S86=0,"",S87/S86-1)) -> 
D97: =D88 -> 2014 | G97: =IF(G87=0,"",G88/G87-1) -> -0.0209307244 | K97: 2014 | L97: =IF(L87=0,"",L88/L87-1) ->  | Q97: 2014 | R97: =IF(R87="","",IF(R87=0,"",R88/R87-1)) -> 
D98: 2015 | G98: 0.2830761094 | K98: 2015 | L98: =IF(L88=0,"",L89/L88-1) ->  | Q98: 2015
D99: 2016 | G99: -0.1515898317 | K99: 2016 | L99: =IF(L89=0,"",L90/L89-1) ->  | Q99: 2016
D100: 2017 | G100: 0.02304789487 | K100: 2017 | L100: =IF(K91="Forecast","",IF(L90=0,"",L91/L90-1)) ->  | M100: =IF(M90=0,"",M91/M90-1) ->  | Q100: 2017 | R100: =IF(Q91="Forecast","",IF(R90=0,"",R91/R90-1)) ->  | S100: =IF(S90="","",IF(S90=0,"",S91/S90-1)) -> 
D101: 2018 | G101: 0.002825169926 | I101: =IF(I93=0,"",G92/I93-1) ->  | K101: 2018 | L101: =IF(K92="Forecast","",IF(L91=0,"",L92/L91-1)) ->  | M101: =IF(M91=0,"",M92/M91-1) ->  | O101: =IF(O93=0,"",M92/O93-1) ->  | Q101: 2018 | R101: =IF(Q92="Forecast","",IF(R91=0,"",R92/R91-1)) ->  | U101: =IF(U93=0,"",S92/U93-1) -> 
D102: Geometric Mean | G102: =IF(G86=0,"",(G92/G86)^(1/($D92-$D86-1))-1) -> 0.01988858013 | I102: =IF(I93=0,"",(G92/I93)^(1/(TestYear-RebaseYear-1))-1) ->  | K102: Geometric Mean | L102: =IF(L86=0,"",(L90/L86)^(1/($D90-$D86-1))-1) ->  | M102: =IF(M86=0,"",(M92/M86)^(1/($D92-$D86-1))-1) ->  | O102: =IF(O93=0,"",(M92/O93)^(1/(TestYear-RebaseYear-1))-1) ->  | Q102: Geometric Mean | R102: =IF(R86="","",IF(R86=0,"",(R90/R86)^(1/($D90-$D86-1))-1)) ->  | S102: =IF(S86="","",IF(S86=0,"",(S92/S86)^(1/($D92-$D86-1))-1)) ->  | U102: =IF(U93=0,"",(S92/U93)^(1/(TestYear-RebaseYear-1))-1) -> 
T104: File Number: | U104: =EBNUMBER -> EB-2017-0039
T105: Exhibit: | U105: 3
T106: Attachment: | U106: 3-D
T107: Page: | U107: 3 of 8
B109: 2 | C109: Customer Class: | D109: GS < 50 kW | H109: Is the customer class billed on consumption (kWh) or demand (kW or kVA)? | N109: kWh | T109: Date: | U109: August 28th, 2017
D111: Calendar Year | F111: Customers | K111: Consumption (kWh) (3) | Q111: =CONCATENATE("Consumption (kWh) per ",LEFT(F111,LEN(F111)-1)) -> Consumption (kWh) per Customer
D112: =CONCATENATE("(for ",TestYear," Cost of Service") -> (for 2018 Cost of Service | L112: Actual (Weather actual) | M112: Weather-normalized | O112: Weather-normalized | R112: =L112 -> Actual (Weather actual) | S112: =M112 -> Weather-normalized | U112: =O112 -> Weather-normalized
C113: Historical | D113: =D114-1 -> 2012 | F113: =F65 -> Actual | G113: 1906 | H113: =IF(D113=RebaseYear,"Board-approved","") ->  | K113: =F113 -> Actual | L113: 67056278 | M113: 67056278 | N113: =H113 ->  | Q113: =K113 -> Actual | R113: =IF(G113=0,"",L113/G113) -> 35181.67786 | S113: =IF(G113=0,"",M113/G113) -> 35181.67786 | T113: =N113 ->  | U113: =IF(T113="","",IF(I113=0,"",O113/I113)) -> 
C114: Historical | D114: 2013 | F114: Actual | G114: 1904 | K114: =F114 -> Actual | L114: 65663990 | M114: 65663990 | N114: =H114 ->  | Q114: =K114 -> Actual | R114: =IF(G114=0,"",L114/G114) -> 34487.38971 | S114: =IF(G114=0,"",M114/G114) -> 34487.38971 | T114: =N114 ->  | U114: =IF(T114="","",IF(I114=0,"",O114/I114)) -> 
C115: Historical | D115: 2014 | F115: Actual | G115: 1910 | K115: Actual | L115: 65242011 | M115: 65242011 | Q115: Actual | R115: 34158.12094 | S115: 34158.12094
C116: Historical | D116: 2015 | F116: Actual | G116: 1936 | K116: Actual | L116: 65329579 | M116: 65329579 | Q116: Actual | R116: 33744.61725 | S116: 33744.61725
C117: Historical | D117: 2016 | F117: Actual | G117: 1953 | K117: Actual | L117: 66808993 | M117: 64675919 | Q117: Actual | R117: 34208.39375 | S117: 33116.18996
C118: Bridge Year | D118: 2017 | F118: Forecast | G118: 1965 | K118: Forecast | M118: 65087892 | Q118: Forecast | R118: 0 | S118: 33123.60916
C119: Test Year | D119: =TestYear -> 2018 | F119: Forecast | G119: 1977 | K119: Forecast | M119: 62707450 | Q119: Forecast | R119: 0 | S119: 31718.48761
I120: =SUM(I113:I118) -> 0 | O120: =SUM(O113:O118) -> 0 | U120: =SUM(U113:U118) -> 0
C121: Variance Analysis | D121: Year | G121: Year-over-year | I121: Test Year Versus Board-approved | K121: Year | L121: Year-over-year | O121: =I121 -> Test Year Versus Board-approved | Q121: Year | R121: Year-over-year | U121: =O121 -> Test Year Versus Board-approved
D122: =D113 -> 2012 | K122: =D122 -> 2012 | Q122: =K122 -> 2012
D123: 2013 | G123: =IF(G113=0,"",G114/G113-1) -> -0.001049317943 | K123: =D123 -> 2013 | L123: =IF(L113=0,"",L114/L113-1) -> -0.02076297763 | M123: -0.02076297763 | Q123: =K123 -> 2013 | R123: =IF(R113="","",IF(R113=0,"",R114/R113-1)) -> -0.01973436731 | S123: =IF(S113="","",IF(S113=0,"",S114/S113-1)) -> -0.01973436731
D124: 2014 | G124: 0.003151260504 | K124: 2014 | L124: =IF(L114=0,"",L115/L114-1) -> -0.006426338089 | M124: -0.006426338089 | Q124: 2014 | R124: =IF(R114="","",IF(R114=0,"",R115/R114-1)) -> -0.009547511896 | S124: -0.009547511896
D125: 2015 | G125: 0.01361256545 | K125: 2015 | L125: =IF(L115=0,"",L116/L115-1) -> 0.001342202649 | M125: 0.001342202649 | Q125: 2015 | R125: =IF(R115="","",IF(R115=0,"",R116/R115-1)) -> -0.01210557487 | S125: -0.01210557487
D126: 2016 | G126: 0.008780991736 | K126: 2016 | L126: =IF(L116=0,"",L117/L116-1) -> 0.02264539314 | M126: -0.01000557496 | Q126: 2016 | R126: =IF(R116="","",IF(R116=0,"",R117/R116-1)) -> 0.01374371793 | S126: -0.01862303796
D127: 2017 | G127: 0.006144393241 | K127: 2017 | L127: =IF(K118="Forecast","",IF(L117=0,"",L118/L117-1)) ->  | M127: =IF(M117=0,"",M118/M117-1) -> 0.00636980512 | Q127: 2017 | R127: =IF(Q118="Forecast","",IF(R117=0,"",R118/R117-1)) ->  | S127: 0.0002240353179
D128: 2018 | G128: 0.006106870229 | I128: =IF(I120=0,"",G119/I120-1) ->  | K128: 2018 | L128: =IF(K119="Forecast","",IF(L118=0,"",L119/L118-1)) ->  | M128: =IF(M118=0,"",M119/M118-1) -> -0.03657273153 | O128: =IF(O120=0,"",M119/O120-1) ->  | Q128: 2018 | R128: =IF(Q119="Forecast","",IF(R118=0,"",R119/R118-1)) ->  | S128: -0.042420545 | U128: =IF(U120=0,"",S119/U120-1) -> 
D129: Geometric Mean | G129: =IF(G113=0,"",(G119/G113)^(1/($D119-$D113-1))-1) -> 0.007341565908 | I129: =IF(I120=0,"",(G119/I120)^(1/(TestYear-RebaseYear-1))-1) ->  | K129: Geometric Mean | L129: =IF(L113=0,"",(L117/L113)^(1/($D117-$D113-1))-1) -> -0.001230755243 | M129: =IF(M113=0,"",(M119/M113)^(1/($D119-$D113-1))-1) -> -0.01332087658 | O129: =IF(O120=0,"",(M119/O120)^(1/(TestYear-RebaseYear-1))-1) ->  | Q129: Geometric Mean | R129: =IF(R113="","",IF(R113=0,"",(R117/R113)^(1/($D117-$D113-1))-1)) -> -0.009307873189 | S129: =IF(S113="","",IF(S113=0,"",(S119/S113)^(1/($D119-$D113-1))-1)) -> -0.02051185336 | U129: =IF(U120=0,"",(S119/U120)^(1/(TestYear-RebaseYear-1))-1) -> 
D132: Calendar Year | F132: Revenues | K132: =IF(ISBLANK(N109),"",CONCATENATE("Demand (",N109,")")) -> Demand (kWh) | Q132: =CONCATENATE("Demand (",N109,") per ",LEFT(F111,LEN(F111)-1)) -> Demand (kWh) per Customer
D133: =CONCATENATE("(for ",TestYear," Cost of Service") -> (for 2018 Cost of Service | L133: Actual (Weather actual) | M133: Weather-normalized | O133: =M133 -> Weather-normalized | R133: =L133 -> Actual (Weather actual) | S133: =M133 -> Weather-normalized | U133: =O133 -> Weather-normalized
C134: Historical | D134: =D135-1 -> 2012 | F134: =F113 -> Actual | G134: 1437971.41 | H134: =IF(D134=RebaseYear,"Board-approved","") ->  | K134: =K113 -> Actual | N134: =N113 ->  | Q134: =K134 -> Actual | R134: =IF(G134=0,"",L134/G134) -> 0 | S134: =IF(G134=0,"",M134/G134) -> 0 | T134: =N134 ->  | U134: =IF(T134="","",IF(I134=0,"",O134/I134)) -> 
C135: Historical | D135: 2013 | F135: Actual | G135: 1591910.54 | K135: Actual | Q135: =K135 -> Actual | R135: =IF(G135=0,"",L135/G135) -> 0 | S135: =IF(G135=0,"",M135/G135) -> 0 | T135: =N135 ->  | U135: =IF(T135="","",IF(I135=0,"",O135/I135)) -> 
C136: Historical | D136: 2014 | F136: Actual | G136: 1537372.94 | K136: Actual | Q136: Actual | R136: 0 | S136: 0
C137: Historical | D137: 2015 | F137: Actual | G137: 1919833.39 | K137: Actual | Q137: Actual | R137: 0 | S137: 0
C138: Historical | D138: 2016 | F138: Actual | G138: 1795691.35 | K138: Actual | Q138: Actual | R138: 0 | S138: 0
C139: Bridge Year (Forecast) | D139: 2017 | F139: Forecast | G139: 1609420.104 | K139: Forecast | Q139: Forecast | R139: 0 | S139: 0
C140: Test Year (Forecast) | D140: =TestYear -> 2018 | F140: Forecast | G140: 1585913.52 | K140: Forecast | Q140: Forecast | R140: 0 | S140: 0
I141: =SUM(I134:I139) -> 0 | O141: =SUM(O134:O139) -> 0 | U141: =SUM(U134:U139) -> 0
C142: Variance Analysis | D142: Year | G142: Year-over-year | I142: =I121 -> Test Year Versus Board-approved | K142: Year | L142: Year-over-year | O142: =I142 -> Test Year Versus Board-approved | Q142: Year | R142: Year-over-year | U142: =O142 -> Test Year Versus Board-approved
D143: =D134 -> 2012 | K143: =D143 -> 2012 | Q143: =K143 -> 2012
D144: =D135 -> 2013 | G144: =IF(G134=0,"",G135/G134-1) -> 0.1070529838 | K144: =D144 -> 2013 | L144: =IF(L134=0,"",L135/L134-1) ->  | M144: =IF(M134=0,"",M135/M134-1) ->  | Q144: =K144 -> 2013 | R144: =IF(R134="","",IF(R134=0,"",R135/R134-1)) ->  | S144: =IF(S134="","",IF(S134=0,"",S135/S134-1)) -> 
D145: =D136 -> 2014 | G145: =IF(G135=0,"",G136/G135-1) -> -0.03425921158 | K145: 2014 | L145: =IF(L135=0,"",L136/L135-1) ->  | Q145: 2014 | R145: =IF(R135="","",IF(R135=0,"",R136/R135-1)) -> 
D146: 2015 | G146: 0.2487753232 | K146: 2015 | L146: =IF(L136=0,"",L137/L136-1) ->  | Q146: 2015 | R146: =IF(R136="","",IF(R136=0,"",R137/R136-1)) -> 
D147: 2016 | G147: -0.06466292369 | K147: 2016 | L147: =IF(L137=0,"",L138/L137-1) ->  | Q147: 2016 | R147: =IF(R137="","",IF(R137=0,"",R138/R137-1)) -> 
D148: 2017 | G148: -0.1037323291 | K148: 2017 | L148: =IF(K139="Forecast","",IF(L138=0,"",L139/L138-1)) ->  | Q148: 2017 | R148: =IF(Q139="Forecast","",IF(R138=0,"",R139/R138-1)) -> 
D149: 2018 | G149: -0.01460562344 | I149: =IF(I141=0,"",G140/I141-1) ->  | K149: 2018 | L149: =IF(K140="Forecast","",IF(L139=0,"",L140/L139-1)) ->  | O149: =IF(O141=0,"",M140/O141-1) ->  | Q149: 2018 | R149: =IF(Q140="Forecast","",IF(R139=0,"",R140/R139-1)) ->  | U149: =IF(U141=0,"",S140/U141-1) -> 
D150: Geometric Mean | G150: =IF(G134=0,"",(G140/G134)^(1/($D140-$D134-1))-1) -> 0.01977849654 | I150: =IF(I141=0,"",(G140/I141)^(1/(TestYear-RebaseYear-1))-1) ->  | K150: Geometric Mean | L150: =IF(L134=0,"",(L138/L134)^(1/($D138-$D134-1))-1) ->  | M150: =IF(M134=0,"",(M140/M134)^(1/($D140-$D134-1))-1) ->  | O150: =IF(O141=0,"",(M140/O141)^(1/(TestYear-RebaseYear-1))-1) ->  | Q150: Geometric Mean | R150: =IF(R134="","",IF(R134=0,"",(R138/R134)^(1/($D138-$D134-1))-1)) ->  | S150: =IF(S134="","",IF(S134=0,"",(S140/S134)^(1/($D140-$D134-1))-1)) ->  | U150: =IF(U141=0,"",(S140/U141)^(1/(TestYear-RebaseYear-1))-1) -> 
T152: File Number: | U152: =EBNUMBER -> EB-2017-0039
T153: Exhibit: | U153: 3
T154: Attachment: | U154: 3-D
T155: Page: | U155: 4 of 8
B157: 3 | C157: Customer Class: | D157: GS > 50 kW | H157: Is the customer class billed on consumption (kWh) or demand (kW or kVA)? | N157: kW | T157: Date: | U157: August 28th, 2017
D159: Calendar Year | F159: Customers | K159: Consumption (kWh) (3) | Q159: =CONCATENATE("Consumption (kWh) per ",LEFT(F159,LEN(F159)-1)) -> Consumption (kWh) per Customer
D160: =CONCATENATE("(for ",TestYear," Cost of Service") -> (for 2018 Cost of Service | L160: Actual (Weather actual) | M160: Weather-normalized | O160: Weather-normalized | R160: =L160 -> Actual (Weather actual) | S160: =M160 -> Weather-normalized | U160: =O160 -> Weather-normalized
C161: Historical | D161: =D162-1 -> 2012 | F161: =F113 -> Actual | G161: 215 | H161: =IF(D161=RebaseYear,"Board-approved","") ->  | K161: =F161 -> Actual | L161: 193368936 | M161: 193368936 | N161: =H161 ->  | Q161: =K161 -> Actual | R161: =IF(G161=0,"",L161/G161) -> 899390.4 | S161: =IF(G161=0,"",M161/G161) -> 899390.4 | T161: =N161 ->  | U161: =IF(T161="","",IF(I161=0,"",O161/I161)) -> 
C162: Historical | D162: 2013 | F162: Actual | G162: 214 | K162: =F162 -> Actual | L162: 199814450 | M162: 199814450 | N162: =H162 ->  | Q162: =K162 -> Actual | R162: =IF(G162=0,"",L162/G162) -> 933712.3832 | S162: =IF(G162=0,"",M162/G162) -> 933712.3832 | T162: =N162 ->  | U162: =IF(T162="","",IF(I162=0,"",O162/I162)) -> 
C163: Historical | D163: 2014 | F163: Actual | G163: 217 | K163: Actual | L163: 203591284 | M163: 203591284 | Q163: Actual | R163: 938208.682 | S163: 938208.682
C164: Historical | D164: 2015 | F164: Actual | G164: 217 | K164: Actual | L164: 210477740 | M164: 210477740 | Q164: Actual | R164: 969943.5023 | S164: 969943.5023
C165: Historical | D165: 2016 | F165: Actual | G165: 223 | K165: Actual | L165: 219618449 | M165: 207897243 | Q165: Actual | R165: 984836.0942 | S165: 932274.6323
C166: Bridge Year | D166: 2017 | F166: Forecast | G166: 219 | K166: Forecast | M166: 179829958 | Q166: Forecast | R166: 0 | S166: 821141.3607
C167: Test Year | D167: =TestYear -> 2018 | F167: Forecast | G167: 219 | K167: Forecast | M167: 176280306 | Q167: Forecast | R167: 0 | S167: 804932.9041
I168: =SUM(I161:I166) -> 0 | O168: =SUM(O161:O166) -> 0 | U168: =SUM(U161:U166) -> 0
C169: Variance Analysis | D169: Year | G169: Year-over-year | I169: Test Year Versus Board-approved | K169: Year | L169: Year-over-year | O169: =I169 -> Test Year Versus Board-approved | Q169: Year | R169: Year-over-year | U169: =O169 -> Test Year Versus Board-approved
D170: =D161 -> 2012 | K170: =D170 -> 2012 | Q170: =K170 -> 2012
D171: 2013 | G171: =IF(G161=0,"",G162/G161-1) -> -0.004651162791 | K171: =D171 -> 2013 | L171: =IF(L161=0,"",L162/L161-1) -> 0.03333272724 | M171: 0.03333272724 | Q171: =K171 -> 2013 | R171: =IF(R161="","",IF(R161=0,"",R162/R161-1)) -> 0.03816138484 | S171: =IF(S161="","",IF(S161=0,"",S162/S161-1)) -> 0.03816138484
D172: 2014 | G172: 0.01401869159 | K172: 2014 | L172: =IF(L162=0,"",L163/L162-1) -> 0.01890170606 | M172: 0.01890170606 | Q172: 2014 | R172: =IF(R162="","",IF(R162=0,"",R163/R162-1)) -> 0.004815507357 | S172: 0.004815507357
D173: 2015 | G173: 0 | K173: 2015 | L173: =IF(L163=0,"",L164/L163-1) -> 0.03382490579 | M173: 0.03382490579 | Q173: 2015 | R173: =IF(R163="","",IF(R163=0,"",R164/R163-1)) -> 0.03382490579 | S173: 0.03382490579
D174: 2016 | G174: 0.02764976959 | K174: 2016 | L174: =IF(L164=0,"",L165/L164-1) -> 0.0434283882 | M174: -0.0122601896 | Q174: 2016 | R174: =IF(R164="","",IF(R164=0,"",R165/R164-1)) -> 0.01535408179 | S174: -0.03883614863
D175: 2017 | G175: -0.01793721973 | K175: 2017 | L175: =IF(K166="Forecast","",IF(L165=0,"",L166/L165-1)) ->  | M175: =IF(M165=0,"",M166/M165-1) -> -0.1350055662 | Q175: 2017 | R175: =IF(Q166="Forecast","",IF(R165=0,"",R166/R165-1)) ->  | S175: =IF(S165="","",IF(S165=0,"",S166/S165-1)) -> -0.1192065811
D176: 2018 | G176: 0 | I176: =IF(I168=0,"",G167/I168-1) ->  | K176: 2018 | L176: =IF(K167="Forecast","",IF(L166=0,"",L167/L166-1)) ->  | M176: =IF(M166=0,"",M167/M166-1) -> -0.01973893582 | O176: =IF(O168=0,"",M167/O168-1) ->  | Q176: 2018 | R176: =IF(Q167="Forecast","",IF(R166=0,"",R167/R166-1)) ->  | S176: =IF(S166="","",IF(S166=0,"",S167/S166-1)) -> -0.01973893582 | U176: =IF(U168=0,"",S167/U168-1) -> 
D177: Geometric Mean | G177: =IF(G161=0,"",(G167/G161)^(1/($D167-$D161-1))-1) -> 0.003693544724 | I177: =IF(I168=0,"",(G167/I168)^(1/(TestYear-RebaseYear-1))-1) ->  | K177: Geometric Mean | L177: =IF(L161=0,"",(L165/L161)^(1/($D165-$D161-1))-1) -> 0.04334363479 | M177: =IF(M161=0,"",(M167/M161)^(1/($D167-$D161-1))-1) -> -0.01833475007 | O177: =IF(O168=0,"",(M167/O168)^(1/(TestYear-RebaseYear-1))-1) ->  | Q177: Geometric Mean | R177: =IF(R161="","",IF(R161=0,"",(R165/R161)^(1/($D165-$D161-1))-1)) -> 0.03071493694 | S177: =IF(S161="","",IF(S161=0,"",(S167/S161)^(1/($D167-$D161-1))-1)) -> -0.02194723171 | U177: =IF(U168=0,"",(S167/U168)^(1/(TestYear-RebaseYear-1))-1) -> 
D180: Calendar Year | F180: Revenues | K180: =IF(ISBLANK(N157),"",CONCATENATE("Demand (",N157,")")) -> Demand (kW) | Q180: =CONCATENATE("Demand (",N157,") per ",LEFT(F159,LEN(F159)-1)) -> Demand (kW) per Customer
D181: =CONCATENATE("(for ",TestYear," Cost of Service") -> (for 2018 Cost of Service | L181: Actual (Weather actual) | M181: Weather-normalized | O181: =M181 -> Weather-normalized | R181: =L181 -> Actual (Weather actual) | S181: =M181 -> Weather-normalized | U181: =O181 -> Weather-normalized
C182: Historical | D182: =D183-1 -> 2012 | F182: =F161 -> Actual | G182: 1588021.47 | H182: =IF(D182=RebaseYear,"Board-approved","") ->  | K182: =K161 -> Actual | L182: 514811 | M182: 514811 | N182: =N161 ->  | Q182: =K182 -> Actual | R182: =IF(G182=0,"",L182/G182) -> 0.3241839041 | S182: =IF(G182=0,"",M182/G182) -> 0.3241839041 | T182: =N182 ->  | U182: =IF(T182="","",IF(I182=0,"",O182/I182)) -> 
C183: Historical | D183: 2013 | F183: Actual | G183: 1415445.23 | K183: Actual | L183: 480276 | M183: 480276 | Q183: =K183 -> Actual | R183: =IF(G183=0,"",L183/G183) -> 0.3393109036 | S183: =IF(G183=0,"",M183/G183) -> 0.3393109036 | T183: =N183 ->  | U183: =IF(T183="","",IF(I183=0,"",O183/I183)) -> 
C184: Historical | D184: 2014 | F184: Actual | G184: 1499280.51 | K184: Actual | L184: 473538 | M184: 473538 | Q184: Actual | R184: 0.3158434975 | S184: 0.3158434975
C185: Historical | D185: 2015 | F185: Actual | G185: 1598367.59 | K185: Actual | L185: 561575 | M185: 561575 | Q185: Actual | R185: 0.3513428347 | S185: 0.3513428347
C186: Historical | D186: 2016 | F186: Actual | G186: 1603629.34 | K186: Actual | L186: 563949 | M186: 532036 | Q186: Actual | R186: 0.3516704178 | S186: 0.3317699338
C187: Bridge Year (Forecast) | D187: 2017 | F187: Forecast | G187: 1551690.034 | K187: Forecast | M187: 455239 | Q187: Forecast | R187: 0 | S187: 0.2933826925
C188: Test Year (Forecast) | D188: =TestYear -> 2018 | F188: Forecast | G188: 1528407.455 | K188: Forecast | M188: 446253.4 | Q188: Forecast | R188: 0 | S188: 0.2919727972
I189: =SUM(I182:I187) -> 0 | O189: =SUM(O182:O187) -> 0 | U189: =SUM(U182:U187) -> 0
C190: Variance Analysis | D190: Year | G190: Year-over-year | I190: =I169 -> Test Year Versus Board-approved | K190: Year | L190: Year-over-year | O190: =I190 -> Test Year Versus Board-approved | Q190: Year | R190: Year-over-year | U190: =O190 -> Test Year Versus Board-approved
D191: =D182 -> 2012 | K191: =D191 -> 2012 | Q191: =K191 -> 2012
D192: =D183 -> 2013 | G192: =IF(G182=0,"",G183/G182-1) -> -0.1086737448 | K192: =D192 -> 2013 | L192: =IF(L182=0,"",L183/L182-1) -> -0.06708287119 | M192: =IF(M182=0,"",M183/M182-1) -> -0.06708287119 | Q192: =K192 -> 2013 | R192: =IF(R182="","",IF(R182=0,"",R183/R182-1)) -> 0.04666178449 | S192: =IF(S182="","",IF(S182=0,"",S183/S182-1)) -> 0.04666178449
D193: =D184 -> 2014 | G193: =IF(G183=0,"",G184/G183-1) -> 0.05922891132 | K193: 2014 | L193: =IF(L183=0,"",L184/L183-1) -> -0.01402943308 | M193: -0.01402943308 | Q193: 2014 | R193: =IF(R183="","",IF(R183=0,"",R184/R183-1)) -> -0.06916195698 | S193: -0.06916195698
D194: 2015 | G194: 0.06608975394 | K194: 2015 | L194: =IF(L184=0,"",L185/L184-1) -> 0.1859132741 | M194: 0.1859132741 | Q194: 2015 | R194: =IF(R184="","",IF(R184=0,"",R185/R184-1)) -> 0.1123953398 | S194: 0.1123953398
D195: 2016 | G195: 0.003291952385 | K195: 2016 | L195: =IF(L185=0,"",L186/L185-1) -> 0.004227396163 | M195: -0.05260027601 | Q195: 2016 | R195: =IF(R185="","",IF(R185=0,"",R186/R185-1)) -> 0.0009323744453 | S195: -0.05570883755
D196: 2017 | G196: -0.03238859804 | K196: 2017 | L196: =IF(K187="Forecast","",IF(L186=0,"",L187/L186-1)) ->  | M196: =IF(M186=0,"",M187/M186-1) -> -0.1443454954 | Q196: 2017 | R196: =IF(Q187="Forecast","",IF(R186=0,"",R187/R186-1)) ->  | S196: =IF(S186="","",IF(S186=0,"",S187/S186-1)) -> -0.1157044007
D197: 2018 | G197: -0.01500465818 | I197: =IF(I189=0,"",G188/I189-1) ->  | K197: 2018 | L197: =IF(K188="Forecast","",IF(L187=0,"",L188/L187-1)) ->  | M197: =IF(M187=0,"",M188/M187-1) -> -0.01973820345 | O197: =IF(O189=0,"",M188/O189-1) ->  | Q197: 2018 | R197: =IF(Q188="Forecast","",IF(R187=0,"",R188/R187-1)) ->  | S197: =IF(S187="","",IF(S187=0,"",S188/S187-1)) -> -0.004805652441 | U197: =IF(U189=0,"",S188/U189-1) -> 
D198: Geometric Mean | G198: =IF(G182=0,"",(G188/G182)^(1/($D188-$D182-1))-1) -> -0.007623307751 | I198: =IF(I189=0,"",(G188/I189)^(1/(TestYear-RebaseYear-1))-1) ->  | K198: Geometric Mean | L198: =IF(L182=0,"",(L186/L182)^(1/($D186-$D182-1))-1) -> 0.03085442062 | M198: =IF(M182=0,"",(M188/M182)^(1/($D188-$D182-1))-1) -> -0.02817796046 | O198: =IF(O189=0,"",(M188/O189)^(1/(TestYear-RebaseYear-1))-1) ->  | Q198: Geometric Mean | R198: =IF(R182="","",IF(R182=0,"",(R186/R182)^(1/($D186-$D182-1))-1)) -> 0.02749913061 | S198: =IF(S182="","",IF(S182=0,"",(S188/S182)^(1/($D188-$D182-1))-1)) -> -0.02071255086 | U198: =IF(U189=0,"",(S188/U189)^(1/(TestYear-RebaseYear-1))-1) -> 
T200: File Number: | U200: =EBNUMBER -> EB-2017-0039
T201: Exhibit: | U201: 3
T202: Attachment: | U202: 3-D
T203: Page: | U203: 5 of 8
T205: Date: | U205: August 28th, 2017
B206: 4 | C206: Customer Class: | D206: Streetlighting | H206: Is the customer class billed on consumption (kWh) or demand (kW or kVA)? | N206: kW
D208: Calendar Year | F208: Connections | K208: Consumption (kWh) (3) | Q208: =CONCATENATE("Consumption (kWh) per ",LEFT(F208,LEN(F208)-1)) -> Consumption (kWh) per Connection
D209: =CONCATENATE("(for ",TestYear," Cost of Service") -> (for 2018 Cost of Service | L209: Actual (Weather actual) | M209: Weather-normalized | O209: Weather-normalized | R209: =L209 -> Actual (Weather actual) | S209: =M209 -> Weather-normalized | U209: =O209 -> Weather-normalized
C210: Historical | D210: =D211-1 -> 2012 | F210: =F161 -> Actual | G210: 2474 | H210: =IF(D210=RebaseYear,"Board-approved","") ->  | K210: =F210 -> Actual | L210: 6205705 | M210: 6205705 | N210: =H210 ->  | Q210: =K210 -> Actual | R210: =IF(G210=0,"",L210/G210) -> 2508.369038 | S210: =IF(G210=0,"",M210/G210) -> 2508.369038 | T210: =N210 ->  | U210: =IF(T210="","",IF(I210=0,"",O210/I210)) -> 
C211: Historical | D211: 2013 | F211: Actual | G211: 2621 | K211: =F211 -> Actual | L211: 6271491 | M211: 6271491 | N211: =H211 ->  | Q211: =K211 -> Actual | R211: =IF(G211=0,"",L211/G211) -> 2392.785578 | S211: =IF(G211=0,"",M211/G211) -> 2392.785578 | T211: =N211 ->  | U211: =IF(T211="","",IF(I211=0,"",O211/I211)) -> 
C212: Historical | D212: 2014 | F212: Actual | G212: 2713 | K212: Actual | L212: 6286758 | M212: 6286758 | Q212: Actual | R212: 2317.271655 | S212: 2317.271655
C213: Historical | D213: 2015 | F213: Actual | G213: 2701 | K213: Actual | L213: 6227063 | M213: 6227063 | Q213: Actual | R213: 2305.465753 | S213: 2305.465753
C214: Historical | D214: 2016 | F214: Actual | G214: 2720 | K214: Actual | L214: 4268688 | M214: 4268688 | Q214: Actual | R214: 1569.370588 | S214: 1569.370588
C215: Bridge Year | D215: 2017 | F215: Forecast | G215: 2740 | K215: Forecast | M215: 2799882 | Q215: Forecast | R215: 0 | S215: 1021.854745
C216: Test Year | D216: =TestYear -> 2018 | F216: Forecast | G216: 2740 | K216: Forecast | M216: 2799882 | Q216: Forecast | R216: 0 | S216: 1021.854745
I217: =SUM(I210:I215) -> 0 | O217: =SUM(O210:O215) -> 0 | U217: =SUM(U210:U215) -> 0
C218: Variance Analysis | D218: Year | G218: Year-over-year | I218: Test Year Versus Board-approved | K218: Year | L218: Year-over-year | O218: =I218 -> Test Year Versus Board-approved | Q218: Year | R218: Year-over-year | U218: =O218 -> Test Year Versus Board-approved
D219: =D210 -> 2012 | K219: =D219 -> 2012 | Q219: =K219 -> 2012
D220: 2013 | G220: =IF(G210=0,"",G211/G210-1) -> 0.05941794665 | K220: =D220 -> 2013 | L220: =IF(L210=0,"",L211/L210-1) -> 0.01060089063 | M220: 0.01060089063 | Q220: =K220 -> 2013 | R220: =IF(R210="","",IF(R210=0,"",R211/R210-1)) -> -0.0460791288 | S220: =IF(S210="","",IF(S210=0,"",S211/S210-1)) -> -0.0460791288
D221: 2014 | G221: 0.03510110645 | K221: 2014 | L221: =IF(L211=0,"",L212/L211-1) -> 0.002434349344 | M221: 0.002434349344 | Q221: 2014 | R221: =IF(R211="","",IF(R211=0,"",R212/R211-1)) -> -0.03155900124 | S221: -0.03155900124
D222: 2015 | G222: -0.004423147807 | K222: 2015 | L222: =IF(L212=0,"",L213/L212-1) -> -0.009495355158 | M222: -0.009495355158 | Q222: 2015 | R222: =IF(R212="","",IF(R212=0,"",R213/R212-1)) -> -0.005094742148 | S222: -0.005094742148
D223: 2016 | G223: 0.007034431692 | K223: 2016 | L223: =IF(L213=0,"",L214/L213-1) -> -0.3144941684 | M223: -0.3144941684 | Q223: 2016 | R223: =IF(R213="","",IF(R213=0,"",R214/R213-1)) -> -0.3192826283 | S223: -0.3192826283
D224: 2017 | G224: 0.007352941176 | K224: 2017 | L224: =IF(K215="Forecast","",IF(L214=0,"",L215/L214-1)) ->  | M224: =IF(M214=0,"",M215/M214-1) -> -0.3440883944 | Q224: 2017 | R224: =IF(Q215="Forecast","",IF(R214=0,"",R215/R214-1)) ->  | S224: =IF(S214="","",IF(S214=0,"",S215/S214-1)) -> -0.3488760703
D225: 2018 | G225: 0 | I225: =IF(I217=0,"",G216/I217-1) ->  | K225: 2018 | L225: =IF(K216="Forecast","",IF(L215=0,"",L216/L215-1)) ->  | M225: =IF(M215=0,"",M216/M215-1) -> 0 | O225: =IF(O217=0,"",M216/O217-1) ->  | Q225: 2018 | R225: =IF(Q216="Forecast","",IF(R215=0,"",R216/R215-1)) ->  | S225: =IF(S215="","",IF(S215=0,"",S216/S215-1)) -> 0 | U225: =IF(U217=0,"",S216/U217-1) -> 
D226: Geometric Mean | G226: =IF(G210=0,"",(G216/G210)^(1/($D216-$D210-1))-1) -> 0.02063433319 | I226: =IF(I217=0,"",(G216/I217)^(1/(TestYear-RebaseYear-1))-1) ->  | K226: Geometric Mean | L226: =IF(L210=0,"",(L214/L210)^(1/($D214-$D210-1))-1) -> -0.1172567023 | M226: =IF(M210=0,"",(M216/M210)^(1/($D216-$D210-1))-1) -> -0.1471557605 | O226: =IF(O217=0,"",(M216/O217)^(1/(TestYear-RebaseYear-1))-1) ->  | Q226: Geometric Mean | R226: =IF(R210="","",IF(R210=0,"",(R214/R210)^(1/($D214-$D210-1))-1)) -> -0.1447140078 | S226: =IF(S210="","",IF(S210=0,"",(S216/S210)^(1/($D216-$D210-1))-1)) -> -0.1643978536 | U226: =IF(U217=0,"",(S216/U217)^(1/(TestYear-RebaseYear-1))-1) -> 
D229: Calendar Year | F229: Revenues | K229: =IF(ISBLANK(N206),"",CONCATENATE("Demand (",N206,")")) -> Demand (kW) | Q229: =CONCATENATE("Demand (",N206,") per ",LEFT(F208,LEN(F208)-1)) -> Demand (kW) per Connection
D230: =CONCATENATE("(for ",TestYear," Cost of Service") -> (for 2018 Cost of Service | L230: Actual (Weather actual) | M230: Weather-normalized | O230: =M230 -> Weather-normalized | R230: =L230 -> Actual (Weather actual) | S230: =M230 -> Weather-normalized | U230: =O230 -> Weather-normalized
C231: Historical | D231: =D232-1 -> 2012 | F231: =F210 -> Actual | G231: 203924.33 | H231: =IF(D231=RebaseYear,"Board-approved","") ->  | K231: =K210 -> Actual | L231: 18742 | M231: 18742 | N231: =N210 ->  | Q231: =K231 -> Actual | R231: =IF(G231=0,"",L231/G231) -> 0.09190664008 | S231: =IF(G231=0,"",M231/G231) -> 0.09190664008 | T231: =N231 ->  | U231: =IF(T231="","",IF(I231=0,"",O231/I231)) -> 
C232: Historical | D232: 2013 | F232: Actual | G232: 242863.18 | K232: Actual | L232: 19025 | M232: 19025 | Q232: =K232 -> Actual | R232: =IF(G232=0,"",L232/G232) -> 0.07833628795 | S232: =IF(G232=0,"",M232/G232) -> 0.07833628795 | T232: =N232 ->  | U232: =IF(T232="","",IF(I232=0,"",O232/I232)) -> 
C233: Historical | D233: 2014 | F233: Actual | G233: 266072.72 | K233: Actual | L233: 15872 | M233: 15872 | Q233: Actual | R233: 0.05965286483 | S233: 0.05965286483
C234: Historical | D234: 2015 | F234: Actual | G234: 272331.87 | K234: Actual | L234: 18023 | M234: 18023 | Q234: Actual | R234: 0.06618028217 | S234: 0.06618028217
... 263 more rows

Sheet App.2-JA_OM&A_Summary_Analys
O1: File Number: | P1: =EBNUMBER -> EB-2017-0039
O2: Exhibit: | P2: 4
O3: Attachment: | P3: 4-A
O4: Page: | P4: 1 of 1
O6: Date: | P6: August 28th, 2017
A8: Appendix 2-JA
A9: Summary of Recoverable OM&A Expenses
B12: ="Last Rebasing Year (" & RebaseYear & " Board-Approved)" -> Last Rebasing Year (2010 Board-Approved) | C12: ="Last Rebasing Year (" & RebaseYear & " Actuals)" -> Last Rebasing Year (2010 Actuals) | D12: 2011 Actuals | E12: 2012 Actuals | F12: 2013 Actuals | G12: 2014 Actuals | H12: =BridgeYear -2 & " Actuals" -> 2015 Actuals | I12: =BridgeYear -1 & " Actuals" -> 2016 Actuals | J12: =BridgeYear & " Bridge Year" -> 2017 Bridge Year | K12: =TestYear & " Test Year" -> 2018 Test Year
A13: Reporting Basis | B13: CGAAP | C13: CGAAP | D13: CGAAP | E13: CGAAP | F13: CGAAP | G13: CGAAP | H13: MIFRS | I13: MIFRS | J13: MIFRS | K13: MIFRS
A14: Operations | B14: 1111126 | C14: 767607.8785 | D14: 1003987.164 | E14: 1190374.633 | F14: 1207056.886 | G14: 1545489.298 | H14: 1332349.707 | I14: 1337677.494 | J14: 1221419.233 | K14: 1518207.838
A15: Maintenance | B15: 1517732 | C15: 1496650.761 | D15: 1614034.316 | E15: 2013058.627 | F15: 1515425.234 | G15: 1448980.462 | H15: 1808437.923 | I15: 1833650.386 | J15: 1572404.187 | K15: 1548463.172
A16: SubTotal | B16: =SUM(B14:B15) -> 2628858 | C16: =SUM(C14:C15) -> 2264258.64 | D16: 2618021.48 | E16: 3203433.26 | F16: 2722482.12 | G16: 2994469.76 | H16: 3140787.63 | I16: 3171327.88 | J16: 2793823.42 | K16: 3066671.01
A17: %Change (year over year) | D17: =IF(ISERROR((D16-C16)/C16), "", (D16-C16)/C16) -> 0.1562378227 | E17: =IF(ISERROR((E16-D16)/D16), "", (E16-D16)/D16) -> 0.2236084709 | F17: =IF(ISERROR((F16-E16)/E16), "", (F16-E16)/E16) -> -0.1501361511 | G17: 0.09990428881 | H17: =IF(ISERROR((H16-G16)/G16), "", (H16-G16)/G16) -> 0.04886269748 | I17: 0.009723755184 | J17: -0.1190367172 | K17: =IF(ISERROR((K16-J16)/J16), "", (K16-J16)/J16) -> 0.0976610005
A18: %Change (Test Year vs Last Rebasing Year - Actual) | K18: =IF(ISERROR((K16-C16)/C16), "", (K16-C16)/C16) -> 0.3543819404
A19: Billing and Collecting | B19: 1480565 | C19: 1305097.79 | D19: 1131257.29 | E19: 1174567.96 | F19: 1329771.06 | G19: 1158128.04 | H19: 1229676.23 | I19: 1348249.06 | J19: 1499880.49 | K19: 1550150.106
A20: Community Relations | B20: 22500 | C20: 16957.45 | D20: 11393.68 | E20: 8538.61 | F20: 8451.05 | G20: 10015.52 | H20: 12012.75 | I20: 6482.32 | J20: 23441.6927 | K20: 23395.9991
A21: Administrative and General | B21: 2068443 | C21: 1894040.52 | D21: 1786256.71 | E21: 1806756.66 | F21: 1966590.49 | G21: 2541605.55 | H21: 2381741.56 | I21: 2455563.59 | J21: 2950223.588 | K21: 3070057.689
A22: SubTotal | B22: =SUM(B19:B21) -> 3571508 | C22: =SUM(C19:C21) -> 3216095.76 | D22: 2928907.68 | E22: 2989863.23 | F22: 3304812.6 | G22: 3709749.11 | H22: 3623430.54 | I22: 3810294.97 | J22: 4473545.771 | K22: 4643603.794
A23: %Change (year over year) | D23: =IF(ISERROR((D22-C22)/C22), "", (D22-C22)/C22) -> -0.0892971172 | E23: 0.0208117007 | F23: 0.1053390559 | G23: 0.122529341 | H23: -0.02326803443 | I23: 0.05157113623 | J23: 0.1740680986 | K23: =IF(ISERROR((K22-J22)/J22), "", (K22-J22)/J22) -> 0.03801414635
A24: %Change (Test Year vs Last Rebasing Year - Actual) | K24: =IF(ISERROR((K22-C22)/C22), "", (K22-C22)/C22) -> 0.4438636598
A25: Total | B25: =SUM(B22,B16) -> 6200366 | C25: =SUM(C22,C16) -> 5480354.4 | D25: 5546929.16 | E25: 6193296.49 | F25: 6027294.72 | G25: 6704218.87 | H25: 6764218.17 | I25: 6981622.85 | J25: 7267369.191 | K25: 7710274.805
A26: %Change (year over year) | D26: =IF(ISERROR((D25-C25)/C25), "", (D25-C25)/C25) -> 0.01214789321 | E26: 0.1165270569 | F26: -0.02680345924 | G26: 0.112309781 | H26: 0.008949484073 | I26: 0.03214040034 | J26: =IF(ISERROR((J25-I25)/I25), "", (J25-I25)/I25) -> 0.0409283553 | K26: =IF(ISERROR((K25-J25)/J25), "", (K25-J25)/J25) -> 0.0609444219
B29: =B12 -> Last Rebasing Year (2010 Board-Approved) | C29: =C12 -> Last Rebasing Year (2010 Actuals) | D29: 2011 Actuals | E29: 2012 Actuals | F29: 2013 Actuals | G29: 2014 Actuals | H29: 2015 Actuals | I29: 2016 Actuals | J29: 2017 Bridge Year | K29: 2018 Test Year
A30: Operations | B30: =B14 -> 1111126 | C30: =C14 -> 767607.8785 | D30: =D14 -> 1003987.164 | E30: 1190374.633 | F30: 1207056.886 | G30: 1545489.298 | H30: 1332349.707 | I30: 1337677.494 | J30: 1221419.233 | K30: 1518207.838
A31: Maintenance | B31: =B15 -> 1517732 | C31: =C15 -> 1496650.761 | D31: =D15 -> 1614034.316 | E31: 2013058.627 | F31: 1515425.234 | G31: 1448980.462 | H31: 1808437.923 | I31: 1833650.386 | J31: 1572404.187 | K31: 1548463.172
A32: Billing and Collecting | B32: =B19 -> 1480565 | C32: =C19 -> 1305097.79 | D32: =D19 -> 1131257.29 | E32: 1174567.96 | F32: 1329771.06 | G32: 1158128.04 | H32: 1229676.23 | I32: 1348249.06 | J32: 1499880.49 | K32: 1550150.106
A33: Community Relations | B33: =B20 -> 22500 | C33: =C20 -> 16957.45 | D33: =D20 -> 11393.68 | E33: 8538.61 | F33: 8451.05 | G33: 10015.52 | H33: 12012.75 | I33: 6482.32 | J33: 23441.6927 | K33: 23395.9991
A34: Administrative and General | B34: =B21 -> 2068443 | C34: =C21 -> 1894040.52 | D34: =D21 -> 1786256.71 | E34: 1806756.66 | F34: 1966590.49 | G34: 2541605.55 | H34: 2381741.56 | I34: 2455563.59 | J34: 2950223.588 | K34: 3070057.689
A35: Total | B35: =SUM(B30:B34) -> 6200366 | C35: =SUM(C30:C34) -> 5480354.4 | D35: =SUM(D30:D34) -> 5546929.16 | E35: 6193296.49 | F35: 6027294.72 | G35: 6704218.87 | H35: 6764218.17 | I35: 6981622.85 | J35: 7267369.191 | K35: 7710274.805
A36: %Change (year over year) | D36: =IF(ISERROR((D35-C35)/C35), "", (D35-C35)/C35) -> 0.01214789321 | E36: 0.1165270569 | F36: -0.02680345924 | G36: 0.112309781 | H36: 0.008949484073 | I36: 0.03214040034 | J36: 0.0409283553 | K36: =IF(ISERROR((K35-J35)/J35), "", (K35-J35)/J35) -> 0.0609444219
B39: =B12 -> Last Rebasing Year (2010 Board-Approved) | C39: =C12 -> Last Rebasing Year (2010 Actuals) | D39: ="Variance " & 'LDC Info'!E28 & " Board-approved – " & 'LDC Info'!E28 & " Actuals" -> Variance 2010 Board-approved – 2010 Actuals | E39: 2011 Actuals | F39: Variance 2011 Actuals vs. 2010 Actuals | G39: 2012 Actuals | H39: Variance 2012 Actuals vs. 2011 Actuals | I39: 2013 Actuals | J39: Variance 2013 Actuals vs. 2012 Actuals | K39: 2014 Actuals | L39: Variance 2014 Actuals vs. 2013 Actuals | M39: =H12 -> 2015 Actuals | N39: Variance 2015 Actuals vs. 2014 Actuals | O39: =I12 -> 2016 Actuals | P39: ="Variance " & 'LDC Info'!E26 -1 & " Actuals vs. " & 'LDC Info'!E26-2 & " Actuals" -> Variance 2016 Actuals vs. 2015 Actuals | Q39: =J12 -> 2017 Bridge Year | R39: ="Variance " & 'LDC Info'!E26 & " Bridge vs. " & 'LDC Info'!E26 -1 & " Actuals" -> Variance 2017 Bridge vs. 2016 Actuals | S39: =K12 -> 2018 Test Year | T39: ="Variance " & TestYear & " Test vs. " & BridgeYear & " Bridge" -> Variance 2018 Test vs. 2017 Bridge
A40: Operations | B40: =B14 -> 1111126 | C40: 767607.8785 | D40: =B40-C40 -> 343518.1215 | E40: =D14 -> 1003987.164 | F40: =E40-C40 -> 236379.2851 | G40: =E14 -> 1190374.633 | H40: =G40-E40 -> 186387.4697 | I40: =F14 -> 1207056.886 | J40: =I40-G40 -> 16682.25303 | K40: =G14 -> 1545489.298 | L40: =K40-I40 -> 338432.4116 | M40: =H14 -> 1332349.707 | N40: =M40-K40 -> -213139.5906 | O40: =I14 -> 1337677.494 | P40: =O40-M40 -> 5327.786466 | Q40: =J14 -> 1221419.233 | R40: =Q40-O40 -> -116258.261 | S40: =K14 -> 1518207.838 | T40: =S40-Q40 -> 296788.6055
A41: Maintenance | B41: 1517732 | C41: 1496650.761 | D41: =B41-C41 -> 21081.23853 | E41: =D15 -> 1614034.316 | F41: =E41-C41 -> 117383.5549 | G41: =E15 -> 2013058.627 | H41: 399024.3103 | I41: =F15 -> 1515425.234 | J41: =I41-G41 -> -497633.393 | K41: =G15 -> 1448980.462 | L41: =K41-I41 -> -66444.77163 | M41: =H15 -> 1808437.923 | N41: 359457.4606 | O41: =I15 -> 1833650.386 | P41: =O41-M41 -> 25212.46353 | Q41: =J15 -> 1572404.187 | R41: -261246.1991 | S41: =K15 -> 1548463.172 | T41: -23941.01504
A42: Billing and Collecting | B42: =B19 -> 1480565 | C42: 1305097.79 | D42: 175467.21 | E42: =D19 -> 1131257.29 | F42: -173840.5 | G42: =E19 -> 1174567.96 | H42: 43310.67 | I42: =F19 -> 1329771.06 | J42: 155203.1 | K42: =G19 -> 1158128.04 | L42: -171643.02 | M42: =H19 -> 1229676.23 | N42: 71548.19 | O42: =I19 -> 1348249.06 | P42: 118572.83 | Q42: =J19 -> 1499880.49 | R42: 151631.4299 | S42: =K19 -> 1550150.106 | T42: 50269.61591
A43: Community Relations | B43: 22500 | C43: 16957.45 | D43: 5542.55 | E43: =D20 -> 11393.68 | F43: -5563.77 | G43: =E20 -> 8538.61 | H43: -2855.07 | I43: =F20 -> 8451.05 | J43: -87.56 | K43: =G20 -> 10015.52 | L43: 1564.47 | M43: =H20 -> 12012.75 | N43: 1997.23 | O43: =I20 -> 6482.32 | P43: -5530.43 | Q43: =J20 -> 23441.6927 | R43: 16959.3727 | S43: =K20 -> 23395.9991 | T43: -45.69359373
A44: Administrative and General | B44: 2068443 | C44: 1894040.52 | D44: 174402.48 | E44: =D21 -> 1786256.71 | F44: -107783.81 | G44: =E21 -> 1806756.66 | H44: 20499.95 | I44: =F21 -> 1966590.49 | J44: 159833.83 | K44: =G21 -> 2541605.55 | L44: 575015.06 | M44: =H21 -> 2381741.56 | N44: -159863.99 | O44: =I21 -> 2455563.59 | P44: 73822.03 | Q44: =J21 -> 2950223.588 | R44: 494659.9981 | S44: =K21 -> 3070057.689 | T44: 119834.1013
A45: Total OM&A Expenses | B45: =SUM(B40:B44) -> 6200366 | C45: =SUM(C40:C44) -> 5480354.4 | D45: 720011.6 | E45: 5546929.16 | F45: 66574.76 | G45: 6193296.49 | H45: =SUM(H40:H44) -> 646367.33 | I45: 6027294.72 | J45: =SUM(J40:J44) -> -166001.77 | K45: 6704218.87 | L45: 676924.15 | M45: =SUM(M40:M44) -> 6764218.17 | N45: 59999.3 | O45: 6981622.85 | P45: 217404.68 | Q45: 7267369.191 | R45: 285746.3405 | S45: 7710274.805 | T45: 442905.614
A46: Adjustments for Total non-recoverable items (from Appendices 2-JA and 2-JB)
A47: Total Recoverable OM&A Expenses | B47: =B45-B46 -> 6200366 | C47: =C45-C46 -> 5480354.4 | D47: =D45-D46 -> 720011.6 | E47: 5546929.16 | F47: 66574.76 | G47: 6193296.49 | H47: 646367.33 | I47: 6027294.72 | J47: -166001.77 | K47: 6704218.87 | L47: 676924.15 | M47: 6764218.17 | N47: 59999.3 | O47: 6981622.85 | P47: 217404.68 | Q47: 7267369.191 | R47: 285746.3405 | S47: 7710274.805 | T47: 442905.614
A48: Variance from previous year | E48: =E47-C47 -> 66574.76 | G48: =G47-E47 -> 646367.33 | I48: =I47-G47 -> -166001.77 | K48: =K47-I47 -> 676924.15 | M48: =M47-K47 -> 59999.3 | O48: =O47-M47 -> 217404.68 | Q48: =Q47-O47 -> 285746.3405 | S48: =S47-Q47 -> 442905.614
A49: Percent change (year over year) | E49: =IF(ISERROR(E48/C47), "", E48/C47) -> 0.01214789321 | G49: =IF(ISERROR(G48/E47), "", G48/E47) -> 0.1165270569 | I49: =IF(ISERROR(I48/G47), "", I48/G47) -> -0.02680345924 | K49: =IF(ISERROR(K48/I47), "", K48/I47) -> 0.112309781 | M49: =IF(ISERROR(M48/K47), "", M48/K47) -> 0.008949484073 | O49: =IF(ISERROR(O48/M47), "", O48/M47) -> 0.03214040034 | Q49: =IF(ISERROR(Q48/O47), "", Q48/O47) -> 0.0409283553 | S49: =IF(ISERROR(S48/Q47), "", S48/Q47) -> 0.0609444219
A50: Percent Change: Test year vs. Most Current Actual | O50: =IF(ISERROR((S47-O47)/O47), "", (S47-O47)/O47) -> 0.1043671321
A51: Simple average of % variance for all years | O51: =IF(ISERROR((S45-C45)/C45), "", (S45-C45)/C45) -> 0.4068934674 | T51: =IF(ISERROR(AVERAGE(M49,O49,Q49,S49)), "", AVERAGE(M49,O49,Q49,S49)) -> 0.0357406654
A52: Compound Annual Growth Rate for all years | O52: =IF(ISERROR((S48-C48)/C48), "", (S48-C48)/C48) ->  | T52: =IF((S47-C47)=0, "", (S47/C47)^(1/5)-1) -> 0.07066163927
A53: ="Compound Growth Rate (" & I12 & " vs. " & 'LDC Info'!E28 & " Actuals)" -> Compound Growth Rate (2016 Actuals vs. 2010 Actuals) | O53: =IF(ISERROR((O47/C47)^(1/(3)) - 1), "", (O47/C47)^(1/(3)) - 1) -> 0.08404983273
A55: Note:
A57: 1 If it has been more than three years since the applicant last filed a cost of service application, additional years of historical actuals should be incorporated into the table, as necessary, to go back to the last cost of service application. If the applicant last filed a cost of service application less than three years ago, a minimum of three years of actual information is required.
A59: 2 Recoverable OM&A that is included on these tables should be identical to the recoverable OM&A that is shown for the corresponding periods on Appendix 2-JB.

Sheet App.2-JB_OM&A_Cost _Drivers
H1: File Number: | I1: =EBNUMBER -> EB-2017-0039
H2: Exhibit: | I2: 4
H3: Attachment: | I3: 4-B
H4: Page: | I4: 1 of 1
H6: Date: | I6: August 28th, 2017
A9: Appendix 2-JB
A10: ="Recoverable OM&A Cost Driver Table" & CHAR(185)&CHAR(183)&CHAR(179) -> Recoverable OM&A Cost Driver Table¹·³
A12: OM&A | B12: ="Last Rebasing Year ("&RebaseYear&" Actuals)" -> Last Rebasing Year (2010 Actuals) | C12: 2011 Actuals | D12: 2012 Actuals | E12: 2013 Actuals | F12: 2014 Actuals | G12: =BridgeYear -2 & " Actuals" -> 2015 Actuals | H12: =BridgeYear -1 & " Actuals" -> 2016 Actuals | I12: =BridgeYear & " Bridge Year" -> 2017 Bridge Year | J12: =TestYear & " Test Year" -> 2018 Test Year
A13: Reporting Basis | B13: CGAAP | C13: CGAAP | D13: CGAAP | E13: CGAAP | F13: CGAAP | G13: MIFRS | H13: MIFRS | I13: MIFRS | J13: MIFRS
A14: ="Opening Balance" & CHAR(178) -> Opening Balance² | B14: 6200366 | C14: 5480354.4 | D14: 5546929.16 | E14: 6193296.49 | F14: 6027294.72 | G14: 6704218.87 | H14: 6764218.17 | I14: 6981622.85 | J14: 7267369.191
A15: Operations
A16: Reduction in Load Dispatching | B16: -104082.4107 | C16: -9761.256603 | D16: 644.7576582 | E16: -6206.364117 | F16: 5796.701184 | G16: 2486.604299 | H16: 6015.627397 | I16: 28803.94913 | J16: =237959.033778793-186000 -> 51959.03378
A17: Metering | B17: -77387.76008 | C17: 21885.94853 | D17: 223114.1379 | E17: 105856.4502 | F17: 182221.4673 | G17: -370600.9614 | H17: -7348.17652 | I17: 8952.802355 | J17: -5347.928836
A18: Customer Premises | B18: -26103.2341 | C18: -41769.81317 | D18: 41179.20629 | E18: 2022.775012 | F18: 121873.9012 | G18: 141960.6184 | H18: -108519.3358 | I18: -65567.1831 | J18: 29963.94755
A19: Changes in Supervision | B19: 45063.57549 | C19: 36373.39135 | D19: 56897.34376 | E19: -14704.36388 | F19: 30809.72039 | G19: -99133.63532 | H19: -1158.958754 | I19: -9037.003727 | J19: -1084.10779
A20: Control Room | J20: 186000
A21: Other Immaterial/Misc. Operational | B21: -181008.2921 | C21: 229651.0149 | D21: -135447.9759 | E21: -70286.24416 | F21: -2269.378454 | G21: 112147.7834 | H21: 116338.6302 | I21: -79410.82561 | J21: -150702.3392
A22: Subtotal - Operations | B22: -343518.1215 | C22: 236379.2851 | D22: 186387.4697 | E22: 16682.25303 | F22: 338432.4116 | G22: -213139.5906 | H22: 5327.786466 | I22: -116258.261 | J22: 296788.6055
A23: Maintenance
A24: Changes in Supervision | B24: 9649.048607 | C24: -170198.4396 | D24: 97608.7113 | E24: -83366.03356 | F24: 2175.964212 | G24: 356113.1539 | H24: -366006.0515 | I24: 22609.1192 | J24: 9812.554109
A25: O/H Right of Way - Conversion | B25: -75120.0583 | C25: 129435.6101 | D25: 392540.8125 | E25: -154243.7566 | F25: 31583.92684 | G25: -22812.45309 | H25: 146707.9733 | I25: -175691.6793 | J25: 49302.72823
A26: Other Immaterial/Misc. Maintenance | B26: 44389.77117 | C26: 158146.3844 | D26: -91125.21347 | E26: -260023.6029 | F26: -100204.6627 | G26: 26156.75981 | H26: 244510.5417 | I26: -108163.6391 | J26: -83056.29738
A27: Subtotal - Maintenance | B27: -21081.23853 | C27: 117383.5549 | D27: 399024.3103 | E27: -497633.393 | F27: -66444.77163 | G27: 359457.4606 | H27: 25212.46353 | I27: -261246.1991 | J27: -23941.01504
A28: Billing & Collecting
A29: Customer Billing | B29: -192845.5 | C29: 100300.14 | D29: 38451.44 | E29: 151623.44 | F29: -118082.18 | G29: -24488.49 | H29: 138636.92 | I29: 203831.64 | J29: 36004.22711
A30: Collecting | B30: 3343.6 | C30: -158295.29 | D30: 100555.07 | E30: 33225.13 | F30: 45193.66 | G30: -13614.4 | H30: 52485.2 | I30: 72978.40084 | J30: 7987.32682
A31: Changes in Supervision | B31: 24651.2 | C31: -74863.06 | D31: -95226.24 | E31: 13287.75 | F31: 11195.51 | G31: 3568.28 | H31: 4575.31 | I31: 13831.53837 | J31: 3626.675179
A32: Meter Reading | B32: 43480.81 | C32: -71782.46 | D32: -61144.28 | E32: 1723.89 | F32: -52098.29 | G32: 51381.77 | H32: -59853.82 | I32: -121091.5167 | J32: -221.1985333
A33: Changes in Bad Debt Expense | B33: -52588.7 | C33: 26683.21 | D33: 67625.38 | E33: -35574.63 | F33: -57536.77 | G33: 54206.7 | H33: -39837.04 | I33: 9351.572944 | J33: -311.54723
A34: Other Immaterial/Misc. B&C | B34: -1508.62 | C34: 4116.96 | D34: -6950.7 | E34: -9082.48 | F34: -314.95 | G34: 494.33 | H34: 22566.26 | I34: -27270.20554 | J34: 3184.13257
A35: Subtotal - Billing & Collecting | B35: -175467.21 | C35: -173840.5 | D35: 43310.67 | E35: 155203.1 | F35: -171643.02 | G35: 71548.19 | H35: 118572.83 | I35: 151631.4299 | J35: 50269.61591
A36: Community Relations
A37: Other Immaterial/Misc. Community Relations | B37: -5542.55 | C37: -5563.77 | D37: -2855.07 | E37: -87.56 | F37: 1564.47 | G37: 1997.23 | H37: -5530.43 | I37: 16959.3727 | J37: -45.69359373
A38: Subtotal - Community Relations | B38: -5542.55 | C38: -5563.77 | D38: -2855.07 | E38: -87.56 | F38: 1564.47 | G38: 1997.23 | H38: -5530.43 | I38: 16959.3727 | J38: -45.69359373
A39: Admin & General
A40: Change in Salaries & General Expenses | B40: -100669.93 | C40: -264122.49 | D40: -153124.21 | E40: 313788.31 | F40: 345104.08 | G40: -65930.99 | H40: 20242.78 | I40: -55273.7448 | J40: 82142.3813
A41: Change in Employee Pensions & Benefits | B41: 46599 | C41: -75659.32 | D41: 185372.36 | E41: 6.96 | F41: 173332 | G41: -9459 | H41: 11582 | I41: 31045.92698 | J41: -456.9359373
A42: Regulatory Re-alignment | I42: 236957.5919 | J42: 31622.53593
A43: Outside Services/Cybersecurity | E43: 67341.51 | G43: -63316.67 | I43: 231462.5096 | J43: 8140.74524
A44: Other Immaterial/Misc. Admin & General | B44: -120331.55 | C44: 231998 | D44: -11748.2 | E44: -153961.44 | F44: 56578.98 | G44: -84474 | H44: 41997.25 | I44: 50467.7144 | J44: -1614.632464
A45: Subtotal - Admin & General | B45: -174402.48 | C45: -107783.81 | D45: 20499.95 | E45: 159833.83 | F45: 575015.06 | G45: -159863.99 | H45: 73822.03 | I45: 494659.9981 | J45: 119834.0941
A46: ="Closing Balance"&CHAR(178) -> Closing Balance² | B46: 5480354.4 | C46: 5546929.16 | D46: 6193296.49 | E46: 6027294.72 | F46: 6704218.87 | G46: 6764218.17 | H46: 6981622.85 | I46: 7267369.191 | J46: 7710274.797
A48: Notes:
A50: 1 | B50: For each year, a detailed explanation for each cost driver and associated amount is requied in Exhibit 4.
A51: 2 | B51: Opening Balance for "Last Rebasing Year" (cell B15) should be equal to the Board-Approved amount. For purposes of assessing incremental cost drivers, the closing balance for each year becomes the opening balance for the next year.
A52: 3 | B52: If it has been more than four years since the applicant last filed a cost of service application, additional years of historical actuals should be incorporated into the table, as necessary, to go back to the last cost of service application. If the applicant last filed a cost of service application less than four years ago, a minimum of three years of actual information is required.

Sheet App.2-JC_OMA Programs
K1: File Number: | L1: =EBNUMBER -> EB-2017-0039
K2: Exhibit: | L2: 4
K3: Tab: | L3: 4-D
K4: Page: | L4: 1 of 1
K6: Date: | L6: August 28th, 2017
A8: Appendix 2-JC
A9: OM&A Programs Table
A12: Programs | B12: ="Last Rebasing Year (" & RebaseYear & " Board-Approved)" -> Last Rebasing Year (2010 Board-Approved) | C12: ="Last Rebasing Year (" & RebaseYear & " Actuals)" -> Last Rebasing Year (2010 Actuals) | D12: 2011 Actuals | E12: 2012 Actuals | F12: 2013 Actuals | G12: =BridgeYear-3&" Actuals" -> 2014 Actuals | H12: =BridgeYear -2 & " Actuals" -> 2015 Actuals | I12: =BridgeYear -1 & " Actuals" -> 2016 Actuals | J12: =BridgeYear & " Bridge Year" -> 2017 Bridge Year | K12: =TestYear & " Test Year" -> 2018 Test Year | L12: ="Variance (Test Year vs. " & I12 &")" -> Variance (Test Year vs. 2016 Actuals) | M12: ="Variance (Test Year vs. " & B12 -> Variance (Test Year vs. Last Rebasing Year (2010 Board-Approved)
A13: Reporting Basis | B13: CGAAP | C13: CGAAP | D13: CGAAP | E13: CGAAP | F13: CGAAP | G13: CGAAP | H13: MIFRS | I13: MIFRS | J13: MIFRS | K13: MIFRS
A14: Administration
A15: General Building Expenses | B15: 241203 | C15: 191801.3 | D15: 384048.42 | E15: 454397.2 | F15: 282679.09 | G15: 284691.66 | H15: 287490.45 | I15: 316820.75 | J15: 338503.3702 | K15: 342303.6725 | L15: =K15-I15 -> 25482.92254 | M15: =K15-B15 -> 101100.6725
A16: Insurance | B16: 30500 | C16: 23911.2 | D16: 24657.66 | E16: 16319.88 | F16: 16983.57 | G16: 27449.27 | H16: 21205.73 | I16: 18943.52 | J16: 34629.7733 | K16: 34562.2714 | L16: 15618.7514 | M16: 4062.271405
A17: Office Supplies | B17: 269633 | C17: 333798.81 | D17: 368589.17 | E17: 371682.3 | F17: 396384.51 | G17: 402032.79 | H17: 443140.38 | I17: 402557.75 | J17: 448399.4321 | K17: 478697.2959 | L17: 76139.54591 | M17: 209064.2959
A18: Audit, Legal and Consulting | B18: 82600 | C18: 101642.86 | D18: 104383.51 | E18: 47788.41 | F18: 115129.92 | G18: 118220.02 | H18: 54903.35 | I18: 64134.5 | J18: 295597.0096 | K18: 303737.7548 | L18: 239603.2548 | M18: 221137.7548
A19: Regulatory Affairs | B19: 162462 | C19: 126893.88 | D19: 168066.83 | E19: 168224.33 | F19: 130877.97 | G19: 108565.13 | H19: 146535.21 | I19: 124953.32 | J19: 361910.9119 | K19: 393533.4478 | L19: 268580.1278 | M19: 231071.4478
A20: Administration & HR Expenses | B20: 1282045 | C20: 1115992.47 | D20: 736511.12 | E20: 748344.54 | F20: 1024535.43 | G20: 1587219.9 | H20: 1415039.66 | I20: 1514726.97 | J20: 1457756.311 | K20: 1500402.766 | L20: -14324.20437 | M20: 218357.7656
A21: Donations/LEAP Funding | B21: 0 | C21: 0 | D21: 0 | E21: 0 | F21: 0 | G21: 13426.78 | H21: 13426.78 | I21: 13426.78 | J21: 13426.78 | K21: 16820.48125 | L21: 3393.70125 | M21: 16820.48125
A22: Sub-Total | B22: 2068443 | C22: 1894040.52 | D22: 1786256.71 | E22: 1806756.66 | F22: 1966590.49 | G22: 2541605.55 | H22: 2381741.56 | I22: 2455563.59 | J22: 2950223.588 | K22: 3070057.689 | L22: =K22-I22 -> 614494.0994 | M22: =K22-B22 -> 1001614.689
A23: Community Relations
A24: Community Relations | B24: 22500 | C24: 16957.45 | D24: 11393.68 | E24: 8538.61 | F24: 8451.05 | G24: 10015.52 | H24: 12012.75 | I24: 6482.32 | J24: 23441.6927 | K24: 23395.9991 | L24: 16913.6791 | M24: =K24-B24 -> 895.9991048
A25: Sub-Total | B25: 22500 | C25: 16957.45 | D25: 11393.68 | E25: 8538.61 | F25: 8451.05 | G25: 10015.52 | H25: 12012.75 | I25: 6482.32 | J25: 23441.6927 | K25: 23395.9991 | L25: 16913.6791 | M25: 895.9991048
A26: Customer Service
A27: Bad Debt | B27: 187500 | C27: 134911.3 | D27: 161594.51 | E27: 229219.89 | F27: 193645.26 | G27: 136108.49 | H27: 190315.19 | I27: 150478.15 | J27: 159829.7229 | K27: 159518.1757 | L27: 9040.025714 | M27: =K27-B27 -> -27981.82429
A28: Customer Service & Billings | B28: 1212670 | C28: 1087956.51 | D28: 1041611.13 | E28: 923692.05 | F28: 1090327.13 | G28: 931342.17 | H28: 961803.73 | I28: 1045162.14 | J28: 1141733.802 | K28: 1181143.505 | L28: =K28-I28 -> 135981.3654 | M28: =K28-B28 -> -31526.4946
A29: Customer Collections | B29: 80395 | C29: 82229.98 | D29: -71948.35 | E29: 21656.02 | F29: 45798.67 | G29: 90677.38 | H29: 77557.31 | I29: 152608.77 | J29: 198316.9653 | K29: 209488.4247 | L29: 56879.65469 | M29: 129093.4247
A30: Sub-Total | B30: 1480565 | C30: 1305097.79 | D30: 1131257.29 | E30: 1174567.96 | F30: 1329771.06 | G30: 1158128.04 | H30: 1229676.23 | I30: 1348249.06 | J30: 1499880.49 | K30: 1550150.106 | L30: 201901.0458 | M30: 69585.10581
A31: Maintenance
A32: Emergency Response | B32: 273360.0793 | C32: 344695.2409 | D32: 363959.3474 | E32: 330898.1002 | F32: 253549.05 | G32: 231804.06 | H32: 286063.0807 | I32: 274796.9781 | J32: 263708.3977 | K32: 259741.2542 | L32: -15055.72385 | M32: =K32-B32 -> -13618.8251
A33: Field Service Maintenance | B33: 106726.2022 | C33: 68103.49509 | D33: 43252.68131 | E33: 30382.30941 | F33: 73449.72225 | G33: 72038.39442 | H33: 51518.14876 | I33: 185983.8805 | J33: 127765.7414 | K33: 57433.15749 | L33: =K33-I33 -> -128550.723 | M33: -49293.04469
A34: Meter Maintenance | B34: 139601.1255 | C34: 85224.83184 | D34: 78059.93064 | E34: 95843.87796 | F34: 17387.43222 | G34: 2847.791777 | H34: 90081.06453 | I34: 0 | J34: 573.6212737 | K34: 568.1500513 | L34: 568.1500513 | M34: -139032.9755
A35: Overhead/Underground Maintenance | B35: 507668.7188 | C35: 640148.3045 | D35: 675924.5023 | E35: 614525.0431 | F35: 470876.8072 | G35: 430493.2543 | H35: 531260.007 | I35: 510337.245 | J35: 489744.1671 | K35: 482376.615 | L35: -27960.63002 | M35: -25292.10376
A36: Vegetation Control | B36: 356023.9391 | C36: 271632.185 | D36: 372499.9674 | E36: 812584.2435 | F36: 625236.7911 | G36: 660464.7407 | H36: 792619.8698 | I36: 778165.1459 | J36: 609254.0075 | K36: 666029.4818 | L36: -112135.6642 | M36: 310005.5426
A37: Transformer & Substation Maintenance | B37: 134351.9351 | C37: 86846.7061 | D37: 80337.88731 | E37: 128825.0526 | F37: 74925.43093 | G37: 51332.22092 | H37: 56895.75195 | I37: 84367.1367 | J37: 81358.252 | K37: 82314.51347 | L37: -2052.623229 | M37: -52037.4216
A38: Sub-Total | B38: 1517732 | C38: 1496650.763 | D38: 1614034.316 | E38: 2013058.627 | F38: 1515425.234 | G38: 1448980.462 | H38: 1808437.923 | I38: 1833650.386 | J38: 1572404.187 | K38: 1548463.172 | L38: -285187.2142 | M38: 30731.17201
A39: Operations
A40: Cable Locates | B40: 356155 | C40: 330051.7659 | D40: 288281.9527 | E40: 329461.159 | F40: 331483.934 | G40: 453357.8352 | H40: 595318.4536 | I40: 486799.1178 | J40: 421231.9347 | K40: 451195.8823 | L40: =K40-I40 -> -35603.23555 | M40: =K40-B40 -> 95040.88229
A41: General Customer Inquiries & Misc. | B41: 184215 | C41: 185796.1159 | D41: 370563.488 | E41: 236541.1968 | F41: 164099.3054 | G41: 127148.5291 | H41: 127633.0267 | I41: 196926.7446 | J41: 229406.271 | K41: 224632.7918 | L41: 27706.04724 | M41: 40417.79179
A42: Meter Operations | B42: 135439 | C42: 58051.23992 | D42: 79937.18845 | E42: 303051.3264 | F42: 408907.7766 | G42: 591129.2439 | H42: 220528.2824 | I42: 213180.1059 | J42: 222132.9083 | K42: 216784.9794 | L42: 3604.873518 | M42: 81345.97944
A43: Station Operations | B43: 78499 | C43: 17932.39981 | D43: 16129.90576 | E43: 26196.64241 | F43: 25805.93341 | G43: 95715.80812 | H43: 42106.46849 | I43: 0 | J43: 0 | K43: 0 | L43: 0 | M43: -78499
A44: Operations Management | B44: 160174 | C44: 101155.1648 | D44: 127767.2995 | E44: 185309.4009 | F44: 164398.6729 | G44: 201005.0945 | H44: 104358.0635 | I44: 109214.7321 | J44: 128981.6775 | K44: 365856.6035 | L44: 256641.8714 | M44: 205682.6035
A45: Overhead Operations | B45: 42013 | C45: 14605.15433 | D45: 29826.43771 | E45: 48042.36238 | F45: 38702.00142 | G45: 26559.48479 | H45: 132482.14 | I45: 167408.2453 | J45: 124518.9629 | K45: 114892.8391 | L45: -52515.40614 | M45: 72879.83914
A46: Transformer Operations | B46: 122523 | C46: 40324.18215 | D46: 82150.61061 | E46: 49934.55307 | F46: 46144.83261 | G46: 39021.16353 | H46: 63883.29074 | I46: 52887.54204 | J46: 43444.14353 | K46: 86804.59693 | L46: 33917.05489 | M46: -35718.40307
A47: Underground Operations | B47: 32108 | C47: 19691.85574 | D47: 9330.280773 | E47: 11837.99232 | F47: 27514.42991 | G47: 11552.13875 | H47: 46039.98183 | I47: 111261.006 | J47: 51703.33488 | K47: 58040.14519 | L47: -53220.86085 | M47: 25932.14519
A48: Sub-Total | B48: 1111126 | C48: 767607.8785 | D48: 1003987.164 | E48: 1190374.633 | F48: 1207056.886 | G48: 1545489.298 | H48: 1332349.707 | I48: 1337677.494 | J48: 1221419.233 | K48: 1518207.838 | L48: 180530.3445 | M48: 407081.8383
A49: Miscellaneous | L49: 0 | M49: 0
A50: Total | B50: =SUMPRODUCT(--($A14:$A49="Sub-Total"), B$14:B$49)+B49 -> 6200366 | C50: 5480354.402 | D50: 5546929.16 | E50: 6193296.49 | F50: 6027294.72 | G50: 6704218.87 | H50: 6764218.17 | I50: 6981622.85 | J50: 7267369.191 | K50: 7710274.805 | L50: =K50-I50 -> 728651.9546 | M50: 1509908.805
A52: Notes:
A54: 1 Please provide a breakdown of the major components of each OM&A Program undertaken in each year. Please ensure that all Programs below the materiality threshold are included in the miscellaneous line. Add more Programs as required.
A55: 2 The applicant should group projects appropriately and avoid presentations that result in classification of significant components of the OM&A budget in the miscellaneous category

Sheet App.2-K_Employee Costs
J1: File Number: | K1: =EBNUMBER -> EB-2017-0039
J2: Exhibit: | K2: 4
J3: Attachment: | K3: 4-G
J4: Page: | K4: 1 of 1
J6: Date: | K6: August 28th, 2017
A8: Appendix 2-K
A9: Employee Costs
B11: ="Last Rebasing Year - "&RebaseYear&"- Board Approved" -> Last Rebasing Year - 2010- Board Approved | C11: ="Last Rebasing Year - "&RebaseYear&"- Actual" -> Last Rebasing Year - 2010- Actual | D11: 2011 Actuals | E11: 2012 Actuals | F11: 2013 Actuals | G11: =BridgeYear-3 & " Actuals" -> 2014 Actuals | H11: =BridgeYear -2 & " Actuals" -> 2015 Actuals | I11: =BridgeYear -1 & " Actuals" -> 2016 Actuals | J11: =BridgeYear & " Bridge Year" -> 2017 Bridge Year | K11: =TestYear & " Test Year" -> 2018 Test Year
A12: Number of Employees (FTEs including Part-Time)1
A13: Management (including executive) | B13: 12 | C13: 15 | D13: 15 | E13: 12 | F13: 12 | G13: 13 | H13: 12 | I13: 10 | J13: 11 | K13: 11
A14: Non-Management (union and non-union) | B14: 45.4 | C14: 38 | D14: 29 | E14: 32 | F14: 32 | G14: 35 | H14: 32 | I14: 34 | J14: 35 | K14: 35
A15: Total | B15: =SUM(B13:B14) -> 57.4 | C15: 53 | D15: 44 | E15: 44 | F15: 44 | G15: 48 | H15: 44 | I15: 44 | J15: 46 | K15: 46
A16: Total Salary and Wages including ovetime and incentive pay
A17: Management (including executive) | B17: 1020892 | C17: 1235240 | D17: 1151468 | E17: 1067030 | F17: 1067391 | G17: 1110844 | H17: 1052468 | I17: 969389 | J17: 1127378 | K17: =1224925.56-75000 -> 1149925.56
A18: Non-Management (union and non-union) | B18: 3086722 | C18: 2582457 | D18: 1916942 | E18: 2385412 | F18: 2382334 | G18: 2645925 | H18: 2721429 | I18: 2883015 | J18: 2838207 | K18: 2894971.14
A19: Total | B19: =SUM(B17:B18) -> 4107614 | C19: 3817697 | D19: 3068410 | E19: 3452442 | F19: 3449725 | G19: 3756769 | H19: 3773897 | I19: 3852404 | J19: 3965585 | K19: 4044896.7
A20: Total Benefits (Current + Accrued) 2
A21: Management (including executive) | B21: 210560 | C21: 251108.826 | D21: 294304.1144 | E21: 241866.1539 | F21: 237231.5542 | G21: 233455.1013 | H21: 223353.8048 | I21: 217210.7003 | J21: 266095.8744 | K21: =288994.538217427-75000 -> 213994.5382
A22: Non-Management (union and non-union) | B22: 630555 | C22: 524981.174 | D22: 489951.8856 | E22: 540706.8461 | F22: 529482.4458 | G22: 556067.8987 | H22: 577539.1952 | I22: 645996.2997 | J22: 669904.1256 | K22: 683005.4618
A23: Total | B23: =SUM(B21:B22) -> 841115 | C23: =SUM(C21:C22) -> 776090 | D23: 784256 | E23: 782573 | F23: 766714 | G23: 789523 | H23: 800893 | I23: 863207 | J23: 936000 | K23: 897000
A24: Total Compensation (Salary, Wages, & Benefits)
A25: Management (including executive) | B25: =B17+B21 -> 1231452 | C25: 1486348.826 | D25: =D17+D21 -> 1445772.114 | E25: 1308896.154 | F25: 1304622.554 | G25: =G17+G21 -> 1344299.101 | H25: 1275821.805 | I25: 1186599.7 | J25: 1393473.874 | K25: 1363920.098
A26: Non-Management (union and non-union) | B26: 3717277 | C26: 3107438.174 | D26: =D18+D22 -> 2406893.886 | E26: 2926118.846 | F26: 2911816.446 | G26: =G18+G22 -> 3201992.899 | H26: 3298968.195 | I26: 3529011.3 | J26: 3508111.126 | K26: 3577976.602
A27: Total | B27: 4948729 | C27: 4593787 | D27: =D19+D23 -> 3852666 | E27: 4235015 | F27: 4216439 | G27: =G19+G23 -> 4546292 | H27: 4574790 | I27: 4715611 | J27: 4901585 | K27: 4941896.7
A29: Note:
A30: 1 If an applicant wishes to use headcount, it must also file the same schedule on an FTE basis.
A31: 2 Current employee benefits, plus Pension and Other Post-Employment Benefits costs, as recorded for recovery in distribution rates. Should be consistent with OPEBs costs as documented in Appendix 2-KA.

Sheet App.2-L_OM&A_per_Cust_FTE
L1: File Number: | M1: =EBNUMBER -> EB-2017-0039
L2: Exhibit: | M2: 4
L3: Tab: | M3: 4-C
L4: Page: | M4: 1 of 1
L6: Date: | M6: August 28th, 2017
B8: Appendix 2-L
B9: Recoverable OM&A Cost per Customer and per FTE 1
D12: ="Last Rebasing Year - "&RebaseYear&"- Board Approved" -> Last Rebasing Year - 2010- Board Approved | E12: ="Last Rebasing Year - "&RebaseYear&"- Actual" -> Last Rebasing Year - 2010- Actual | F12: 2011 Actuals | G12: 2012 Actuals | H12: 2013 Actuals | I12: =BridgeYear -3 & " Actuals" -> 2014 Actuals | J12: =BridgeYear -2 & " Actuals" -> 2015 Actuals | K12: =BridgeYear -1 & " Actuals" -> 2016 Actuals | L12: =BridgeYear & " Bridge Year" -> 2017 Bridge Year | M12: =TestYear & " Test Year" -> 2018 Test Year
B13: Reporting Basis | D13: CGAAP | E13: CGAAP | F13: CGAAP | G13: CGAAP | H13: CGAAP | I13: CGAAP | J13: MIFRS | K13: MIFRS | L13: MIFRS | M13: MIFRS
B14: OM&A Costs
B15: O&M | D15: 2628858 | E15: 2264258.64 | F15: 2618021.48 | G15: 3203433.26 | H15: 2722482.12 | I15: 2994469.76 | J15: 3140787.63 | K15: 3171327.88 | L15: 2793823.42 | M15: 3066671.01
B16: Admin Expenses | D16: 3571508 | E16: 3216095.76 | F16: 2928907.68 | G16: 2989863.23 | H16: 3304812.6 | I16: 3709749.11 | J16: 3623430.54 | K16: 3810294.97 | L16: 4473545.77 | M16: 4643603.79
B17: Total Recoverable OM&A from Appendix 2-JB 5 | D17: =SUM(D15:D16) -> 6200366 | E17: =SUM(E15:E16) -> 5480354.4 | F17: 5546929.16 | G17: 6193296.49 | H17: 6027294.72 | I17: 6704218.87 | J17: 6764218.17 | K17: 6981622.85 | L17: 7267369.19 | M17: 7710274.8
B18: Number of Customers 2,4 | D18: 30940 | E18: 31200 | F18: 31314 | G18: 31249 | H18: 31521 | I18: 31742 | J18: 31985 | K18: 32346 | L18: 32550 | M18: 32736
B19: Number of FTEs 3,4 | D19: 57.4 | E19: 53 | F19: 44 | G19: 44 | H19: 44 | I19: 48 | J19: 44 | K19: 44 | L19: 46 | M19: 46
B20: Customers/FTEs | D20: =IF(D19=0,"",D18/D19) -> 539.0243902 | E20: =IF(E19=0,"",E18/E19) -> 588.6792453 | F20: 711.6818182 | G20: 710.2045455 | H20: 716.3863636 | I20: =IF(I19=0,"",I18/I19) -> 661.2916667 | J20: 726.9318182 | K20: 735.1363636 | L20: 707.6086957 | M20: 711.6521739
B21: OM&A cost per customer
B22: O&M per customer | D22: =IF(D18=0,"",D15/D18) -> 84.96632191 | E22: =IF(E18=0,"",E15/E18) -> 72.57239231 | F22: =IF(F18=0,"",F15/F18) -> 83.60546337 | G22: 102.5131447 | H22: 86.37042353 | I22: =IF(I18=0,"",I15/I18) -> 94.33777834 | J22: 98.19564264 | K22: 98.04389662 | L22: 85.83174869 | M22: 93.67885539
B23: Admin per customer | D23: =IF(D18=0,"",D16/D18) -> 115.4333549 | E23: =IF(E18=0,"",E16/E18) -> 103.0799923 | F23: =IF(F18=0,"",F16/F18) -> 93.53348917 | G23: 95.67868508 | H23: 104.8447892 | I23: =IF(I18=0,"",I16/I18) -> 116.8719397 | J23: 113.2853069 | K23: 117.7980266 | L23: 137.436122 | M23: 141.8500669
B24: Total OM&A per customer | D24: =IF(D18=0,"",D17/D18) -> 200.3996768 | E24: =IF(E18=0,"",E17/E18) -> 175.6523846 | F24: =IF(F18=0,"",F17/F18) -> 177.1389525 | G24: 198.1918298 | H24: 191.2152127 | I24: =IF(I18=0,"",I17/I18) -> 211.209718 | J24: 211.4809495 | K24: 215.8419233 | L24: 223.2678707 | M24: 235.5289223
B25: OM&A cost per FTE
B26: O&M per FTE | D26: =IF(D19=0,"",D15/D19) -> 45798.91986 | E26: =IF(E19=0,"",E15/E19) -> 42721.86113 | F26: =IF(F19=0,"",F15/F19) -> 59500.48818 | G26: 72805.30136 | H26: 61874.59364 | I26: =IF(I19=0,"",I15/I19) -> 62384.78667 | J26: 71381.53705 | K26: 72075.63364 | L26: 60735.29174 | M26: 66666.76109
B27: Admin per FTE | D27: =IF(D19=0,"",D16/D19) -> 62221.39373 | E27: =IF(E19=0,"",E16/E19) -> 60681.05208 | F27: =IF(F19=0,"",F16/F19) -> 66566.08364 | G27: 67951.43705 | H27: 75109.37727 | I27: =IF(I19=0,"",I16/I19) -> 77286.43979 | J27: 82350.69409 | K27: 86597.61295 | L27: 97250.995 | M27: 100947.9085
B28: Total OM&A per FTE | D28: =IF(D19=0,"",D17/D19) -> 108020.3136 | E28: =IF(E19=0,"",E17/E19) -> 103402.9132 | F28: =IF(F19=0,"",F17/F19) -> 126066.5718 | G28: 140756.7384 | H28: 136983.9709 | I28: =IF(I19=0,"",I17/I19) -> 139671.2265 | J28: 153732.2311 | K28: 158673.2466 | L28: 157986.2867 | M28: 167614.6696
B30: Notes:
B32: 1 | C32: If it has been more than four years since the applicant last filed a cost of service application, additional years of historical actuals should be incorporated into the table, as necessary, to go back to the last cost of service application. If the applicant last filed a cost of service application less than four years ago, a minimum of three years of actual information is required.
B34: 2 | C34: The method of calculating the number of customers must be identified. Should correspond with data provided in Appendix 2-IB.
B35: 3 | C35: The method of calculating the number of FTEs must be identified. See also Appendix 2-K.
B36: 4 | C36: The number of customers and the number of FTEs should correspond to mid-year or average of January 1 and December 31 figures.
B37: 5 | C37: For the test year, the applicant should take into account the system O&M (line 22 of Appendix 2-AB) in developing its forecasted OM&A.

Sheet App.2-L_OM&A_per_Cust_FTEE_exp (hidden)
K1: File Number: | L1: =EBNUMBER -> EB-2017-0039
K2: Exhibit:
K3: Tab:
K4: Schedule:
K5: Page:
K7: Date:
A9: Appendix 2-L
A10: Recoverable OM&A Cost per Customer and per FTE 1
H12: 5-year Distribution System Plan Period
C13: ="Last Rebasing Year - "&RebaseYear&"- Board Approved" -> Last Rebasing Year - 2010- Board Approved | D13: ="Last Rebasing Year - "&RebaseYear&"- Actual" -> Last Rebasing Year - 2010- Actual | E13: =BridgeYear -2 & " Actuals" -> 2015 Actuals | F13: =BridgeYear -1 & " Actuals" -> 2016 Actuals | G13: =BridgeYear & " Bridge Year" -> 2017 Bridge Year | H13: =TestYear & " Test Year" -> 2018 Test Year | I13: =TestYear+1 & " Year" -> 2019 Year | J13: =TestYear+2 & " Year" -> 2020 Year | K13: =TestYear+3 & " Year" -> 2021 Year | L13: =TestYear+4 & " Year" -> 2022 Year
A14: Reporting Basis
A15: OM&A Costs
A16: O&M
A17: Admin Expenses
A18: Total Recoverable OM&A from Appendix 2-JB 5 | C18: =SUM(C16:C17) -> 0 | D18: =SUM(D16:D17) -> 0 | E18: 0 | F18: 0 | G18: 0 | H18: 0 | I18: 0 | J18: 0 | K18: 0 | L18: 0
A19: Number of Customers 2,4
A20: Number of FTEs 3,4
A21: Customers/FTEs | C21: =IF(C20=0,"",C19/C20) ->  | D21: =IF(D20=0,"",D19/D20) -> 
A22: OM&A cost per customer
A23: O&M per customer | C23: =IF(C19=0,"",C16/C19) ->  | D23: =IF(D19=0,"",D16/D19) -> 
A24: Admin per customer | C24: =IF(C19=0,"",C17/C19) ->  | D24: =IF(D19=0,"",D17/D19) -> 
A25: Total OM&A per customer | C25: =IF(C19=0,"",C18/C19) ->  | D25: =IF(D19=0,"",D18/D19) -> 
A26: OM&A cost per FTE
A27: O&M per FTE | C27: =IF(C20=0,"",C16/C20) ->  | D27: =IF(D20=0,"",D16/D20) -> 
A28: Admin per FTE | C28: =IF(C20=0,"",C17/C20) ->  | D28: =IF(D20=0,"",D17/D20) -> 
A29: Total OM&A per FTE | C29: =IF(C20=0,"",C18/C20) ->  | D29: =IF(D20=0,"",D18/D20) -> 
A31: Notes:
A33: 1 | B33: If it has been more than three years since the applicant last filed a cost of service application, additional years of historical actuals should be incorporated into the table, as necessary, to go back to the last cost of service application. If the applicant last filed a cost of service application less than three years ago, a minimum of three years of actual information is required.
A35: 2 | B35: The method of calculating the number of customers must be identified. Should be linked back to Appendix 2-IA
A36: 3 | B36: The method of calculating the number of FTEs must be identified. See also Appendix 2-K
A37: 4 | B37: The number of customers and the number of FTEs should correspond to mid-year or average of January 1 and December 31 figures.
